Workbook

Sheet Einsatz fremde Dünger
A1: Hinweis: Diese Tabelle weist keine automatischen Bezüge zur Tabelle "Suisse_Bilanz_…" auf.
A2: Mit dieser Tabelle kann der Saldo-Stand der Nährstoffkontingente für N und P unter dem Jahr nachgeführt werden. | S2: Hinweise zur Dateneingabe:
A3: Zuerst den Kopf ausfüllen (gelbe Zellen), sowie die max. möglichen Zufuhren nach aktueller Nährstoffbilanz. | S3: Hell-Gelbe Zellen: Daten eingeben
A4: Die Einsätze der betriebsfremden Dünger aufführen. Dabei auf korrekte Angaben achten z.B. wenn | S4: grüne Zellen: Daten aus Liste auswählen
A5: die Menge Ammonsalpeter in kg eingegeben wird, den N-Gehalt auch je kg eingeben (also 0.275). | S5: weiss od. andere Farbe: gesperrt, keine Dateneingabe
A6: Zum Ausdrucken die Anzahl Seiten festlegen (Datei - Drucken - Seiten von ... bis ... ).
A8: Einsatz betriebsfremder Düngemittel | H8: von: | L8: Betrieb: | P8: Nr.
A9: alle betriebsfremden Düngemittel: | H9: bis:
B10: > betriebsfremde Hofdünger, zugeführtes Stroh zum Streuen, ... | Q10: Blatt 1
B11: > Kompost, Presswasser, Gärreste ...
B12: > Handelsdünger (inkl. Flüssigdünger, Fertigation, ...), etc. | N12: Zwischenergebnisse nach Nährstoffbilanz | P12: kg Nverf | Q12: kg P2O5
O13: Maximal mögliche Zufuhren auf den Betrieb :
A15: Datum | B15: Parzelle | C15: Kultur | D15: Fläche | E15: Düngemittel | F15: totale | G15: Einheit | H15: Nährstoffgehalt: kg pro Einheit | L15: Nährstoffe total ausgebracht kg | P15: Kontrollrechnung: noch einsetzbar
D16: ha | E16: Art | F16: Menge | G16: kg,dt,m3, t | H16: N | I16: P2O5 | J16: K2O | K16: Mg | L16: Nverf | M16: P2O5 | N16: K2O | O16: Mg | P16: Saldo Nverf | Q16: Saldo P2O5
A17: 2021-03-01 | B17: Languri | C17: WW | D17: 3 | E17: Ammonsalpeter | F17: 5.5 | G17: dt | H17: 27 | L17: =F17*H17 -> 148.5 | M17: =F17*I17 -> 0 | N17: =F17*J17 -> 0 | O17: =F17*K17 -> 0 | P17: =IF(ISBLANK(F17),"",$P$13-SUM($L$17:L17)) -> -148.5 | Q17: =IF(ISBLANK(F17),"",$Q$13-SUM($M$17:M17)) -> 0 | S17: =IF(AND(ISBLANK(F17)=FALSE,ISBLANK(G17)),"Einheit eintragen (z.B. kg, dt, t, m3, etc.)","") -> 
L18: =F18*H18 -> 0 | M18: 0 | N18: 0 | O18: 0 | P18: =IF(ISBLANK(F18),"",$P$13-SUM($L$17:L18)) ->  | Q18: =IF(ISBLANK(F18),"",$Q$13-SUM($M$17:M18)) ->  | S18: =IF(AND(ISBLANK(F18)=FALSE,ISBLANK(G18)),"Einheit eintragen (z.B. kg, dt, t, m3, etc.)","") -> 
L19: 0 | M19: 0 | N19: 0 | O19: 0 | P19: =IF(ISBLANK(F19),"",$P$13-SUM($L$17:L19)) ->  | Q19: =IF(ISBLANK(F19),"",$Q$13-SUM($M$17:M19)) -> 
L20: 0 | M20: 0 | N20: 0 | O20: 0 | P20: =IF(ISBLANK(F20),"",$P$13-SUM($L$17:L20)) ->  | Q20: =IF(ISBLANK(F20),"",$Q$13-SUM($M$17:M20)) -> 
L21: 0 | M21: 0 | N21: 0 | O21: 0 | P21: =IF(ISBLANK(F21),"",$P$13-SUM($L$17:L21)) ->  | Q21: =IF(ISBLANK(F21),"",$Q$13-SUM($M$17:M21)) -> 
L22: 0 | M22: 0 | N22: 0 | O22: 0 | P22: =IF(ISBLANK(F22),"",$P$13-SUM($L$17:L22)) ->  | Q22: =IF(ISBLANK(F22),"",$Q$13-SUM($M$17:M22)) -> 
L23: 0 | M23: 0 | N23: 0 | O23: 0 | P23: =IF(ISBLANK(F23),"",$P$13-SUM($L$17:L23)) ->  | Q23: =IF(ISBLANK(F23),"",$Q$13-SUM($M$17:M23)) -> 
L24: 0 | M24: 0 | N24: 0 | O24: 0 | P24: =IF(ISBLANK(F24),"",$P$13-SUM($L$17:L24)) ->  | Q24: =IF(ISBLANK(F24),"",$Q$13-SUM($M$17:M24)) -> 
L25: 0 | M25: 0 | N25: 0 | O25: 0 | P25: =IF(ISBLANK(F25),"",$P$13-SUM($L$17:L25)) ->  | Q25: =IF(ISBLANK(F25),"",$Q$13-SUM($M$17:M25)) -> 
L26: 0 | M26: 0 | N26: 0 | O26: 0 | P26: =IF(ISBLANK(F26),"",$P$13-SUM($L$17:L26)) ->  | Q26: =IF(ISBLANK(F26),"",$Q$13-SUM($M$17:M26)) -> 
L27: 0 | M27: 0 | N27: 0 | O27: 0 | P27: =IF(ISBLANK(F27),"",$P$13-SUM($L$17:L27)) ->  | Q27: =IF(ISBLANK(F27),"",$Q$13-SUM($M$17:M27)) -> 
L28: 0 | M28: 0 | N28: 0 | O28: 0 | P28: =IF(ISBLANK(F28),"",$P$13-SUM($L$17:L28)) ->  | Q28: =IF(ISBLANK(F28),"",$Q$13-SUM($M$17:M28)) -> 
L29: 0 | M29: 0 | N29: 0 | O29: 0 | P29: =IF(ISBLANK(F29),"",$P$13-SUM($L$17:L29)) ->  | Q29: =IF(ISBLANK(F29),"",$Q$13-SUM($M$17:M29)) -> 
L30: 0 | M30: 0 | N30: 0 | O30: 0 | P30: =IF(ISBLANK(F30),"",$P$13-SUM($L$17:L30)) ->  | Q30: =IF(ISBLANK(F30),"",$Q$13-SUM($M$17:M30)) -> 
L31: 0 | M31: 0 | N31: 0 | O31: 0 | P31: =IF(ISBLANK(F31),"",$P$13-SUM($L$17:L31)) ->  | Q31: =IF(ISBLANK(F31),"",$Q$13-SUM($M$17:M31)) -> 
L32: 0 | M32: 0 | N32: 0 | O32: 0 | P32: =IF(ISBLANK(F32),"",$P$13-SUM($L$17:L32)) ->  | Q32: =IF(ISBLANK(F32),"",$Q$13-SUM($M$17:M32)) -> 
L33: 0 | M33: 0 | N33: 0 | O33: 0 | P33: =IF(ISBLANK(F33),"",$P$13-SUM($L$17:L33)) ->  | Q33: =IF(ISBLANK(F33),"",$Q$13-SUM($M$17:M33)) -> 
K34: Übertrag | L34: =SUM(L17:L33) -> 148.5 | M34: =SUM(M17:M33) -> 0 | N34: =SUM(N17:N33) -> 0 | O34: =SUM(O17:O33) -> 0 | P34: =P13-L34 -> -148.5 | Q34: =Q13-M34 -> 0
A36: Einsatz betriebsfremder Düngemittel | E36: =IF(OR(ISBLANK(I$8),ISBLANK(I$9)),"Zeitraum (von-bis) zu oberst eingeben","(Fortsetzung "&DAY(I$8)&"."&MONTH(I$8)&"."&YEAR(I$8)&" - "&DAY(I$9)&"."&MONTH(I$9)&"."&YEAR(I$9)&")") -> Zeitraum (von-bis) zu oberst eingeben | H36: Betrieb: | I36: =M$8&", "&M$9&", "&M$10 -> , , | P36: ="Nr. "&Q$8 -> Nr. | Q36: Blatt 2
A38: Datum | B38: Parzelle | C38: Kultur | D38: Fläche | E38: Düngemittel | F38: totale | G38: Einheit | H38: Nährstoffgehalt: kg pro Einheit | L38: Nährstoffe total ausgebracht kg | P38: Kontrollrechnung: noch einsetzbar
D39: ha | E39: Art | F39: Menge | G39: kg,dt,m3, t | H39: N | I39: P2O5 | J39: K2O | K39: Mg | L39: Nverf | M39: P2O5 | N39: K2O | O39: Mg | P39: Saldo Nverf | Q39: Saldo P2O5
K40: Übertrag | L40: =L34 -> 148.5 | M40: 0 | N40: 0 | O40: 0 | P40: -148.5 | Q40: 0
L41: =F41*H41 -> 0 | M41: =F41*I41 -> 0 | N41: =F41*J41 -> 0 | O41: =F41*K41 -> 0 | P41: =IF(ISBLANK(F41),"",$P$40-SUM($L$41:L41)) ->  | Q41: =IF(ISBLANK(F41),"",$Q$40-SUM($M$41:M41)) ->  | S41: =IF(AND(ISBLANK(F41)=FALSE,ISBLANK(G41)),"Einheit eintragen (z.B. kg, dt, t, m3, etc.)","") -> 
L42: 0 | M42: 0 | N42: 0 | O42: 0 | P42: =IF(ISBLANK(F42),"",$P$40-SUM($L$41:L42)) ->  | Q42: =IF(ISBLANK(F42),"",$Q$40-SUM($M$41:M42)) -> 
L43: 0 | M43: 0 | N43: 0 | O43: 0 | P43: =IF(ISBLANK(F43),"",$P$40-SUM($L$41:L43)) ->  | Q43: =IF(ISBLANK(F43),"",$Q$40-SUM($M$41:M43)) -> 
L44: 0 | M44: 0 | N44: 0 | O44: 0 | P44: =IF(ISBLANK(F44),"",$P$40-SUM($L$41:L44)) ->  | Q44: =IF(ISBLANK(F44),"",$Q$40-SUM($M$41:M44)) -> 
L45: 0 | M45: 0 | N45: 0 | O45: 0 | P45: =IF(ISBLANK(F45),"",$P$40-SUM($L$41:L45)) ->  | Q45: =IF(ISBLANK(F45),"",$Q$40-SUM($M$41:M45)) -> 
L46: 0 | M46: 0 | N46: 0 | O46: 0 | P46: =IF(ISBLANK(F46),"",$P$40-SUM($L$41:L46)) ->  | Q46: =IF(ISBLANK(F46),"",$Q$40-SUM($M$41:M46)) -> 
L47: 0 | M47: 0 | N47: 0 | O47: 0 | P47: =IF(ISBLANK(F47),"",$P$40-SUM($L$41:L47)) ->  | Q47: =IF(ISBLANK(F47),"",$Q$40-SUM($M$41:M47)) -> 
L48: 0 | M48: 0 | N48: 0 | O48: 0 | P48: =IF(ISBLANK(F48),"",$P$40-SUM($L$41:L48)) ->  | Q48: =IF(ISBLANK(F48),"",$Q$40-SUM($M$41:M48)) -> 
L49: 0 | M49: 0 | N49: 0 | O49: 0 | P49: =IF(ISBLANK(F49),"",$P$40-SUM($L$41:L49)) ->  | Q49: =IF(ISBLANK(F49),"",$Q$40-SUM($M$41:M49)) -> 
L50: 0 | M50: 0 | N50: 0 | O50: 0 | P50: =IF(ISBLANK(F50),"",$P$40-SUM($L$41:L50)) ->  | Q50: =IF(ISBLANK(F50),"",$Q$40-SUM($M$41:M50)) -> 
L51: 0 | M51: 0 | N51: 0 | O51: 0 | P51: =IF(ISBLANK(F51),"",$P$40-SUM($L$41:L51)) ->  | Q51: =IF(ISBLANK(F51),"",$Q$40-SUM($M$41:M51)) -> 
L52: 0 | M52: 0 | N52: 0 | O52: 0 | P52: =IF(ISBLANK(F52),"",$P$40-SUM($L$41:L52)) ->  | Q52: =IF(ISBLANK(F52),"",$Q$40-SUM($M$41:M52)) -> 
L53: 0 | M53: 0 | N53: 0 | O53: 0 | P53: =IF(ISBLANK(F53),"",$P$40-SUM($L$41:L53)) ->  | Q53: =IF(ISBLANK(F53),"",$Q$40-SUM($M$41:M53)) -> 
L54: 0 | M54: 0 | N54: 0 | O54: 0 | P54: =IF(ISBLANK(F54),"",$P$40-SUM($L$41:L54)) ->  | Q54: =IF(ISBLANK(F54),"",$Q$40-SUM($M$41:M54)) -> 
L55: 0 | M55: 0 | N55: 0 | O55: 0 | P55: =IF(ISBLANK(F55),"",$P$40-SUM($L$41:L55)) ->  | Q55: =IF(ISBLANK(F55),"",$Q$40-SUM($M$41:M55)) -> 
L56: 0 | M56: 0 | N56: 0 | O56: 0 | P56: =IF(ISBLANK(F56),"",$P$40-SUM($L$41:L56)) ->  | Q56: =IF(ISBLANK(F56),"",$Q$40-SUM($M$41:M56)) -> 
L57: 0 | M57: 0 | N57: 0 | O57: 0 | P57: =IF(ISBLANK(F57),"",$P$40-SUM($L$41:L57)) ->  | Q57: =IF(ISBLANK(F57),"",$Q$40-SUM($M$41:M57)) ->  | S57: =IF(AND(ISBLANK(F57)=FALSE,ISBLANK(G57)),"Einheit eintragen (z.B. kg, dt, t, m3, etc.)","") -> 
L58: 0 | M58: 0 | N58: 0 | O58: 0 | P58: =IF(ISBLANK(F58),"",$P$40-SUM($L$41:L58)) ->  | Q58: =IF(ISBLANK(F58),"",$Q$40-SUM($M$41:M58)) ->  | S58: =IF(AND(ISBLANK(F58)=FALSE,ISBLANK(G58)),"Einheit eintragen (z.B. kg, dt, t, m3, etc.)","") -> 
L59: 0 | M59: 0 | N59: 0 | O59: 0 | P59: =IF(ISBLANK(F59),"",$P$40-SUM($L$41:L59)) ->  | Q59: =IF(ISBLANK(F59),"",$Q$40-SUM($M$41:M59)) ->  | S59: =IF(AND(ISBLANK(F59)=FALSE,ISBLANK(G59)),"Einheit eintragen (z.B. kg, dt, t, m3, etc.)","") -> 
L60: 0 | M60: 0 | N60: 0 | O60: 0 | P60: =IF(ISBLANK(F60),"",$P$40-SUM($L$41:L60)) ->  | Q60: =IF(ISBLANK(F60),"",$Q$40-SUM($M$41:M60)) ->  | S60: =IF(AND(ISBLANK(F60)=FALSE,ISBLANK(G60)),"Einheit eintragen (z.B. kg, dt, t, m3, etc.)","") -> 
L61: 0 | M61: 0 | N61: 0 | O61: 0 | P61: =IF(ISBLANK(F61),"",$P$40-SUM($L$41:L61)) ->  | Q61: =IF(ISBLANK(F61),"",$Q$40-SUM($M$41:M61)) ->  | S61: =IF(AND(ISBLANK(F61)=FALSE,ISBLANK(G61)),"Einheit eintragen (z.B. kg, dt, t, m3, etc.)","") -> 
K62: Übertrag | L62: =SUM(L40:L61) -> 148.5 | M62: =SUM(M40:M61) -> 0 | N62: =SUM(N40:N61) -> 0 | O62: =SUM(O40:O61) -> 0 | P62: =$P$13-L62 -> -148.5 | Q62: =$Q$13-M62 -> 0
A64: Einsatz betriebsfremder Düngemittel | E64: =IF(OR(ISBLANK(I$8),ISBLANK(I$9)),"Zeitraum (von-bis) zu oberst eingeben","(Fortsetzung "&DAY(I$8)&"."&MONTH(I$8)&"."&YEAR(I$8)&" - "&DAY(I$9)&"."&MONTH(I$9)&"."&YEAR(I$9)&")") -> Zeitraum (von-bis) zu oberst eingeben | H64: Betrieb: | I64: =M$8&", "&M$9&", "&M$10 -> , , | P64: ="Nr. "&Q$8 -> Nr. | Q64: Blatt 3
A66: Datum | B66: Parzelle | C66: Kultur | D66: Fläche | E66: Düngemittel | F66: totale | G66: Einheit | H66: Nährstoffgehalt: kg pro Einheit | L66: Nährstoffe total ausgebracht kg | P66: Kontrollrechnung: noch einsetzbar
D67: ha | E67: Art | F67: Menge | G67: kg,dt,m3, t | H67: N | I67: P2O5 | J67: K2O | K67: Mg | L67: Nverf | M67: P2O5 | N67: K2O | O67: Mg | P67: Saldo Nverf | Q67: Saldo P2O5
K68: Übertrag | L68: =L62 -> 148.5 | M68: 0 | N68: 0 | O68: 0 | P68: -148.5 | Q68: 0
L69: =F69*H69 -> 0 | M69: =F69*I69 -> 0 | N69: =F69*J69 -> 0 | O69: =F69*K69 -> 0 | P69: =IF(ISBLANK(F69),"",$P$68-SUM($L$69:L69)) ->  | Q69: =IF(ISBLANK(F69),"",$Q$68-SUM($M$69:M69)) ->  | S69: =IF(AND(ISBLANK(F69)=FALSE,ISBLANK(G69)),"Einheit eintragen (z.B. kg, dt, t, m3, etc.)","") -> 
L70: 0 | M70: 0 | N70: 0 | O70: 0 | P70: =IF(ISBLANK(F70),"",$P$68-SUM($L$69:L70)) ->  | Q70: =IF(ISBLANK(F70),"",$Q$68-SUM($M$69:M70)) -> 
L71: 0 | M71: 0 | N71: 0 | O71: 0 | P71: =IF(ISBLANK(F71),"",$P$68-SUM($L$69:L71)) ->  | Q71: =IF(ISBLANK(F71),"",$Q$68-SUM($M$69:M71)) -> 
L72: 0 | M72: 0 | N72: 0 | O72: 0 | P72: =IF(ISBLANK(F72),"",$P$68-SUM($L$69:L72)) ->  | Q72: =IF(ISBLANK(F72),"",$Q$68-SUM($M$69:M72)) -> 
L73: 0 | M73: 0 | N73: 0 | O73: 0 | P73: =IF(ISBLANK(F73),"",$P$68-SUM($L$69:L73)) ->  | Q73: =IF(ISBLANK(F73),"",$Q$68-SUM($M$69:M73)) -> 
L74: 0 | M74: 0 | N74: 0 | O74: 0 | P74: =IF(ISBLANK(F74),"",$P$68-SUM($L$69:L74)) ->  | Q74: =IF(ISBLANK(F74),"",$Q$68-SUM($M$69:M74)) -> 
L75: 0 | M75: 0 | N75: 0 | O75: 0 | P75: =IF(ISBLANK(F75),"",$P$68-SUM($L$69:L75)) ->  | Q75: =IF(ISBLANK(F75),"",$Q$68-SUM($M$69:M75)) -> 
L76: 0 | M76: 0 | N76: 0 | O76: 0 | P76: =IF(ISBLANK(F76),"",$P$68-SUM($L$69:L76)) ->  | Q76: =IF(ISBLANK(F76),"",$Q$68-SUM($M$69:M76)) -> 
L77: 0 | M77: 0 | N77: 0 | O77: 0 | P77: =IF(ISBLANK(F77),"",$P$68-SUM($L$69:L77)) ->  | Q77: =IF(ISBLANK(F77),"",$Q$68-SUM($M$69:M77)) -> 
L78: 0 | M78: 0 | N78: 0 | O78: 0 | P78: =IF(ISBLANK(F78),"",$P$68-SUM($L$69:L78)) ->  | Q78: =IF(ISBLANK(F78),"",$Q$68-SUM($M$69:M78)) -> 
L79: 0 | M79: 0 | N79: 0 | O79: 0 | P79: =IF(ISBLANK(F79),"",$P$68-SUM($L$69:L79)) ->  | Q79: =IF(ISBLANK(F79),"",$Q$68-SUM($M$69:M79)) -> 
L80: 0 | M80: 0 | N80: 0 | O80: 0 | P80: =IF(ISBLANK(F80),"",$P$68-SUM($L$69:L80)) ->  | Q80: =IF(ISBLANK(F80),"",$Q$68-SUM($M$69:M80)) -> 
L81: 0 | M81: 0 | N81: 0 | O81: 0 | P81: =IF(ISBLANK(F81),"",$P$68-SUM($L$69:L81)) ->  | Q81: =IF(ISBLANK(F81),"",$Q$68-SUM($M$69:M81)) -> 
L82: 0 | M82: 0 | N82: 0 | O82: 0 | P82: =IF(ISBLANK(F82),"",$P$68-SUM($L$69:L82)) ->  | Q82: =IF(ISBLANK(F82),"",$Q$68-SUM($M$69:M82)) -> 
L83: 0 | M83: 0 | N83: 0 | O83: 0 | P83: =IF(ISBLANK(F83),"",$P$68-SUM($L$69:L83)) ->  | Q83: =IF(ISBLANK(F83),"",$Q$68-SUM($M$69:M83)) -> 
L84: 0 | M84: 0 | N84: 0 | O84: 0 | P84: =IF(ISBLANK(F84),"",$P$68-SUM($L$69:L84)) ->  | Q84: =IF(ISBLANK(F84),"",$Q$68-SUM($M$69:M84)) -> 
L85: 0 | M85: 0 | N85: 0 | O85: 0 | P85: =IF(ISBLANK(F85),"",$P$68-SUM($L$69:L85)) ->  | Q85: =IF(ISBLANK(F85),"",$Q$68-SUM($M$69:M85)) ->  | S85: =IF(AND(ISBLANK(F85)=FALSE,ISBLANK(G85)),"Einheit eintragen (z.B. kg, dt, t, m3, etc.)","") -> 
L86: 0 | M86: 0 | N86: 0 | O86: 0 | P86: =IF(ISBLANK(F86),"",$P$68-SUM($L$69:L86)) ->  | Q86: =IF(ISBLANK(F86),"",$Q$68-SUM($M$69:M86)) ->  | S86: =IF(AND(ISBLANK(F86)=FALSE,ISBLANK(G86)),"Einheit eintragen (z.B. kg, dt, t, m3, etc.)","") -> 
L87: 0 | M87: 0 | N87: 0 | O87: 0 | P87: =IF(ISBLANK(F87),"",$P$68-SUM($L$69:L87)) ->  | Q87: =IF(ISBLANK(F87),"",$Q$68-SUM($M$69:M87)) ->  | S87: =IF(AND(ISBLANK(F87)=FALSE,ISBLANK(G87)),"Einheit eintragen (z.B. kg, dt, t, m3, etc.)","") -> 
L88: 0 | M88: 0 | N88: 0 | O88: 0 | P88: =IF(ISBLANK(F88),"",$P$68-SUM($L$69:L88)) ->  | Q88: =IF(ISBLANK(F88),"",$Q$68-SUM($M$69:M88)) ->  | S88: =IF(AND(ISBLANK(F88)=FALSE,ISBLANK(G88)),"Einheit eintragen (z.B. kg, dt, t, m3, etc.)","") -> 
L89: 0 | M89: 0 | N89: 0 | O89: 0 | P89: =IF(ISBLANK(F89),"",$P$68-SUM($L$69:L89)) ->  | Q89: =IF(ISBLANK(F89),"",$Q$68-SUM($M$69:M89)) ->  | S89: =IF(AND(ISBLANK(F89)=FALSE,ISBLANK(G89)),"Einheit eintragen (z.B. kg, dt, t, m3, etc.)","") -> 
K90: Übertrag | L90: =SUM(L68:L89) -> 148.5 | M90: =SUM(M68:M89) -> 0 | N90: =SUM(N68:N89) -> 0 | O90: =SUM(O68:O89) -> 0 | P90: =$P$13-L90 -> -148.5 | Q90: =$Q$13-M90 -> 0
A92: Einsatz betriebsfremder Düngemittel | E92: =IF(OR(ISBLANK(I$8),ISBLANK(I$9)),"Zeitraum (von-bis) zu oberst eingeben","(Fortsetzung "&DAY(I$8)&"."&MONTH(I$8)&"."&YEAR(I$8)&" - "&DAY(I$9)&"."&MONTH(I$9)&"."&YEAR(I$9)&")") -> Zeitraum (von-bis) zu oberst eingeben | H92: Betrieb: | I92: =M$8&", "&M$9&", "&M$10 -> , , | P92: ="Nr. "&Q$8 -> Nr. | Q92: Blatt 4
A94: Datum | B94: Parzelle | C94: Kultur | D94: Fläche | E94: Düngemittel | F94: totale | G94: Einheit | H94: Nährstoffgehalt: kg pro Einheit | L94: Nährstoffe total ausgebracht kg | P94: Kontrollrechnung: noch einsetzbar
D95: ha | E95: Art | F95: Menge | G95: kg,dt,m3, t | H95: N | I95: P2O5 | J95: K2O | K95: Mg | L95: Nverf | M95: P2O5 | N95: K2O | O95: Mg | P95: Saldo Nverf | Q95: Saldo P2O5
K96: Übertrag | L96: =L90 -> 148.5 | M96: 0 | N96: 0 | O96: 0 | P96: -148.5 | Q96: 0
L97: =F97*H97 -> 0 | M97: =F97*I97 -> 0 | N97: =F97*J97 -> 0 | O97: =F97*K97 -> 0 | P97: =IF(ISBLANK(F97),"",$P$96-SUM($L$97:L97)) ->  | Q97: =IF(ISBLANK(F97),"",$Q$96-SUM($M$97:M97)) ->  | S97: =IF(AND(ISBLANK(F97)=FALSE,ISBLANK(G97)),"Einheit eintragen (z.B. kg, dt, t, m3, etc.)","") -> 
L98: 0 | M98: 0 | N98: 0 | O98: 0 | P98: =IF(ISBLANK(F98),"",$P$96-SUM($L$97:L98)) ->  | Q98: =IF(ISBLANK(F98),"",$Q$96-SUM($M$97:M98)) -> 
L99: 0 | M99: 0 | N99: 0 | O99: 0 | P99: =IF(ISBLANK(F99),"",$P$96-SUM($L$97:L99)) ->  | Q99: =IF(ISBLANK(F99),"",$Q$96-SUM($M$97:M99)) -> 
L100: 0 | M100: 0 | N100: 0 | O100: 0 | P100: =IF(ISBLANK(F100),"",$P$96-SUM($L$97:L100)) ->  | Q100: =IF(ISBLANK(F100),"",$Q$96-SUM($M$97:M100)) -> 
L101: 0 | M101: 0 | N101: 0 | O101: 0 | P101: =IF(ISBLANK(F101),"",$P$96-SUM($L$97:L101)) ->  | Q101: =IF(ISBLANK(F101),"",$Q$96-SUM($M$97:M101)) -> 
L102: 0 | M102: 0 | N102: 0 | O102: 0 | P102: =IF(ISBLANK(F102),"",$P$96-SUM($L$97:L102)) ->  | Q102: =IF(ISBLANK(F102),"",$Q$96-SUM($M$97:M102)) -> 
L103: 0 | M103: 0 | N103: 0 | O103: 0 | P103: =IF(ISBLANK(F103),"",$P$96-SUM($L$97:L103)) ->  | Q103: =IF(ISBLANK(F103),"",$Q$96-SUM($M$97:M103)) -> 
L104: 0 | M104: 0 | N104: 0 | O104: 0 | P104: =IF(ISBLANK(F104),"",$P$96-SUM($L$97:L104)) ->  | Q104: =IF(ISBLANK(F104),"",$Q$96-SUM($M$97:M104)) -> 
L105: 0 | M105: 0 | N105: 0 | O105: 0 | P105: =IF(ISBLANK(F105),"",$P$96-SUM($L$97:L105)) ->  | Q105: =IF(ISBLANK(F105),"",$Q$96-SUM($M$97:M105)) -> 
L106: 0 | M106: 0 | N106: 0 | O106: 0 | P106: =IF(ISBLANK(F106),"",$P$96-SUM($L$97:L106)) ->  | Q106: =IF(ISBLANK(F106),"",$Q$96-SUM($M$97:M106)) -> 
L107: 0 | M107: 0 | N107: 0 | O107: 0 | P107: =IF(ISBLANK(F107),"",$P$96-SUM($L$97:L107)) ->  | Q107: =IF(ISBLANK(F107),"",$Q$96-SUM($M$97:M107)) -> 
L108: 0 | M108: 0 | N108: 0 | O108: 0 | P108: =IF(ISBLANK(F108),"",$P$96-SUM($L$97:L108)) ->  | Q108: =IF(ISBLANK(F108),"",$Q$96-SUM($M$97:M108)) -> 
L109: 0 | M109: 0 | N109: 0 | O109: 0 | P109: =IF(ISBLANK(F109),"",$P$96-SUM($L$97:L109)) ->  | Q109: =IF(ISBLANK(F109),"",$Q$96-SUM($M$97:M109)) -> 
L110: 0 | M110: 0 | N110: 0 | O110: 0 | P110: =IF(ISBLANK(F110),"",$P$96-SUM($L$97:L110)) ->  | Q110: =IF(ISBLANK(F110),"",$Q$96-SUM($M$97:M110)) -> 
L111: 0 | M111: 0 | N111: 0 | O111: 0 | P111: =IF(ISBLANK(F111),"",$P$96-SUM($L$97:L111)) ->  | Q111: =IF(ISBLANK(F111),"",$Q$96-SUM($M$97:M111)) -> 
L112: 0 | M112: 0 | N112: 0 | O112: 0 | P112: =IF(ISBLANK(F112),"",$P$96-SUM($L$97:L112)) ->  | Q112: =IF(ISBLANK(F112),"",$Q$96-SUM($M$97:M112)) -> 
L113: 0 | M113: 0 | N113: 0 | O113: 0 | P113: =IF(ISBLANK(F113),"",$P$96-SUM($L$97:L113)) ->  | Q113: =IF(ISBLANK(F113),"",$Q$96-SUM($M$97:M113)) ->  | S113: =IF(AND(ISBLANK(F113)=FALSE,ISBLANK(G113)),"Einheit eintragen (z.B. kg, dt, t, m3, etc.)","") -> 
L114: 0 | M114: 0 | N114: 0 | O114: 0 | P114: =IF(ISBLANK(F114),"",$P$96-SUM($L$97:L114)) ->  | Q114: =IF(ISBLANK(F114),"",$Q$96-SUM($M$97:M114)) ->  | S114: =IF(AND(ISBLANK(F114)=FALSE,ISBLANK(G114)),"Einheit eintragen (z.B. kg, dt, t, m3, etc.)","") -> 
L115: 0 | M115: 0 | N115: 0 | O115: 0 | P115: =IF(ISBLANK(F115),"",$P$96-SUM($L$97:L115)) ->  | Q115: =IF(ISBLANK(F115),"",$Q$96-SUM($M$97:M115)) ->  | S115: =IF(AND(ISBLANK(F115)=FALSE,ISBLANK(G115)),"Einheit eintragen (z.B. kg, dt, t, m3, etc.)","") -> 
L116: 0 | M116: 0 | N116: 0 | O116: 0 | P116: =IF(ISBLANK(F116),"",$P$96-SUM($L$97:L116)) ->  | Q116: =IF(ISBLANK(F116),"",$Q$96-SUM($M$97:M116)) ->  | S116: =IF(AND(ISBLANK(F116)=FALSE,ISBLANK(G116)),"Einheit eintragen (z.B. kg, dt, t, m3, etc.)","") -> 
L117: 0 | M117: 0 | N117: 0 | O117: 0 | P117: =IF(ISBLANK(F117),"",$P$96-SUM($L$97:L117)) ->  | Q117: =IF(ISBLANK(F117),"",$Q$96-SUM($M$97:M117)) ->  | S117: =IF(AND(ISBLANK(F117)=FALSE,ISBLANK(G117)),"Einheit eintragen (z.B. kg, dt, t, m3, etc.)","") -> 
K118: Übertrag | L118: =SUM(L96:L117) -> 148.5 | M118: =SUM(M96:M117) -> 0 | N118: =SUM(N96:N117) -> 0 | O118: =SUM(O96:O117) -> 0 | P118: =$P$13-L118 -> -148.5 | Q118: =$Q$13-M118 -> 0
A120: Einsatz betriebsfremder Düngemittel | E120: =IF(OR(ISBLANK(I$8),ISBLANK(I$9)),"Zeitraum (von-bis) zu oberst eingeben","(Fortsetzung "&DAY(I$8)&"."&MONTH(I$8)&"."&YEAR(I$8)&" - "&DAY(I$9)&"."&MONTH(I$9)&"."&YEAR(I$9)&")") -> Zeitraum (von-bis) zu oberst eingeben | H120: Betrieb: | I120: =M$8&", "&M$9&", "&M$10 -> , , | P120: ="Nr. "&Q$8 -> Nr. | Q120: Blatt 5
A122: Datum | B122: Parzelle | C122: Kultur | D122: Fläche | E122: Düngemittel | F122: totale | G122: Einheit | H122: Nährstoffgehalt: kg pro Einheit | L122: Nährstoffe total ausgebracht kg | P122: Kontrollrechnung: noch einsetzbar
D123: ha | E123: Art | F123: Menge | G123: kg,dt,m3, t | H123: N | I123: P2O5 | J123: K2O | K123: Mg | L123: Nverf | M123: P2O5 | N123: K2O | O123: Mg | P123: Saldo Nverf | Q123: Saldo P2O5
K124: Übertrag | L124: =L118 -> 148.5 | M124: 0 | N124: 0 | O124: 0 | P124: -148.5 | Q124: 0
L125: =F125*H125 -> 0 | M125: =F125*I125 -> 0 | N125: =F125*J125 -> 0 | O125: =F125*K125 -> 0 | P125: =IF(ISBLANK(F125),"",$P$124-SUM($L$125:L125)) ->  | Q125: =IF(ISBLANK(F125),"",$Q$124-SUM($M$125:M125)) ->  | S125: =IF(AND(ISBLANK(F125)=FALSE,ISBLANK(G125)),"Einheit eintragen (z.B. kg, dt, t, m3, etc.)","") -> 
L126: 0 | M126: 0 | N126: 0 | O126: 0 | P126: =IF(ISBLANK(F126),"",$P$124-SUM($L$125:L126)) ->  | Q126: =IF(ISBLANK(F126),"",$Q$124-SUM($M$125:M126)) -> 
L127: 0 | M127: 0 | N127: 0 | O127: 0 | P127: =IF(ISBLANK(F127),"",$P$124-SUM($L$125:L127)) ->  | Q127: =IF(ISBLANK(F127),"",$Q$124-SUM($M$125:M127)) -> 
L128: 0 | M128: 0 | N128: 0 | O128: 0 | P128: =IF(ISBLANK(F128),"",$P$124-SUM($L$125:L128)) ->  | Q128: =IF(ISBLANK(F128),"",$Q$124-SUM($M$125:M128)) -> 
L129: 0 | M129: 0 | N129: 0 | O129: 0 | P129: =IF(ISBLANK(F129),"",$P$124-SUM($L$125:L129)) ->  | Q129: =IF(ISBLANK(F129),"",$Q$124-SUM($M$125:M129)) -> 
L130: 0 | M130: 0 | N130: 0 | O130: 0 | P130: =IF(ISBLANK(F130),"",$P$124-SUM($L$125:L130)) ->  | Q130: =IF(ISBLANK(F130),"",$Q$124-SUM($M$125:M130)) -> 
L131: 0 | M131: 0 | N131: 0 | O131: 0 | P131: =IF(ISBLANK(F131),"",$P$124-SUM($L$125:L131)) ->  | Q131: =IF(ISBLANK(F131),"",$Q$124-SUM($M$125:M131)) -> 
L132: 0 | M132: 0 | N132: 0 | O132: 0 | P132: =IF(ISBLANK(F132),"",$P$124-SUM($L$125:L132)) ->  | Q132: =IF(ISBLANK(F132),"",$Q$124-SUM($M$125:M132)) -> 
L133: 0 | M133: 0 | N133: 0 | O133: 0 | P133: =IF(ISBLANK(F133),"",$P$124-SUM($L$125:L133)) ->  | Q133: =IF(ISBLANK(F133),"",$Q$124-SUM($M$125:M133)) -> 
L134: 0 | M134: 0 | N134: 0 | O134: 0 | P134: =IF(ISBLANK(F134),"",$P$124-SUM($L$125:L134)) ->  | Q134: =IF(ISBLANK(F134),"",$Q$124-SUM($M$125:M134)) -> 
L135: 0 | M135: 0 | N135: 0 | O135: 0 | P135: =IF(ISBLANK(F135),"",$P$124-SUM($L$125:L135)) ->  | Q135: =IF(ISBLANK(F135),"",$Q$124-SUM($M$125:M135)) -> 
L136: 0 | M136: 0 | N136: 0 | O136: 0 | P136: =IF(ISBLANK(F136),"",$P$124-SUM($L$125:L136)) ->  | Q136: =IF(ISBLANK(F136),"",$Q$124-SUM($M$125:M136)) -> 
L137: 0 | M137: 0 | N137: 0 | O137: 0 | P137: =IF(ISBLANK(F137),"",$P$124-SUM($L$125:L137)) ->  | Q137: =IF(ISBLANK(F137),"",$Q$124-SUM($M$125:M137)) -> 
L138: 0 | M138: 0 | N138: 0 | O138: 0 | P138: =IF(ISBLANK(F138),"",$P$124-SUM($L$125:L138)) ->  | Q138: =IF(ISBLANK(F138),"",$Q$124-SUM($M$125:M138)) -> 
L139: 0 | M139: 0 | N139: 0 | O139: 0 | P139: =IF(ISBLANK(F139),"",$P$124-SUM($L$125:L139)) ->  | Q139: =IF(ISBLANK(F139),"",$Q$124-SUM($M$125:M139)) -> 
L140: 0 | M140: 0 | N140: 0 | O140: 0 | P140: =IF(ISBLANK(F140),"",$P$124-SUM($L$125:L140)) ->  | Q140: =IF(ISBLANK(F140),"",$Q$124-SUM($M$125:M140)) -> 
L141: 0 | M141: 0 | N141: 0 | O141: 0 | P141: =IF(ISBLANK(F141),"",$P$124-SUM($L$125:L141)) ->  | Q141: =IF(ISBLANK(F141),"",$Q$124-SUM($M$125:M141)) ->  | S141: =IF(AND(ISBLANK(F141)=FALSE,ISBLANK(G141)),"Einheit eintragen (z.B. kg, dt, t, m3, etc.)","") -> 
L142: 0 | M142: 0 | N142: 0 | O142: 0 | P142: =IF(ISBLANK(F142),"",$P$124-SUM($L$125:L142)) ->  | Q142: =IF(ISBLANK(F142),"",$Q$124-SUM($M$125:M142)) ->  | S142: =IF(AND(ISBLANK(F142)=FALSE,ISBLANK(G142)),"Einheit eintragen (z.B. kg, dt, t, m3, etc.)","") -> 
L143: 0 | M143: 0 | N143: 0 | O143: 0 | P143: =IF(ISBLANK(F143),"",$P$124-SUM($L$125:L143)) ->  | Q143: =IF(ISBLANK(F143),"",$Q$124-SUM($M$125:M143)) ->  | S143: =IF(AND(ISBLANK(F143)=FALSE,ISBLANK(G143)),"Einheit eintragen (z.B. kg, dt, t, m3, etc.)","") -> 
L144: 0 | M144: 0 | N144: 0 | O144: 0 | P144: =IF(ISBLANK(F144),"",$P$124-SUM($L$125:L144)) ->  | Q144: =IF(ISBLANK(F144),"",$Q$124-SUM($M$125:M144)) ->  | S144: =IF(AND(ISBLANK(F144)=FALSE,ISBLANK(G144)),"Einheit eintragen (z.B. kg, dt, t, m3, etc.)","") -> 
L145: 0 | M145: 0 | N145: 0 | O145: 0 | P145: =IF(ISBLANK(F145),"",$P$124-SUM($L$125:L145)) ->  | Q145: =IF(ISBLANK(F145),"",$Q$124-SUM($M$125:M145)) ->  | S145: =IF(AND(ISBLANK(F145)=FALSE,ISBLANK(G145)),"Einheit eintragen (z.B. kg, dt, t, m3, etc.)","") -> 
K146: Übertrag | L146: =SUM(L124:L145) -> 148.5 | M146: =SUM(M124:M145) -> 0 | N146: =SUM(N124:N145) -> 0 | O146: =SUM(O124:O145) -> 0 | P146: =$P$13-L146 -> -148.5 | Q146: =$Q$13-M146 -> 0
A148: Einsatz betriebsfremder Düngemittel | E148: =IF(OR(ISBLANK(I$8),ISBLANK(I$9)),"Zeitraum (von-bis) zu oberst eingeben","(Fortsetzung "&DAY(I$8)&"."&MONTH(I$8)&"."&YEAR(I$8)&" - "&DAY(I$9)&"."&MONTH(I$9)&"."&YEAR(I$9)&")") -> Zeitraum (von-bis) zu oberst eingeben | H148: Betrieb: | I148: =M$8&", "&M$9&", "&M$10 -> , , | P148: ="Nr. "&Q$8 -> Nr. | Q148: Blatt 6
A150: Datum | B150: Parzelle | C150: Kultur | D150: Fläche | E150: Düngemittel | F150: totale | G150: Einheit | H150: Nährstoffgehalt: kg pro Einheit | L150: Nährstoffe total ausgebracht kg | P150: Kontrollrechnung: noch einsetzbar
D151: ha | E151: Art | F151: Menge | G151: kg,dt,m3, t | H151: N | I151: P2O5 | J151: K2O | K151: Mg | L151: Nverf | M151: P2O5 | N151: K2O | O151: Mg | P151: Saldo Nverf | Q151: Saldo P2O5
K152: Übertrag | L152: =L146 -> 148.5 | M152: 0 | N152: 0 | O152: 0 | P152: -148.5 | Q152: 0
L153: =F153*H153 -> 0 | M153: =F153*I153 -> 0 | N153: =F153*J153 -> 0 | O153: =F153*K153 -> 0 | P153: =IF(ISBLANK(F153),"",$P$152-SUM($L$153:L153)) ->  | Q153: =IF(ISBLANK(F153),"",$Q$152-SUM($M$153:M153)) ->  | S153: =IF(AND(ISBLANK(F153)=FALSE,ISBLANK(G153)),"Einheit eintragen (z.B. kg, dt, t, m3, etc.)","") -> 
L154: 0 | M154: 0 | N154: 0 | O154: 0 | P154: =IF(ISBLANK(F154),"",$P$152-SUM($L$153:L154)) ->  | Q154: =IF(ISBLANK(F154),"",$Q$152-SUM($M$153:M154)) -> 
L155: 0 | M155: 0 | N155: 0 | O155: 0 | P155: =IF(ISBLANK(F155),"",$P$152-SUM($L$153:L155)) ->  | Q155: =IF(ISBLANK(F155),"",$Q$152-SUM($M$153:M155)) -> 
L156: 0 | M156: 0 | N156: 0 | O156: 0 | P156: =IF(ISBLANK(F156),"",$P$152-SUM($L$153:L156)) ->  | Q156: =IF(ISBLANK(F156),"",$Q$152-SUM($M$153:M156)) -> 
L157: 0 | M157: 0 | N157: 0 | O157: 0 | P157: =IF(ISBLANK(F157),"",$P$152-SUM($L$153:L157)) ->  | Q157: =IF(ISBLANK(F157),"",$Q$152-SUM($M$153:M157)) -> 
L158: 0 | M158: 0 | N158: 0 | O158: 0 | P158: =IF(ISBLANK(F158),"",$P$152-SUM($L$153:L158)) ->  | Q158: =IF(ISBLANK(F158),"",$Q$152-SUM($M$153:M158)) -> 
L159: 0 | M159: 0 | N159: 0 | O159: 0 | P159: =IF(ISBLANK(F159),"",$P$152-SUM($L$153:L159)) ->  | Q159: =IF(ISBLANK(F159),"",$Q$152-SUM($M$153:M159)) -> 
L160: 0 | M160: 0 | N160: 0 | O160: 0 | P160: =IF(ISBLANK(F160),"",$P$152-SUM($L$153:L160)) ->  | Q160: =IF(ISBLANK(F160),"",$Q$152-SUM($M$153:M160)) -> 
L161: 0 | M161: 0 | N161: 0 | O161: 0 | P161: =IF(ISBLANK(F161),"",$P$152-SUM($L$153:L161)) ->  | Q161: =IF(ISBLANK(F161),"",$Q$152-SUM($M$153:M161)) -> 
L162: 0 | M162: 0 | N162: 0 | O162: 0 | P162: =IF(ISBLANK(F162),"",$P$152-SUM($L$153:L162)) ->  | Q162: =IF(ISBLANK(F162),"",$Q$152-SUM($M$153:M162)) -> 
L163: 0 | M163: 0 | N163: 0 | O163: 0 | P163: =IF(ISBLANK(F163),"",$P$152-SUM($L$153:L163)) ->  | Q163: =IF(ISBLANK(F163),"",$Q$152-SUM($M$153:M163)) -> 
L164: 0 | M164: 0 | N164: 0 | O164: 0 | P164: =IF(ISBLANK(F164),"",$P$152-SUM($L$153:L164)) ->  | Q164: =IF(ISBLANK(F164),"",$Q$152-SUM($M$153:M164)) -> 
L165: 0 | M165: 0 | N165: 0 | O165: 0 | P165: =IF(ISBLANK(F165),"",$P$152-SUM($L$153:L165)) ->  | Q165: =IF(ISBLANK(F165),"",$Q$152-SUM($M$153:M165)) -> 
L166: 0 | M166: 0 | N166: 0 | O166: 0 | P166: =IF(ISBLANK(F166),"",$P$152-SUM($L$153:L166)) ->  | Q166: =IF(ISBLANK(F166),"",$Q$152-SUM($M$153:M166)) -> 
L167: 0 | M167: 0 | N167: 0 | O167: 0 | P167: =IF(ISBLANK(F167),"",$P$152-SUM($L$153:L167)) ->  | Q167: =IF(ISBLANK(F167),"",$Q$152-SUM($M$153:M167)) -> 
L168: 0 | M168: 0 | N168: 0 | O168: 0 | P168: =IF(ISBLANK(F168),"",$P$152-SUM($L$153:L168)) ->  | Q168: =IF(ISBLANK(F168),"",$Q$152-SUM($M$153:M168)) -> 
L169: =F169*H169 -> 0 | M169: =F169*I169 -> 0 | N169: =F169*J169 -> 0 | O169: =F169*K169 -> 0 | P169: =IF(ISBLANK(F169),"",$P$152-SUM($L$153:L169)) ->  | Q169: =IF(ISBLANK(F169),"",$Q$152-SUM($M$153:M169)) ->  | S169: =IF(AND(ISBLANK(F169)=FALSE,ISBLANK(G169)),"Einheit eintragen (z.B. kg, dt, t, m3, etc.)","") -> 
L170: =F170*H170 -> 0 | M170: =F170*I170 -> 0 | N170: =F170*J170 -> 0 | O170: =F170*K170 -> 0 | P170: =IF(ISBLANK(F170),"",$P$152-SUM($L$153:L170)) ->  | Q170: =IF(ISBLANK(F170),"",$Q$152-SUM($M$153:M170)) ->  | S170: =IF(AND(ISBLANK(F170)=FALSE,ISBLANK(G170)),"Einheit eintragen (z.B. kg, dt, t, m3, etc.)","") -> 
L171: =F171*H171 -> 0 | M171: =F171*I171 -> 0 | N171: =F171*J171 -> 0 | O171: =F171*K171 -> 0 | P171: =IF(ISBLANK(F171),"",$P$152-SUM($L$153:L171)) ->  | Q171: =IF(ISBLANK(F171),"",$Q$152-SUM($M$153:M171)) ->  | S171: =IF(AND(ISBLANK(F171)=FALSE,ISBLANK(G171)),"Einheit eintragen (z.B. kg, dt, t, m3, etc.)","") -> 
L172: =F172*H172 -> 0 | M172: =F172*I172 -> 0 | N172: =F172*J172 -> 0 | O172: =F172*K172 -> 0 | P172: =IF(ISBLANK(F172),"",$P$152-SUM($L$153:L172)) ->  | Q172: =IF(ISBLANK(F172),"",$Q$152-SUM($M$153:M172)) ->  | S172: =IF(AND(ISBLANK(F172)=FALSE,ISBLANK(G172)),"Einheit eintragen (z.B. kg, dt, t, m3, etc.)","") -> 
L173: =F173*H173 -> 0 | M173: =F173*I173 -> 0 | N173: =F173*J173 -> 0 | O173: =F173*K173 -> 0 | P173: =IF(ISBLANK(F173),"",$P$152-SUM($L$153:L173)) ->  | Q173: =IF(ISBLANK(F173),"",$Q$152-SUM($M$153:M173)) ->  | S173: =IF(AND(ISBLANK(F173)=FALSE,ISBLANK(G173)),"Einheit eintragen (z.B. kg, dt, t, m3, etc.)","") -> 
K174: Übertrag | L174: =SUM(L152:L173) -> 148.5 | M174: =SUM(M152:M173) -> 0 | N174: =SUM(N152:N173) -> 0 | O174: =SUM(O152:O173) -> 0 | P174: =$P$13-L174 -> -148.5 | Q174: =$Q$13-M174 -> 0
A176: Einsatz betriebsfremder Düngemittel | E176: =IF(OR(ISBLANK(I$8),ISBLANK(I$9)),"Zeitraum (von-bis) zu oberst eingeben","(Fortsetzung "&DAY(I$8)&"."&MONTH(I$8)&"."&YEAR(I$8)&" - "&DAY(I$9)&"."&MONTH(I$9)&"."&YEAR(I$9)&")") -> Zeitraum (von-bis) zu oberst eingeben | H176: Betrieb: | I176: =M$8&", "&M$9&", "&M$10 -> , , | P176: ="Nr. "&Q$8 -> Nr. | Q176: Blatt 7
A178: Datum | B178: Parzelle | C178: Kultur | D178: Fläche | E178: Düngemittel | F178: totale | G178: Einheit | H178: Nährstoffgehalt: kg pro Einheit | L178: Nährstoffe total ausgebracht kg | P178: Kontrollrechnung: noch einsetzbar
D179: ha | E179: Art | F179: Menge | G179: kg,dt,m3, t | H179: N | I179: P2O5 | J179: K2O | K179: Mg | L179: Nverf | M179: P2O5 | N179: K2O | O179: Mg | P179: Saldo Nverf | Q179: Saldo P2O5
K180: Übertrag | L180: =L174 -> 148.5 | M180: 0 | N180: 0 | O180: 0 | P180: -148.5 | Q180: 0
L181: =F181*H181 -> 0 | M181: =F181*I181 -> 0 | N181: =F181*J181 -> 0 | O181: =F181*K181 -> 0 | P181: =IF(ISBLANK(F181),"",$P$180-SUM($L$181:L181)) ->  | Q181: =IF(ISBLANK(F181),"",$Q$180-SUM($M$181:M181)) ->  | S181: =IF(AND(ISBLANK(F181)=FALSE,ISBLANK(G181)),"Einheit eintragen (z.B. kg, dt, t, m3, etc.)","") -> 
L182: 0 | M182: 0 | N182: 0 | O182: 0 | P182: =IF(ISBLANK(F182),"",$P$180-SUM($L$181:L182)) ->  | Q182: =IF(ISBLANK(F182),"",$Q$180-SUM($M$181:M182)) -> 
L183: 0 | M183: 0 | N183: 0 | O183: 0 | P183: =IF(ISBLANK(F183),"",$P$180-SUM($L$181:L183)) ->  | Q183: =IF(ISBLANK(F183),"",$Q$180-SUM($M$181:M183)) -> 
L184: 0 | M184: 0 | N184: 0 | O184: 0 | P184: =IF(ISBLANK(F184),"",$P$180-SUM($L$181:L184)) ->  | Q184: =IF(ISBLANK(F184),"",$Q$180-SUM($M$181:M184)) -> 
L185: 0 | M185: 0 | N185: 0 | O185: 0 | P185: =IF(ISBLANK(F185),"",$P$180-SUM($L$181:L185)) ->  | Q185: =IF(ISBLANK(F185),"",$Q$180-SUM($M$181:M185)) -> 
L186: 0 | M186: 0 | N186: 0 | O186: 0 | P186: =IF(ISBLANK(F186),"",$P$180-SUM($L$181:L186)) ->  | Q186: =IF(ISBLANK(F186),"",$Q$180-SUM($M$181:M186)) -> 
L187: 0 | M187: 0 | N187: 0 | O187: 0 | P187: =IF(ISBLANK(F187),"",$P$180-SUM($L$181:L187)) ->  | Q187: =IF(ISBLANK(F187),"",$Q$180-SUM($M$181:M187)) -> 
L188: 0 | M188: 0 | N188: 0 | O188: 0 | P188: =IF(ISBLANK(F188),"",$P$180-SUM($L$181:L188)) ->  | Q188: =IF(ISBLANK(F188),"",$Q$180-SUM($M$181:M188)) -> 
L189: 0 | M189: 0 | N189: 0 | O189: 0 | P189: =IF(ISBLANK(F189),"",$P$180-SUM($L$181:L189)) ->  | Q189: =IF(ISBLANK(F189),"",$Q$180-SUM($M$181:M189)) -> 
L190: 0 | M190: 0 | N190: 0 | O190: 0 | P190: =IF(ISBLANK(F190),"",$P$180-SUM($L$181:L190)) ->  | Q190: =IF(ISBLANK(F190),"",$Q$180-SUM($M$181:M190)) -> 
L191: 0 | M191: 0 | N191: 0 | O191: 0 | P191: =IF(ISBLANK(F191),"",$P$180-SUM($L$181:L191)) ->  | Q191: =IF(ISBLANK(F191),"",$Q$180-SUM($M$181:M191)) -> 
L192: 0 | M192: 0 | N192: 0 | O192: 0 | P192: =IF(ISBLANK(F192),"",$P$180-SUM($L$181:L192)) ->  | Q192: =IF(ISBLANK(F192),"",$Q$180-SUM($M$181:M192)) -> 
L193: 0 | M193: 0 | N193: 0 | O193: 0 | P193: =IF(ISBLANK(F193),"",$P$180-SUM($L$181:L193)) ->  | Q193: =IF(ISBLANK(F193),"",$Q$180-SUM($M$181:M193)) -> 
L194: 0 | M194: 0 | N194: 0 | O194: 0 | P194: =IF(ISBLANK(F194),"",$P$180-SUM($L$181:L194)) ->  | Q194: =IF(ISBLANK(F194),"",$Q$180-SUM($M$181:M194)) -> 
L195: 0 | M195: 0 | N195: 0 | O195: 0 | P195: =IF(ISBLANK(F195),"",$P$180-SUM($L$181:L195)) ->  | Q195: =IF(ISBLANK(F195),"",$Q$180-SUM($M$181:M195)) -> 
L196: 0 | M196: 0 | N196: 0 | O196: 0 | P196: =IF(ISBLANK(F196),"",$P$180-SUM($L$181:L196)) ->  | Q196: =IF(ISBLANK(F196),"",$Q$180-SUM($M$181:M196)) -> 
L197: =F197*H197 -> 0 | M197: =F197*I197 -> 0 | N197: =F197*J197 -> 0 | O197: =F197*K197 -> 0 | P197: =IF(ISBLANK(F197),"",$P$180-SUM($L$181:L197)) ->  | Q197: =IF(ISBLANK(F197),"",$Q$180-SUM($M$181:M197)) ->  | S197: =IF(AND(ISBLANK(F197)=FALSE,ISBLANK(G197)),"Einheit eintragen (z.B. kg, dt, t, m3, etc.)","") -> 
L198: =F198*H198 -> 0 | M198: =F198*I198 -> 0 | N198: =F198*J198 -> 0 | O198: =F198*K198 -> 0 | P198: =IF(ISBLANK(F198),"",$P$180-SUM($L$181:L198)) ->  | Q198: =IF(ISBLANK(F198),"",$Q$180-SUM($M$181:M198)) ->  | S198: =IF(AND(ISBLANK(F198)=FALSE,ISBLANK(G198)),"Einheit eintragen (z.B. kg, dt, t, m3, etc.)","") -> 
L199: =F199*H199 -> 0 | M199: =F199*I199 -> 0 | N199: =F199*J199 -> 0 | O199: =F199*K199 -> 0 | P199: =IF(ISBLANK(F199),"",$P$180-SUM($L$181:L199)) ->  | Q199: =IF(ISBLANK(F199),"",$Q$180-SUM($M$181:M199)) ->  | S199: =IF(AND(ISBLANK(F199)=FALSE,ISBLANK(G199)),"Einheit eintragen (z.B. kg, dt, t, m3, etc.)","") -> 
L200: =F200*H200 -> 0 | M200: =F200*I200 -> 0 | N200: =F200*J200 -> 0 | O200: =F200*K200 -> 0 | P200: =IF(ISBLANK(F200),"",$P$180-SUM($L$181:L200)) ->  | Q200: =IF(ISBLANK(F200),"",$Q$180-SUM($M$181:M200)) ->  | S200: =IF(AND(ISBLANK(F200)=FALSE,ISBLANK(G200)),"Einheit eintragen (z.B. kg, dt, t, m3, etc.)","") -> 
L201: =F201*H201 -> 0 | M201: =F201*I201 -> 0 | N201: =F201*J201 -> 0 | O201: =F201*K201 -> 0 | P201: =IF(ISBLANK(F201),"",$P$180-SUM($L$181:L201)) ->  | Q201: =IF(ISBLANK(F201),"",$Q$180-SUM($M$181:M201)) ->  | S201: =IF(AND(ISBLANK(F201)=FALSE,ISBLANK(G201)),"Einheit eintragen (z.B. kg, dt, t, m3, etc.)","") -> 
K202: Übertrag | L202: =SUM(L180:L201) -> 148.5 | M202: =SUM(M180:M201) -> 0 | N202: =SUM(N180:N201) -> 0 | O202: =SUM(O180:O201) -> 0 | P202: =$P$13-L202 -> -148.5 | Q202: =$Q$13-M202 -> 0

Sheet Daten
A1: Spalten für Listen (Daten > Gültigkeit > Liste) | E1: Datentabelle für Nährstoffhaushalt-Berechnung mit EXCEL-Prg. SB 1.17 (nach Wegleitung Suisse-Bilanz, BLW / agridea) | N1: Bem./Hinweise | O1: Korrektur N-Düngung (Grudaf Tab. 17) | X1: für | Y1: =Suisse_Bilanz_1.17!K7 -> ÖLN | Z1: stop | AA1: für BIO-Variante | AB1: Sollte mind. 80% sein, wegen N-Korrektur (wenn mit BIO-Standard-Ertrag gerechnet wird d.h. kein betriebsspez. Ertrag eingegeben wird)
A3: Namen (Einfügen Namen definieren) | D3: Bemerkungen | E3: Abkürz. | F3: Kultur | G3: Einheit | H3: Ertrag | I3: N | J3: P2O5 | K3: K2O | L3: Mg | M3: Code Betriebs-erhebungs-formular | O3: N-Korrektur- | P3: max. | Q3: max. N- | S3: Bemerkungen | Y3: Standard- | AA3: BIO-Standard-
H4: pro ha | I4: kg /ha | J4: kg pro Ertragseinheit oder ha | O4: Faktor | P4: Ertrag | Q4: Zuschlag | Y4: ertrag | AA4: Ertrag (Kt. TG)
A5: Kulturen_ | E5: Ackerkulturen, Gründüngung (= offenes Ackerland) | O5: kg N / dt Körner | P5: dt/ha | Q5: kg N/ha | Y5: in SB | AA5: pro ha | AB5: in % REF-Ertrag
A6: Acker | B6: =F6 -> - | E6: 0 | F6: - | AB6: =IF(AND(ISNUMBER(H6),H6>0),IF(AA6/H6<0.8,"Bio-Ertrag zu tief",AA6/H6),"") -> 
B7: Ackerbohnen | E7: ab | F7: Ackerbohnen | G7: dt Kö | H7: 40 | I7: 0 | J7: 1.4 | K7: 2.13 | L7: 0.25 | M7: 536 | Y7: =IF(Y$1="BIO",AA7,H7) -> 40 | AA7: 40 | AB7: =IF(AND(ISNUMBER(H7),H7>0),IF(AA7/H7<0.8,"Bio-Ertrag zu tief",AA7/H7),"") -> 1
B8: Ackerschonstreifen | D8: neu 1.13 | E8: as | F8: Ackerschonstreifen | G8: ha | H8: 0 | I8: 0 | J8: 40 | K8: 5 | L8: 6 | S8: Angabe in kg/ha, nicht an Ertrag anzupassen | Y8: =IF(Y$1="BIO",AA8,H8) -> 0 | AA8: 0
B9: CCM-Mais | E9: ccm | F9: CCM-Mais | G9: dt Kö | H9: 100 | I9: 110 | J9: 0.76 | K9: 0.4 | L9: 0.09 | S9: mit Norm von Körnermais rechnen, unabhängig vom TS-Gehalt (= Anweisung BLW/Qualinova, 2018) | Y9: 100 | AA9: 80 | AB9: 0.8
B10: Eiweisserbsen | E10: ee | F10: Eiweisserbsen | G10: dt Kö | H10: 40 | I10: 0 | J10: 0.98 | K10: 1.84 | L10: 0.13 | M10: 537 | Y10: 40 | AA10: 50 | AB10: 1.25
B11: Emmer / Einkorn | E11: em | F11: Emmer / Einkorn | G11: dt Kö | H11: 25 | I11: 30 | J11: 0.8 | K11: 0.06 | L11: 0.16 | M11: 511 | Y11: 25 | AA11: 25 | AB11: 1
B12: Frühkartoffeln | E12: fk | F12: Frühkartoffeln | G12: dt Knollen | H12: 300 | I12: 110 | J12: 0.19 | K12: 0.69 | L12: 0.03 | M12: 524 | N12: entweder alle Kart. als "Standard-Kart." erfassen oder alle sortenspezifisch | Y12: 300 | AA12: 250 | AB12: 0.8333333333
B13: Frühkartoffeln Gruppe a | E13: fka | F13: Frühkartoffeln Gruppe a | G13: dt Knollen | H13: 300 | I13: 70 | J13: 0.19 | K13: 0.69 | L13: 0.03 | M13: 524 | N13: Gruppe a (geringer N-Bedarf): Agria, Fontane, Jelly, Nicola | Y13: 300 | AA13: 250 | AB13: =IF(AND(ISNUMBER(H13),H13>0),IF(AA13/H13<0.8,"Bio-Ertrag zu tief",AA13/H13),"") -> 0.8333333333
B14: Frühkartoffeln Gruppe b | E14: fkb | F14: Frühkartoffeln Gruppe b | G14: dt Knollen | H14: 300 | I14: 110 | J14: 0.19 | K14: 0.69 | L14: 0.03 | M14: 524 | N14: Gruppe b (N-Standardbedarf): alle Sorten, die nicht in Gruppe a oder Gruppe c sind (Agata, Annabelle, Amandine, Bintje, Celtiane, Challenger, Désireée, Ditta, Erika, Gourmandine, Gwenne, Hermes, Lady Christl, Laura, Markies, Panda, Pirol, Venezia, Verdi, weitere nicht aufgeführte Sorten | Y14: 300 | AA14: 250 | AB14: 0.8333333333
B15: Frühkartoffeln Gruppe c | E15: fkc | F15: Frühkartoffeln Gruppe c | G15: dt Knollen | H15: 300 | I15: 150 | J15: 0.19 | K15: 0.69 | L15: 0.03 | M15: 524 | N15: Gruppe c (höherer N-Bedarf): Charlotte, Innovator, Lady Claire, Lady Rosetta, Victoria | Y15: 300 | AA15: 250 | AB15: 0.8333333333
B16: Futterrüben -> Eingabe bei Grundfutterproduktion ! | E16: fr | F16: Futterrüben -> Eingabe bei Grundfutterproduktion ! | M16: 523 | Y16: 0 | AA16: 0
B17: Gründüngung (Nichtlegum., 35 dt TS) | E17: gd | F17: Gründüngung (Nichtlegum., 35 dt TS) | G17: ha | I17: 30 | J17: 0 | K17: 0 | L17: 0 | S17: Norm-Ansatz in kg/ha | Y17: 0 | AA17: 0
B18: Gründüngung (Leguminosen, 35 dt TS) | E18: gdl | F18: Gründüngung (Leguminosen, 35 dt TS) | G18: ha | I18: 0 | J18: 0 | K18: 0 | L18: 0 | S18: Norm-Ansatz in kg/ha | Y18: 0 | AA18: 0
B19: Grünmais (2. Kultur) -> Eingabe bei Grundfutterproduktion ! | E19: gm | F19: Grünmais (2. Kultur) -> Eingabe bei Grundfutterproduktion ! | Y19: 0 | AA19: 0
B20: Hanf, Faser- | E20: haf | F20: Hanf, Faser- | G20: dt Hauptprodukt | H20: 100 | I20: 100 | J20: 0.3 | K20: 0.9 | L20: 0.05 | M20: 535 | Y20: 100 | AA20: 100 | AB20: 1
B21: Hanf, Oel- | E21: haö | F21: Hanf, Oel- | G21: dt Kö | H21: 13 | I21: 60 | J21: 2.54 | K21: 1.08 | L21: 0.54 | M21: 535 | Y21: 13 | AA21: 13 | AB21: 1
B22: Hirse | E22: hir | F22: Hirse | G22: dt Kö | H22: 35 | I22: 70 | J22: 0.66 | K22: 0.29 | L22: 0.11 | Y22: 35 | AA22: 30 | AB22: =IF(AND(ISNUMBER(H22),H22>0),IF(AA22/H22<0.8,"Bio-Ertrag zu tief",AA22/H22),"") -> 0.8571428571
B23: Kartoffeln Speise-, Verarb.- | E23: ka | F23: Kartoffeln Speise-, Verarb.- | G23: dt Knollen | H23: 450 | I23: 120 | J23: 0.16 | K23: 0.71 | L23: 0.03 | M23: 524 | N23: entweder alle Kart. als "Standard-Kart." erfassen oder alle sortenspezifisch | Y23: 450 | AA23: 370 | AB23: 0.8222222222
B24: Kartoffeln Gruppe a, Speise-, Verarb.- | E24: kaa | F24: Kartoffeln Gruppe a, Speise-, Verarb.- | G24: dt Knollen | H24: 450 | I24: 80 | J24: 0.16 | K24: 0.71 | L24: 0.03 | M24: 524 | N24: Gruppe a (geringer N-Bedarf): Agria, Fontane, Jelly, Nicola | Y24: 450 | AA24: 370 | AB24: =IF(AND(ISNUMBER(H24),H24>0),IF(AA24/H24<0.8,"Bio-Ertrag zu tief",AA24/H24),"") -> 0.8222222222
B25: Kartoffeln Gruppe b, Speise-, Verarb.- | E25: kab | F25: Kartoffeln Gruppe b, Speise-, Verarb.- | G25: dt Knollen | H25: 450 | I25: 120 | J25: 0.16 | K25: 0.71 | L25: 0.03 | M25: 524 | N25: Gruppe b (N-Standardbedarf): alle Sorten, die nicht in Gruppe a oder Gruppe c sind (Agata, Annabelle, Amandine, Bintje, Celtiane, Challenger, Désireée, Ditta, Erika, Gourmandine, Gwenne, Hermes, Lady Christl, Laura, Markies, Panda, Pirol, Venezia, Verdi, weitere nicht aufgeführte Sorten | Y25: 450 | AA25: 370 | AB25: 0.8222222222
B26: Kartoffeln Gruppe c, Speise-, Verarb.- | E26: kac | F26: Kartoffeln Gruppe c, Speise-, Verarb.- | G26: dt Knollen | H26: 450 | I26: 160 | J26: 0.16 | K26: 0.71 | L26: 0.03 | M26: 524 | N26: Gruppe c (höherer N-Bedarf): Charlotte, Innovator, Lady Claire, Lady Rosetta, Victoria | Y26: 450 | AA26: 370 | AB26: 0.8222222222
B27: Kenaf | E27: kf | F27: Kenaf | G27: dt TS | H27: 50 | I27: 70 | J27: 1.2 | K27: 1.6 | L27: 0.2 | M27: 552 | Y27: 50 | AA27: 50 | AB27: 1
B28: Korn (Dinkel) | E28: ko | F28: Korn (Dinkel) | G28: dt Kö | H28: 45 | I28: 100 | J28: 0.8 | K28: 0.04 | L28: 0.11 | M28: 516 | Y28: 45 | AA28: 45 | AB28: 1
B29: Körnermais (86% TS) | E29: km | F29: Körnermais (86% TS) | G29: dt Kö | H29: 100 | I29: 110 | J29: 0.76 | K29: 0.4 | L29: 0.09 | M29: 508 | Y29: 100 | AA29: 80 | AB29: 0.8
B30: Lein, Faser- | E30: lf | F30: Lein, Faser- | G30: dt Fasern | H30: 45 | I30: 60 | J30: 0.71 | K30: 2 | L30: 0.2 | M30: 534 | Y30: 45 | AA30: 45 | AB30: 1
B31: Lein, Oel- | E31: lo | F31: Lein, Oel- | G31: dt Kö | H31: 20 | I31: 80 | J31: 1.2 | K31: 0.95 | L31: 0.05 | M31: 534 | Y31: 20 | AA31: 20 | AB31: 1
B32: Nicht aufgeführte Kulturen (Leguminosen) | E32: nkl | F32: Nicht aufgeführte Kulturen (Leguminosen) | G32: ha | I32: 0 | J32: 60 | K32: 120 | L32: 10 | S32: Norm-Ansatz in kg/ha | Y32: 0 | AA32: 0
B33: Nicht aufgeführte Kulturen (Nicht-Leg., Mischungen von Leg. und Nicht-Leg.) | E33: nknl | F33: Nicht aufgeführte Kulturen (Nicht-Leg., Mischungen von Leg. und Nicht-Leg.) | G33: ha | I33: 80 | J33: 60 | K33: 120 | L33: 10 | S33: Norm-Ansatz in kg/ha | Y33: 0 | AA33: 0
B34: Raps Winter- | E34: wr | F34: Raps Winter- | G34: dt Kö | H34: 35 | I34: 150 | J34: 1.43 | K34: 0.86 | L34: 0.23 | M34: 527, 591 | O34: 3 | P34: 45 | Q34: =(P34-H34)*O34 -> 30 | Y34: 35 | AA34: 35 | AB34: 1
B35: Raps Winter-, Nitrat-Projekt | E35: wrnp | F35: Raps Winter-, Nitrat-Projekt | G35: dt Kö | H35: 35 | I35: 150 | J35: 1.43 | K35: 0.86 | L35: 0.23 | M35: 527, 591 | O35: 3 | P35: 35 | Q35: 0 | S35: wenn Parzelle in Nitrat-Projekt nach Art. 62a Gewässerschutzgesetz | Y35: 35 | AA35: 35 | AB35: 1
B36: Reis | E36: re | F36: Reis | G36: dt Kö | H36: 60 | I36: 110 | J36: 0.7 | K36: 0.53 | L36: 0.08 | Y36: 60 | AA36: 60 | AB36: =IF(AND(ISNUMBER(H36),H36>0),IF(AA36/H36<0.8,"Bio-Ertrag zu tief",AA36/H36),"") -> 1
B37: Pflanzkartoffeln | E37: pk | F37: Pflanzkartoffeln | G37: dt Knollen | H37: 250 | I37: 100 | J37: 0.19 | K37: 0.71 | L37: 0.03 | M37: 524 | N37: entweder alle Kart. als "Standard-Kart." erfassen oder alle sortenspezifisch | R37: Gruppeneinteilung nach Agroscope Transfer, Nr. 362, Dezember 2020 | Y37: 250 | AA37: 250 | AB37: 1
B38: Pflanzkartoffeln Gruppe a | E38: pka | F38: Pflanzkartoffeln Gruppe a | G38: dt Knollen | H38: 250 | I38: 60 | J38: 0.19 | K38: 0.71 | L38: 0.03 | M38: 524 | N38: Gruppe a (geringer N-Bedarf): Desirée, Gourmandine, Gwenne, Jelly, Laura | Y38: 250 | AA38: 250 | AB38: 1
B39: Pflanzkartoffeln Gruppe b | E39: pkb | F39: Pflanzkartoffeln Gruppe b | G39: dt Knollen | H39: 250 | I39: 100 | J39: 0.19 | K39: 0.71 | L39: 0.03 | M39: 524 | N39: Gruppe b (N-Standardbedarf): alle Sorten, die nicht in Gruppe a oder Gruppe c sind (Agata, Alexandra, Amandine, Annabelle, Antina, Ballerina, Belminda, Bintje, Celtiane, Charlotte, Concordia, Ditta, Erika, Hermes, Innovator, Ivory, Russet, Kiebitz, Lady Anna, Lady Christl, Lady Rosetta, Marabel, Nicola, Osira, Venezia, Verdi, Victoria, weitere nicht aufgeführte Sorten | Y39: 250 | AA39: 250 | AB39: 1
B40: Pflanzkartoffeln Gruppe c | E40: pkc | F40: Pflanzkartoffeln Gruppe c | G40: dt Knollen | H40: 250 | I40: 140 | J40: 0.19 | K40: 0.71 | L40: 0.03 | M40: 524 | N40: Gruppe c (höherer N-Bedarf): Figaro, Fontane, Lady Claire, Markies, Pirol, Queen Anne | Y40: 250 | AA40: 250 | AB40: 1
B41: Sommerraps | E41: sr | F41: Sommerraps | G41: dt Kö | H41: 25 | I41: 120 | J41: 1.48 | K41: 0.84 | L41: 0.28 | M41: 526, 590 | Y41: 25 | AA41: 25 | AB41: 1
B42: Silomais -> Eingabe bei Grundfutterproduktion ! | E42: sm | F42: Silomais -> Eingabe bei Grundfutterproduktion ! | M42: 521 | Y42: 0 | AA42: 0
B43: Soja | E43: so | F43: Soja | G43: dt Kö | H43: 30 | I43: 0 | J43: 1.17 | K43: 2.75 | L43: 0.2 | M43: 528 | Y43: 30 | AA43: 30 | AB43: 1
B44: Sommergerste | E44: sg | F44: Sommergerste | G44: dt Kö | H44: 55 | I44: 90 | J44: 0.84 | K44: 0.55 | L44: 0.11 | M44: 501 | Y44: 55 | AA44: 45 | AB44: 0.8181818182
B45: Sommerhafer | E45: sh | F45: Sommerhafer | G45: dt Kö | H45: 55 | I45: 90 | J45: 0.8 | K45: 0.51 | L45: 0.11 | M45: 504 | Y45: 55 | AA45: 50 | AB45: 0.9090909091
B46: Sommertriticale | E46: st | F46: Sommertriticale | G46: dt Kö | H46: 55 | I46: 100 | J46: 0.71 | K46: 0.49 | L46: 0.09 | M46: 505 | Y46: 55 | AA46: 45 | AB46: 0.8181818182
B47: Sommerweizen | E47: sw | F47: Sommerweizen | G47: dt Kö | H47: 50 | I47: 120 | J47: 0.82 | K47: 0.44 | L47: 0.12 | M47: 512 | Y47: 50 | AA47: 45 | AB47: 0.9
B48: Sonnenblumen | E48: sb | F48: Sonnenblumen | G48: dt Kö | H48: 30 | I48: 60 | J48: 1.1 | K48: 0.83 | L48: 0.3 | M48: 531, 592 | Y48: 30 | AA48: 30 | AB48: 1
B49: Süsslupine | E49: sl | F49: Süsslupine | G49: dt Kö | H49: 30 | I49: 0 | J49: 1 | K49: 2.04 | L49: 0.2 | M49: 538 | Y49: 30 | AA49: 30 | AB49: 1
B50: Tabak Burley | E50: tb | F50: Tabak Burley | G50: dt TS Blätter | H50: 25 | I50: 170 | J50: 0.72 | K50: 5 | L50: 0.28 | M50: 541 | Y50: 25 | AA50: 25 | AB50: 1
B51: Tabak Virgine | E51: tv | F51: Tabak Virgine | G51: dt TS Blätter | H51: 25 | I51: 30 | J51: 0.56 | K51: 4.76 | L51: 0.2 | M51: 541 | Y51: 25 | AA51: 25 | AB51: 1
B52: Winterhafer | E52: wh | F52: Winterhafer | G52: dt Kö | H52: 55 | I52: 90 | J52: 0.8 | K52: 0 | L52: 0.11 | M52: 504 | Y52: 55 | AA52: 50 | AB52: 0.9090909091
B53: Wintergerste | E53: wg | F53: Wintergerste | G53: dt Kö | H53: 60 | I53: 110 | J53: 0.85 | K53: 0.11 | L53: 0.12 | M53: 502 | O53: 0.7 | P53: 90 | Q53: =(P53-H53)*O53 -> 21 | Y53: 60 | AA53: 48 | AB53: 0.8
B54: Wintergerste, Nitrat-Projekt | E54: wgnp | F54: Wintergerste, Nitrat-Projekt | G54: dt Kö | H54: 60 | I54: 110 | J54: 0.85 | K54: 0.11 | L54: 0.12 | M54: 502 | O54: 0.7 | P54: 60 | Q54: 0 | S54: wenn Parzelle in Nitrat-Projekt nach Art. 62a Gewässerschutzgesetz | Y54: 60 | AA54: 48 | AB54: 0.8
B55: Winterroggen (Populationssorten) | E55: rp | F55: Winterroggen (Populationssorten) | G55: dt Kö | H55: 55 | I55: 90 | J55: 0.8 | K55: 0.1 | L55: 0.11 | M55: 514 | O55: 0.8 | P55: 80 | Q55: =(P55-H55)*O55 -> 20 | Y55: 55 | AA55: 50 | AB55: 0.9090909091
B56: Winterroggen (Populationssorten), Nitrat-Projekt | E56: rpnp | F56: Winterroggen (Populationssorten), Nitrat-Projekt | G56: dt Kö | H56: 55 | I56: 90 | J56: 0.8 | K56: 0.1 | L56: 0.11 | M56: 514 | O56: 0.8 | P56: 55 | Q56: 0 | S56: wenn Parzelle in Nitrat-Projekt nach Art. 62a Gewässerschutzgesetz | Y56: 55 | AA56: 50 | AB56: 0.9090909091
B57: Winterroggen (Hybridsorten) | E57: rh | F57: Winterroggen (Hybridsorten) | G57: dt Kö | H57: 65 | I57: 90 | J57: 0.8 | K57: 0.13 | L57: 0.11 | M57: 514 | O57: 1.2 | P57: 90 | Q57: =(P57-H57)*O57 -> 30 | Y57: 65 | AA57: 55 | AB57: 0.8461538462
B58: Winterroggen (Hybridsorten), Nitrat-Projekt | E58: rhnp | F58: Winterroggen (Hybridsorten), Nitrat-Projekt | G58: dt Kö | H58: 65 | I58: 90 | J58: 0.8 | K58: 0.13 | L58: 0.11 | M58: 514 | O58: 1.2 | P58: 65 | Q58: 0 | S58: wenn Parzelle in Nitrat-Projekt nach Art. 62a Gewässerschutzgesetz | Y58: 65 | AA58: 55 | AB58: 0.8461538462
B59: Wintertriticale | E59: wt | F59: Wintertriticale | G59: dt Kö | H59: 60 | I59: 110 | J59: 0.72 | K59: 0 | L59: 0.08 | M59: 505 | O59: 0.3 | P59: 95 | Q59: =(P59-H59)*O59 -> 10.5 | Y59: 60 | AA59: 50 | AB59: 0.8333333333
B60: Wintertriticale, Nitrat-Projekt | E60: wtnp | F60: Wintertriticale, Nitrat-Projekt | G60: dt Kö | H60: 60 | I60: 110 | J60: 0.72 | K60: 0 | L60: 0.08 | M60: 505 | O60: 0.3 | P60: 60 | Q60: 0 | S60: wenn Parzelle in Nitrat-Projekt nach Art. 62a Gewässerschutzgesetz | Y60: 60 | AA60: 50 | AB60: 0.8333333333
B61: Winterweizen (Brot- und Biskuit) | E61: ww | F61: Winterweizen (Brot- und Biskuit) | G61: dt Kö | H61: 60 | I61: 140 | J61: 0.83 | K61: 0.1 | L61: 0.12 | M61: 513 | O61: 1 | P61: 80 | Q61: =(P61-H61)*O61 -> 20 | Y61: 60 | AA61: 50 | AB61: 0.8333333333
B62: Winterweizen, Nitrat-Projekt | E62: wwnp | F62: Winterweizen, Nitrat-Projekt | G62: dt Kö | H62: 60 | I62: 140 | J62: 0.83 | K62: 0.1 | L62: 0.12 | M62: 513 | O62: 1 | P62: 60 | Q62: 0 | S62: wenn Parzelle in Nitrat-Projekt nach Art. 62a Gewässerschutzgesetz | Y62: 60 | AA62: 50 | AB62: 0.8333333333
B63: =F63 -> Winter-Futterweizen | E63: fw | F63: Winter-Futterweizen | G63: dt Kö | H63: 75 | I63: 140 | J63: 0.83 | K63: 0.14 | L63: 0.12 | M63: 512 | O63: 1 | P63: 95 | Q63: =(P63-H63)*O63 -> 20 | Y63: =IF(Y$1="BIO",AA63,H63) -> 75 | AA63: 65 | AB63: =IF(AND(ISNUMBER(H63),H63>0),IF(AA63/H63<0.8,"Bio-Ertrag zu tief",AA63/H63),"") -> 0.8666666667
B64: Winter-Futterweizen, Nitrat-Projekt | E64: fwnp | F64: Winter-Futterweizen, Nitrat-Projekt | G64: dt Kö | H64: 75 | I64: 140 | J64: 0.83 | K64: 0.14 | L64: 0.12 | M64: 512 | O64: 1 | P64: 75 | Q64: 0 | S64: wenn Parzelle in Nitrat-Projekt nach Art. 62a Gewässerschutzgesetz | Y64: 75 | AA64: 65 | AB64: 0.8666666667
B65: Zuckerrüben | E65: zr | F65: Zuckerrüben | G65: dt Rüben | H65: 900 | I65: 100 | J65: 0.06 | K65: 0.09 | L65: 0.03 | M65: 522 | Y65: 900 | AA65: 720 | AB65: 0.8
Z68: stop
B70: - | E70: Abkürz. | F70: Kultur | G70: Einheit | H70: Ertrag | I70: N | J70: P2O5 | K70: K2O | L70: Mg | T70: = Bereich, welcher (nebst dem Gemüse) als 2.Kultur angewählt werden kann
B71: Gründüngung (Nichtlegum., 35 dt TS) | H71: pro ha | J71: kg pro Einheit
B72: Gründüngung (Leguminosen, 35 dt TS) | E72: Freilandgemüse, Blumen (= offenes Ackerland), 1-jährige Erdbeeren
B73: =B22 -> Hirse | E73: =E22 -> hir | F73: Hirse | G73: dt Kö | H73: 35 | I73: 70 | J73: 0.66 | K73: 0.29 | L73: 0.11 | M73: 0 | Y73: =Y22 -> 35 | Z73: 0 | AA73: 30 | AB73: 0.8571428571
B75: Liste für Gemüse als 2.Kultur
A76: Gemüse | B76: - | E76: 0 | F76: -
B77: Aubergine | E77: aub | F77: Aubergine | G77: ha | I77: 170 | J77: 20 | K77: 130 | L77: 10
B78: Blumen, Schnitt-, klein | E78: blu1 | F78: Blumen, Schnitt-, klein | G78: ha | I78: 140 | J78: 100 | K78: 150 | L78: 30
B79: Blumen, Schnitt-, mittel | E79: blu2 | F79: Blumen, Schnitt-, mittel | G79: ha | I79: 230 | J79: 140 | K79: 250 | L79: 40
B80: Blumen, Schnitt-, gross | E80: blu3 | F80: Blumen, Schnitt-, gross | G80: ha | I80: 320 | J80: 180 | K80: 350 | L80: 60
B81: Blumenkohl | E81: blk | F81: Blumenkohl | G81: ha | I81: 260 | J81: 40 | K81: 120 | L81: 10
B82: Bodenkohlrabi | E82: bkr | F82: Bodenkohlrabi | G82: ha | I82: 150 | J82: 30 | K82: 120 | L82: 20
B83: Bohnen, Busch- | E83: bob | F83: Bohnen, Busch- | G83: ha | I83: 0 | J83: 20 | K83: 70 | L83: 5
B84: Bohnen, Verarbeitung- | E84: bov | F84: Bohnen, Verarbeitung- | G84: ha | I84: 0 | J84: 10 | K84: 30 | L84: 5
B85: Broccoli | E85: bro | F85: Broccoli | G85: ha | I85: 220 | J85: 30 | K85: 90 | L85: 10
B86: Cima di rapa (400 kg/a) | E86: cim | F86: Cima di rapa (400 kg/a) | G86: ha | I86: 140 | J86: 40 | K86: 160 | L86: 10
B87: Chinakohl | E87: chk | F87: Chinakohl | G87: ha | I87: 160 | J87: 60 | K87: 200 | L87: 10
B88: =F88 -> Chicorée, Wurzelanbau | E88: chi | F88: Chicorée, Wurzelanbau | G88: ha | I88: 70 | J88: 50 | K88: 150 | L88: 30
B89: Cicorino rosso, Radicchio | E89: cir | F89: Cicorino rosso, Radicchio | G89: ha | I89: 110 | J89: 20 | K89: 90 | L89: 10
B90: Endivie (350 kg/a) | E90: end | F90: Endivie (350 kg/a) | G90: ha | I90: 130 | J90: 30 | K90: 160 | L90: 20
B91: Endivie (600 kg/a) | E91: end2 | F91: Endivie (600 kg/a) | G91: ha | I91: 160 | J91: 40 | K91: 200 | L91: 20
B92: Erbsen Verarbeitung- | E92: erv | F92: Erbsen Verarbeitung- | G92: ha | I92: 0 | J92: 20 | K92: 60 | L92: 5
B93: Erbsen, Kefen | E93: erk | F93: Erbsen, Kefen | G93: ha | I93: 0 | J93: 30 | K93: 110 | L93: 10
B94: Erdbeeren (1-jährig) | E94: eb1 | F94: Erdbeeren (1-jährig) | G94: ha | I94: 100 | J94: 34 | K94: 121 | L94: 20
B95: Erdbeeren (1-jährig), hoher Ertrag (25-30 t/ha) | E95: eb12 | F95: Erdbeeren (1-jährig), hoher Ertrag (25-30 t/ha) | G95: ha | I95: 120 | J95: 46 | K95: 157 | L95: 25
B96: Federkohl (300 kg/a) | E96: fed | F96: Federkohl (300 kg/a) | G96: ha | I96: 250 | J96: 50 | K96: 160 | L96: 10
B97: Fenchel Knollen- | E97: fen | F97: Fenchel Knollen- | G97: ha | I97: 160 | J97: 30 | K97: 180 | L97: 20
B98: Gurken, Essiggurken | E98: gur | F98: Gurken, Essiggurken | G98: ha | I98: 140 | J98: 30 | K98: 170 | L98: 20
B99: Kabis, Einschneide- | E99: kae | F99: Kabis, Einschneide- | G99: ha | I99: 260 | J99: 60 | K99: 250 | L99: 20
B100: Kabis, Früh-, Folie | E100: kaf | F100: Kabis, Früh-, Folie | G100: ha | I100: 140 | J100: 40 | K100: 150 | L100: 10
B101: Kabis, Lager- | E101: kal | F101: Kabis, Lager- | G101: ha | I101: 190 | J101: 50 | K101: 200 | L101: 20
B102: Karotten, Bund-, Früh- | E102: karb | F102: Karotten, Bund-, Früh- | G102: ha | I102: 100 | J102: 40 | K102: 140 | L102: 20
B103: Karotten, Pariser | E103: karp | F103: Karotten, Pariser | G103: ha | I103: 50 | J103: 30 | K103: 100 | L103: 10
B104: Karotten (600 kg/a), Verarbeitung-, Lager- | E104: karv | F104: Karotten (600 kg/a), Verarbeitung-, Lager- | G104: ha | I104: 110 | J104: 40 | K104: 250 | L104: 20
B105: Karotten (900 kg/a), Verarbeitung-, Lager- | E105: karv2 | F105: Karotten (900 kg/a), Verarbeitung-, Lager- | G105: ha | I105: 130 | J105: 50 | K105: 300 | L105: 20
B106: Knoblauch (200 kg/a) | E106: kno | F106: Knoblauch (200 kg/a) | G106: ha | I106: 120 | J106: 30 | K106: 120 | L106: 10
B107: Kohlrabi | E107: kor | F107: Kohlrabi | G107: ha | I107: 130 | J107: 40 | K107: 120 | L107: 20
B108: Kohlrabi Verarbeitung | E108: korv | F108: Kohlrabi Verarbeitung | G108: ha | I108: 170 | J108: 50 | K108: 150 | L108: 30
B109: Kräuter, 1-jährig, klein (8 kg/a) | E109: kr1 | F109: Kräuter, 1-jährig, klein (8 kg/a) | G109: ha | I109: 40 | J109: 15 | K109: 60 | L109: 10 | N109: Kräuter
B110: Kräuter, 1-jährig, mittel (25 kg/a) | E110: kr2 | F110: Kräuter, 1-jährig, mittel (25 kg/a) | G110: ha | I110: 70 | J110: 30 | K110: 160 | L110: 15 | N110: Für grössere Anbauflächen können auch die Düngungsnormen gemäss "Grundlagen für die
B111: Kräuter, 1-jährig, mittel-gross (50 kg/a) | E111: kr3 | F111: Kräuter, 1-jährig, mittel-gross (50 kg/a) | G111: ha | I111: 120 | J111: 40 | K111: 200 | L111: 20 | N111: Düngung von Medizinal- und Gewürzpflanzen (ACW 2006)" verwendet werden.
B112: Kräuter, 1-jährig, gross (75 kg/a) | E112: kr4 | F112: Kräuter, 1-jährig, gross (75 kg/a) | G112: ha | I112: 160 | J112: 50 | K112: 250 | L112: 25
B113: Krautstiel | E113: kst | F113: Krautstiel | G113: ha | I113: 150 | J113: 60 | K113: 220 | L113: 30
B114: Lauch | E114: lau | F114: Lauch | G114: ha | I114: 200 | J114: 40 | K114: 180 | L114: 20
B115: Melone | E115: mel | F115: Melone | G115: ha | I115: 140 | J115: 30 | K115: 170 | L115: 40
B116: Nüsslisalat, Feldsalat | E116: nüs | F116: Nüsslisalat, Feldsalat | G116: ha | I116: 50 | J116: 20 | K116: 60 | L116: 10
B117: Pastinake (400 kg/a) | E117: pas | F117: Pastinake (400 kg/a) | G117: ha | I117: 180 | J117: 90 | K117: 290 | L117: 25
B118: Petersilie | E118: pet | F118: Petersilie | G118: ha | I118: 100 | J118: 30 | K118: 120 | L118: 20
B119: Radies 10 Bund/m2 | E119: rad | F119: Radies 10 Bund/m2 | G119: ha | I119: 50 | J119: 20 | K119: 80 | L119: 10
B120: Randen | E120: ran | F120: Randen | G120: ha | I120: 140 | J120: 40 | K120: 160 | L120: 20
B121: Rettich 8-9 Stk./m2 | E121: ret | F121: Rettich 8-9 Stk./m2 | G121: ha | I121: 110 | J121: 40 | K121: 150 | L121: 10
B122: Rhabarber -> Eingabe bei Dauerkulturen | E122: rha | F122: Rhabarber -> Eingabe bei Dauerkulturen
B123: Rosenkohl, Strünke abgeführt | E123: rko | F123: Rosenkohl, Strünke abgeführt | G123: ha | I123: 260 | J123: 50 | K123: 170 | L123: 5
B124: Rüben Herbst-, Mai- | E124: rüb | F124: Rüben Herbst-, Mai- | G124: ha | I124: 140 | J124: 30 | K124: 150 | L124: 20
B125: Rucola, 1 Schnitt (200 kg/a) | E125: ruc1 | F125: Rucola, 1 Schnitt (200 kg/a) | G125: ha | I125: 150 | J125: 30 | K125: 150 | L125: 10
B126: Rucola, 2 Schnitte (300 kg/a) | E126: ruc2 | F126: Rucola, 2 Schnitte (300 kg/a) | G126: ha | I126: 210 | J126: 40 | K126: 180 | L126: 20
B127: Salate (350 kg/a), diverse | E127: sal | F127: Salate (350 kg/a), diverse | G127: ha | I127: 90 | J127: 20 | K127: 70 | L127: 10
B128: Salate (600 kg/a), diverse | E128: sal2 | F128: Salate (600 kg/a), diverse | G128: ha | I128: 110 | J128: 40 | K128: 120 | L128: 10
B129: Schnittlauch | E129: sla | F129: Schnittlauch | G129: ha | I129: 170 | J129: 30 | K129: 120 | L129: 20
B130: Schnittsalat | E130: ssa | F130: Schnittsalat | G130: ha | I130: 60 | J130: 20 | K130: 60 | L130: 20
B131: Schwarzwurzel | E131: swu | F131: Schwarzwurzel | G131: ha | I131: 120 | J131: 30 | K131: 100 | L131: 10
B132: Sellerie, Knollen- | E132: sel | F132: Sellerie, Knollen- | G132: ha | I132: 190 | J132: 70 | K132: 300 | L132: 20
B133: Sellerie, Stangen- | E133: ses | F133: Sellerie, Stangen- | G133: ha | I133: 180 | J133: 70 | K133: 300 | L133: 20
B134: Spargeln, Bleich- -> Eingabe bei Dauerkulturen | E134: spbl | F134: Spargeln, Bleich- -> Eingabe bei Dauerkulturen | G134: Einheit | H134: Ertrag | I134: N | J134: P2O5 | K134: K2O | L134: Mg | Z134: stop
B135: Spargeln, Grün- -> Eingabe bei Dauerkulturen | E135: spgr | F135: Spargeln, Grün- -> Eingabe bei Dauerkulturen
B136: Spinat, 1 Schnitt (120 kg/a), nicht überwinternd | E136: sp1 | F136: Spinat, 1 Schnitt (120 kg/a), nicht überwinternd | G136: ha | I136: 130 | J136: 20 | K136: 150 | L136: 15
B137: Spinat, 1 Schn., nicht überwint., vor Mitte April gesät | E137: sp1f | F137: Spinat, 1 Schn., nicht überwint., vor Mitte April gesät | G137: ha | I137: 160 | J137: 20 | K137: 150 | L137: 15
B138: Spinat, 2 Schnitte (200 kg/a), nicht überwinternd | E138: sp2 | F138: Spinat, 2 Schnitte (200 kg/a), nicht überwinternd | G138: ha | I138: 150 | J138: 40 | K138: 180 | L138: 20
B139: Spinat, Winter-, 1 Schnitt (120 kg/a) | E139: spw | F139: Spinat, Winter-, 1 Schnitt (120 kg/a) | G139: ha | I139: 180 | J139: 20 | K139: 150 | L139: 15
B140: Tomaten | E140: tom | F140: Tomaten | G140: ha | I140: 130 | J140: 50 | K140: 260 | L140: 30
B141: Viola (Stiefmütterchen, Pensée) | E141: vio | F141: Viola (Stiefmütterchen, Pensée) | G141: ha | I141: 50 | J141: 10 | K141: 60 | L141: 10
B142: Wirz leicht (300 kg/a) | E142: wirl | F142: Wirz leicht (300 kg/a) | G142: ha | I142: 120 | J142: 30 | K142: 140 | L142: 10
B143: Wirz schwer (400 kg/a) | E143: wirs | F143: Wirz schwer (400 kg/a) | G143: ha | I143: 140 | J143: 40 | K143: 160 | L143: 10
B144: Zucchetti, Patisson, Kürbis | E144: zcc | F144: Zucchetti, Patisson, Kürbis | G144: ha | I144: 130 | J144: 20 | K144: 100 | L144: 10
B145: Zuckerhut | E145: zhu | F145: Zuckerhut | G145: ha | I145: 130 | J145: 20 | K145: 90 | L145: 10
B146: Zuckerhut (600 kg/a, Convenience) | E146: zhu2 | F146: Zuckerhut (600 kg/a, Convenience) | G146: ha | I146: 160 | J146: 20 | K146: 90 | L146: 10
B147: Zuckermais | E147: zma | F147: Zuckermais | G147: ha | I147: 150 | J147: 50 | K147: 100 | L147: 20
B148: Zwiebeln | E148: zwi | F148: Zwiebeln | G148: ha | I148: 130 | J148: 60 | K148: 160 | L148: 20
B149: Freilandgemüse, Mittelwert, für kleine Freilandpflanzungen mit verschiedenen Gemüsen | E149: fgmw | F149: Freilandgemüse, Mittelwert, für kleine Freilandpflanzungen mit verschiedenen Gemüsen | G149: ha | I149: 120 | J149: 30 | K149: 120 | L149: 15
B151: =F151 -> Gründüngung (Nichtlegum., 35 dt TS) | E151: gd | F151: Gründüngung (Nichtlegum., 35 dt TS) | G151: ha | I151: 30 | J151: 0 | K151: 0 | L151: 0
B152: =F152 -> Gründüngung (Leguminosen, 35 dt TS) | E152: gdl | F152: Gründüngung (Leguminosen, 35 dt TS) | G152: ha | I152: 0 | J152: 0 | K152: 0 | L152: 0
B153: =F153 -> Nicht aufgeführte Kulturen (Leguminosen) | E153: nkl | F153: Nicht aufgeführte Kulturen (Leguminosen) | G153: ha | I153: 0 | J153: 60 | K153: 120 | L153: 10
B154: =F154 -> Nicht aufgeführte Kulturen (Nicht-Leg., Mischungen von Leg. und Nicht-Leg.) | E154: nknl | F154: Nicht aufgeführte Kulturen (Nicht-Leg., Mischungen von Leg. und Nicht-Leg.) | G154: ha | I154: 80 | J154: 60 | K154: 120 | L154: 10
B156: GH = Gewächshaus+Hochtunnel | E156: Gewächshausgemüse und Hochtunnel (= Kulturen in geschütztem Anbau) | N156: Name muss immer ", GH..." enthalten wegen Berechnung off. AL | Z156: stop
B157: Aubergine, GH, Erdkultur | E157: aubg | F157: Aubergine, GH, Erdkultur | G157: ha | I157: 200 | J157: 100 | K157: 350 | L157: 50
B158: Bohnen Stangen- , GH | E158: bosg | F158: Bohnen Stangen- , GH | G158: ha | I158: 40 | J158: 80 | K158: 180 | L158: 30
B159: Endivie Herbst-, GH | E159: endg | F159: Endivie Herbst-, GH | G159: ha | I159: 140 | J159: 50 | K159: 180 | L159: 30
B160: Gurken, 30 Stk./m2, GH Erdkultur | E160: gug | F160: Gurken, 30 Stk./m2, GH Erdkultur | G160: ha | I160: 200 | J160: 100 | K160: 300 | L160: 60
B161: Gurken, 50 Stk./m2, GH Erdkultur | E161: gu2g | F161: Gurken, 50 Stk./m2, GH Erdkultur | G161: ha | I161: 300 | J161: 150 | K161: 400 | L161: 80
B162: =F162 -> Kohlrabi, GH | E162: korg | F162: Kohlrabi, GH | G162: ha | I162: 140 | J162: 60 | K162: 200 | L162: 30
B163: Krautstiel, GH | E163: kstg | F163: Krautstiel, GH | G163: ha | I163: 200 | J163: 100 | K163: 400 | L163: 50
B164: Kresse, GH | E164: kreg | F164: Kresse, GH | G164: ha | I164: 20 | J164: 10 | K164: 30 | L164: 10
B165: Lauch, GH | E165: laug | F165: Lauch, GH | G165: ha | I165: 160 | J165: 60 | K165: 220 | L165: 30
B166: Nüsslisalat, Feldsalat, GH | E166: nüsg | F166: Nüsslisalat, Feldsalat, GH | G166: ha | I166: 50 | J166: 10 | K166: 60 | L166: 10
B167: Paprika, GH, Bodenkultur | E167: papg | F167: Paprika, GH, Bodenkultur | G167: ha | I167: 160 | J167: 50 | K167: 250 | L167: 30
B168: Petersilie, GH | E168: petg | F168: Petersilie, GH | G168: ha | I168: 100 | J168: 50 | K168: 180 | L168: 20
B169: Radies 20 Bund/m2, GH | E169: radg | F169: Radies 20 Bund/m2, GH | G169: ha | I169: 60 | J169: 30 | K169: 100 | L169: 20
B170: Rettich 18 Stk/m2, GH | E170: retg | F170: Rettich 18 Stk/m2, GH | G170: ha | I170: 90 | J170: 50 | K170: 200 | L170: 30
B171: Portulak, GH | E171: porg | F171: Portulak, GH | G171: ha | I171: 70 | J171: 20 | K171: 90 | L171: 20
B172: Rucola, 1 Schnitt, GH | E172: rucg1 | F172: Rucola, 1 Schnitt, GH | G172: ha | I172: 150 | J172: 30 | K172: 150 | L172: 10
B173: Rucola, 2 Schnitte, GH | E173: rucg2 | F173: Rucola, 2 Schnitte, GH | G173: ha | I173: 210 | J173: 40 | K173: 180 | L173: 20
B174: Salate Kopf-, Eisberg, Lollo, GH | E174: salg | F174: Salate Kopf-, Eisberg, Lollo, GH | G174: ha | I174: 80 | J174: 30 | K174: 140 | L174: 20
B175: Schnittlauch (Kultur), GH | E175: slag | F175: Schnittlauch (Kultur), GH | G175: ha | I175: 100 | J175: 40 | K175: 180 | L175: 30
B176: Schnittsalat, GH | E176: ssag | F176: Schnittsalat, GH | G176: ha | I176: 50 | J176: 10 | K176: 50 | L176: 10
B177: Sellerie Suppen- 40 Stk/m2, GH | E177: selg | F177: Sellerie Suppen- 40 Stk/m2, GH | G177: ha | I177: 120 | J177: 70 | K177: 220 | L177: 30
B178: Spinat, GH | E178: spig | F178: Spinat, GH | G178: ha | I178: 100 | J178: 30 | K178: 140 | L178: 20
B179: Tomaten, 1200 kg/Are, GH Bodenkultur | E179: tom1g | F179: Tomaten, 1200 kg/Are, GH Bodenkultur | G179: ha | I179: 170 | J179: 80 | K179: 340 | L179: 60
B180: Tomaten, 1800 kg/Are, GH Bodenkultur | E180: tom2g | F180: Tomaten, 1800 kg/Are, GH Bodenkultur | G180: ha | I180: 250 | J180: 100 | K180: 500 | L180: 80
B181: Tomaten, 2400 kg/Are, GH Bodenkultur | E181: tom3g | F181: Tomaten, 2400 kg/Are, GH Bodenkultur | G181: ha | I181: 330 | J181: 160 | K181: 680 | L181: 120
B182: Tomaten, 3000 kg/Are, GH Bodenkultur | E182: tom4g | F182: Tomaten, 3000 kg/Are, GH Bodenkultur | G182: ha | I182: 400 | J182: 200 | K182: 850 | L182: 150
B183: Zucchetti, Patisson, GH | E183: zccg | F183: Zucchetti, Patisson, GH | G183: ha | I183: 160 | J183: 30 | K183: 150 | L183: 10
B184: Mittelwert Gewächshaus, GH, für kleine Gewächshäuser und Hochtunnel mit verschiedenen Gemüsen | E184: mwg | F184: Mittelwert Gewächshaus, GH, für kleine Gewächshäuser und Hochtunnel mit verschiedenen Gemüsen | G184: ha | I184: 130 | J184: 60 | K184: 220 | L184: 35
E185: Stroh, Rübenblatt
B186: - | E186: 0 | F186: -
B187: Stroh (85% TS) | E187: str | F187: Stroh (85% TS) | G187: dt FS | I187: 0 | J187: 0.19 | K187: 0.79 | L187: 0.11
B188: Rübenblatt (15%TS) | E188: rb | F188: Rübenblatt (15%TS) | G188: dt FS | I188: 0 | J188: 0.08 | K188: 0.4 | L188: 0.09
E189: Dauerkulturen: Obst, Reben, Beeren, mehrj. Gemüse und mehrj. Rohstoffe (kein offenes Ackerland) | Z189: stop
E190: Obst | G190: Einheit | H190: Ertrag | I190: N | J190: P2O5 | K190: K2O | L190: Mg
A191: Dauerkulturen | B191: - | E191: 0 | F191: -
B192: Obstanlagen, Kern- | E192: oa | F192: Obstanlagen, Kern- | G192: ha | I192: 60 | J192: 20 | K192: 75 | L192: 20
B193: Kernobst (60 t/ha), hoher Ertrag | E193: oa2 | F193: Kernobst (60 t/ha), hoher Ertrag | G193: ha | I193: 80 | J193: 30 | K193: 110 | L193: 40
B194: Kirschen | E194: kir | F194: Kirschen | G194: ha | I194: 60 | J194: 20 | K194: 50 | L194: 20
B195: Kirschen (16 t/ha), hoher Ertrag | E195: kir2 | F195: Kirschen (16 t/ha), hoher Ertrag | G195: ha | I195: 80 | J195: 30 | K195: 65 | L195: 30
B196: Zwetschgen | E196: zwe | F196: Zwetschgen | G196: ha | I196: 60 | J196: 15 | K196: 50 | L196: 15
B197: Zwetschgen (20 t/ha), hoher Ertrag | E197: zwe2 | F197: Zwetschgen (20 t/ha), hoher Ertrag | G197: ha | I197: 80 | J197: 20 | K197: 65 | L197: 20
B198: Aprikosen | E198: apr | F198: Aprikosen | G198: ha | I198: 60 | J198: 25 | K198: 75 | L198: 20
B199: Aprikosen (25 t/ha), hoher Ertrag | E199: ap2 | F199: Aprikosen (25 t/ha), hoher Ertrag | G199: ha | I199: 75 | J199: 30 | K199: 90 | L199: 30
B200: Pfirsiche | E200: pfi | F200: Pfirsiche | G200: ha | I200: 60 | J200: 15 | K200: 55 | L200: 20
B201: Pfirsiche (25 t/ha), hoher Ertrag | E201: pfi2 | F201: Pfirsiche (25 t/ha), hoher Ertrag | G201: ha | I201: 75 | J201: 20 | K201: 70 | L201: 30
B202: Kiwi | E202: kiw | F202: Kiwi | G202: ha | I202: 50 | J202: 15 | K202: 75 | L202: 15
B203: Kiwi (25 t/ha), hoher Ertrag | E203: kiw2 | F203: Kiwi (25 t/ha), hoher Ertrag | G203: ha | I203: 65 | J203: 20 | K203: 90 | L203: 20
B204: Kleinanlagen (<20 a) mit verschiedenen Obstkulturen | E204: kad | F204: Kleinanlagen (<20 a) mit verschiedenen Obstkulturen | G204: ha | I204: 60 | J204: 20 | K204: 75 | L204: 20
B205: Walnussbäume (<185 Bä/ha) | E205: wa1 | F205: Walnussbäume (<185 Bä/ha) | G205: ha | I205: 80 | J205: 30 | K205: 100 | L205: 30
B206: Walnussbäume ≥ 185 Bäume/ha | E206: wa2 | F206: Walnussbäume ≥ 185 Bäume/ha | G206: ha | I206: 120 | J206: 50 | K206: 140 | L206: 50
B207: Haselnüsse | E207: has | F207: Haselnüsse | G207: ha | I207: 90 | J207: 25 | K207: 50 | L207: 15
... 267 more rows

Sheet Suisse_Bilanz_1.17
AA1: Die Berechnungen basieren auf der "Suisse-Bilanz" von agridea und EVD/BLW (Version 1.17, 2022). | AL1: Aktuelle Wegleitung Suisse-Bilanz verfügbar unter: | CH1: stop
B2: -> immer mit Makros speichern -> Dateityp "mit Makros" wählen -> Excel 2010: Datei / Speichern unter / Excel-Arbeitsmappe mit Makros (*.xlsm) | AA2: Massgebend ist die Wegleitung Suisse-Bilanz von agridea und EVD/BLW, nehmen Sie diese zur Hand! | AL2: - BLW: Instrumente > Direktzahlungen > ökologischer Leistungsnachweis > Düngerbilanz > Rechtliche Grundlagen | AO2: https://www.blw.admin.ch/blw/de/home/instrumente/direktzahlungen/oekologischer-leistungsnachweis/ausgeglichene-duengerbilanz.html | BG2: Liste (für Daten Gültigkeit) | BI2: Liste (für Daten Gültigkeit)
A3: 2022-11-23 | B3: Gültigkeit der Version 1.17: Jahre 2023 - 2024 (= Info Juni 2022) -> siehe BLW: | J3: https://www.blw.admin.ch/blw/de/home/instrumente/direktzahlungen/oekologischer-leistungsnachweis/ausgeglichene-duengerbilanz.html | N3: =IF((MID(K8,SEARCH("20??",K8),4)*1) > 2024," "&K8&": -> neue Version verwenden!",IF((MID(K8,SEARCH("20??",K8),4)*1) < 2023," "&K8&": -> alte Version verwenden!","")) ->  | AA3: nachstehend eine Kurz-Anleitung: | AL3: - agridea: Publikationen > downloads > ökologischer Leistungsnachweis > Suisse-Bilanz | AO3: http://www.agridea.ch/de/publikationen/publikationen/aufzeichnungen-nachweis/suisse-bilanz | BG3: Vollmist Typ | BI3: Vollmist Zu-, Wegfuhr
AA4: - Datei Speichern - als Arbeitsmappe: Dokument-Name.xlsm (mit Makros) | AL4: - BBZ Arenenberg: Beratung > Acker- und Futterbau, Düngung > Suisse-Bilanz | AO4: https://arenenberg.tg.ch/beratung/ackerbau.html/340
B5: Suisse-Bilanz - Nährstoffhaushalt Gesamtbetrieb | R5: (Basis = Version 1.17, 2023, agridea und EVD/BLW) | AA5: - als Mustervorlage: z.B. SB1.17_TG_.xltm (mit Makros) | BG5: 0 | BI5: ja
B6: Version 1.17 - 2023 Copyright by Arenenberg, Acker- und Futterbau, 8268 Salenstein | R6: =Daten!E451 -> Auskunft: Daniel Nyfeler 058 345 85 21, Gregor Affolter 058 345 85 18 | AA6: - Das Arbeitsblatt "Suisse_Bilanz_1.17" ist die Berechnungstabelle für die Nährstoffbilanz (sowie Menge und Gehalte der Hofdünger). | BG6: 50 | BI6: nein
F7: Betr.Nr. | J7: =IF(ISBLANK(K7),"Prod.Art ? -> ","") ->  | K7: ÖLN | AA7: - Das Arbeitsblatt "Lineare Korrektur" dient der Berechnung des Nährstoffanfalls, sofern NPr-Futter nach Zusatzmodul 6 zu berücksichtigen ist. | BG7: 100
B8: Name: | J8: Jahr: | K8: 2023 | N8: Datum: | O8: =TODAY() -> 2023-02-14 | R8: Seite 1 | AA8: - Das Arbeitsblatt "GMF" dient der Berechnung der Futterbilanz für die graslandbasierte Milch- und Fleischproduktion, Achtung: zuerst die Suisse-Bilanz vollständig ausfüllen.
B9: Adresse: | J9: 1.1.-31.12. | N9: erstellt von: | T9: Dateneingabe - mit Tabulator-Taste jeweils ins nächste Eingabefeld springen | AA9: - Springen Sie mit der Tabulator-Taste zu den "freien" (ungesperrten) Feldern und geben Sie die Daten ein.
B11: Bemerkungen: | C11: - | U11: Hell-Gelbe Zellen: Daten eingeben | AB11: Tabulator-Taste -> 1 Feld vorwärts; shift+Tabulator-Taste -> 1 Feld zurück
U12: grüne Zellen: Daten aus Liste auswählen | AA12: - Zur Auswahl von Tierkategorien und Kulturen (ausser Milchkühe, Rindviehmast >160 d und Grundfutterkulturen)
U13: weiss od. andere Farbe: gesperrt, keine Dateneingabe | AA13: Cursor auf Zelle in entsprechender Spalte setzen, mit grauem Pfeil Liste anzeigen und die gewünschte Kategorie auswählen
J14: Voll- | K14: GF-Ver- | P14: Nges | Q14: Nges | R14: Voll- | AA14: Massgebender Tierbestand (siehe Wegleitung 2.8) | AL14: - Umrechnungshilfe zur Übernahme von TVD-Rindviehbeständen in die Suisse-Bilanz | BA14: Milchkühe: Korrektur des Grundfutterverzehrs aufgrund der Kraftfuttergaben
A15: =IF(OR(AND(ISNUMBER(F18),OR(B18<3000,B18>16000)),AND(ISNUMBER(F19),OR(B19<3000,B19>16000))),"Stimmt durchschn. Milchleistung?"," ") ->  | B15: Tierkategorien | F15: Anzahl | G15: Laufhof | H15: Weide | J15: mist | K15: zehr | L15: Nährstoffanfall (kg pro Jahr) | P15: im | Q15: auf | R15: mist- | S15: =IF(AND(U16="",Y16="" ), ""," Zusatzangaben für die Berechnung der Grösse 'Kraftfutter / Milchkuh' ") ->  | AA15: Massgebend sind die gehaltenen Tiere im Kalenderjahr (Rindvieh, Pferde, Büffel und Bisons gemäss TVD, Umrechnungshilfe | AL15: -> BLW: Instrumente > Direktzahlungen > ökologischer Leistungsnachweis > ausgeglichene Düngerbilanz > Rechtliche Grundlagen | AZ15: massgebende Anz. und KF für GF-Vz Kühe | BE15: massgebendes
B16: Milchkühe | D16: =IF(OR(AND(ISNUMBER(F18),F18<>0,ISBLANK(D18)),AND(ISNUMBER(F19),F19<>0,ISBLANK(D19)) ),"dt Kraftfutter eingeben"," Kraftfutter") -> Kraftfutter | G16: Tage/J. | H16: Std./T. | I16: Tage/J. | J16: Typ | K16: dt TS/J. | L16: Nges | M16: P2O5 | N16: K2O | O16: Mg | P16: Laufh. | Q16: Weide | R16: Nges | U16: =IF(OR(ISNUMBER(F18),ISNUMBER(F19)),"andere Abwesenheit","") ->  | V16: =IF(OR(U18="ja",U19="ja"),"Anzahl","") ->  | W16: =IF(OR(AND(U18="ja",ISNUMBER(V18)),AND(U19="ja",ISNUMBER(V19))),"Anzahl","") ->  | X16: =IF(AND(X18="",X19=""),"","Andere Abw.") ->  | Y16: =IF(AND(AZ18=$F18,AZ19=$F19),""," Anzahl Kühe (ohne Abzug)") ->  | AA16: SuiBiTrans in Wegleitung Kapitel 3.1; bei den anderen Tierkategorien die Durchschnittsbestände) | AM16: https://www.blw.admin.ch/blw/de/home/instrumente/direktzahlungen/oekologischer-leistungsnachweis/ausgeglichene-duengerbilanz.html | AZ16: Anz. brutto | BA16: KF dt | BB16: KF kg/Kuh | BD16: JM | BE16: KF (kg) | BF16: Std-KF (kg) | BG16: Abw.-KF (kg) | BI16: GF-Verzehrskorrektur nach KF:
B17: kg Milch/Kuh/Jahr | D17: dt total | E17: kg/Kuh/J. | J17: 0/50/100 | P17: kg | Q17: kg | R17: kg | U17: =IF(OR(ISNUMBER(F18),ISNUMBER(F19)),"ohne Sömmerung","") ->  | V17: =IF(OR(U18="ja",U19="ja"),"Tiere","") ->  | W17: =IF(OR(AND(U18="ja",ISNUMBER(V18)),AND(U19="ja",ISNUMBER(V19))),"Tage","") ->  | X17: =IF(AND(X18="",X19=""),"","Pl.") ->  | Y17: =IF(AND(AZ18=$F18,AZ19=$F19),"","Betrieb + Sö + Abwesenheit (Nicht-Sö)") ->  | AA17: - Milchkühe: setzen Sie die durchschnittliche Jahresmilch pro Kuh und Jahr ein
E18: =IF(F18>0,BB18,"") ->  | K18: =IF(F18<>0,F18*(56+(B18-7500)*0.0014-(0.003* (B18-7500)/100*(B18-7500)/100 )+Suisse_Bilanz_1.17!BI18),"") ->  | L18: =IF(F18<>0,IF(B18<7500,F18*(95.2+(B18-7500)*0.0048)*IF($E$20="ja",0.8/0.85,1),F18*(95.2+(B18-7500)*0.0048)*IF($E$20="ja",0.8/0.85,1)),"") ->  | M18: =IF(F18<>0,IF(B18<7500,F18*(39+(B18-7500)*0.0027),F18*(39+(B18-7500)*0.0027)),"") ->  | N18: =IF(F18<>0,IF(B18<7500, F18*(172+(B18-7500)*0.0052),F18*(172+(B18-7500)*0.0052)),"") ->  | O18: =IF(F18<>0,IF(B18<7500,F18*(14+(B18-7500)*0.001),F18*(14+(B18-7500)*0.001)),"") ->  | P18: =IF(ISNUMBER(L18),IF(G18<=365,L18*(G18/365)*0.1,"Tage?"),"") ->  | Q18: =IF(ISNUMBER(L18),IF(OR(H18>24,I18>365),"St,Tg?",IF(G18*2.4+H18*I18>24*365,"L+W?",L18*(H18*I18/24/365))),"") ->  | R18: =IF(ISNUMBER(L18),IF(J18=100,L18-P18-Q18,IF(J18=50,(L18-P18-Q18)*0.5, 0)),"") ->  | X18: =IF(AND(U18="ja",ISNUMBER(V18),ISNUMBER(W18)),W18*V18/365,"") ->  | Y18: =IF(AZ18=F18,"",AZ18) ->  | AA18: mittlere Jahresmilch pro Kuh = (vermarktete Milch + Alpmilch + Haushalt + Verfütterung + übrige produzierte Milch) / Anzahl Milchkühe | AZ18: =SUM(F18,X18,GMF_1.8!J11*GMF_1.8!K11/365) -> 0 | BA18: =D18 -> 0 | BB18: =BA18*100/AZ18 ->  | BC18: Milchkühe | BD18: =Suisse_Bilanz_1.17!B18 -> 0 | BE18: =BB18 ->  | BF18: =(-80+0.025*BD18)*BD18/1000 -> 0 | BG18: =BF18-BB18 ->  | BI18: =IF(BE18<0,0,BG18*0.012) ->  | BJ18: dt TS GF pro Kuh/Jahr
A19: ausblenden
A20: Abkürz. | D20: =IF(OR(F18<>0,SUM(F18:F19)<>0),"alle Milchkühe im Laufstall?","") ->  | AA20: Kraftfutter: die Menge Kraftfutter in dt eintragen, die im Jahr an die Kühe auf dem Betrieb verfüttert wurden (betriebseigenes + fremdes)
B22: Rindviehmast | D22: g M-TZW | E22: kg Ausstall-LG | S22: =IF(ISNUMBER(F23)," Vergleich","") ->  | U22: =IF(ISNUMBER(F23),"Alter (d)","") ->  | V22: =IF(ISNUMBER(F23),"SG (kg)","") ->  | W22: =IF(ISNUMBER(F23),"M-TZW nach Alter & LG","") ->  | Y22: =IF(ISNUMBER(F23),"Kontrolle: Ausstall-LG = SG/0.556","") ->  | AA22: - Rindviehmast > 160 d: wird linear korrigiert nach Tageszuwachs und Ausstall-Lebendgewicht | AY22: =B22 -> Rindviehmast | AZ22: Abw.TZW (g) | BA22: Abw. AS-LG (kg) | BB22: M-TZW berechnet (g/Tag) | BD22: Ausstall-LG berechnet (Tage) | BK22: Rindviehmast
B23: RV-Mast >160 d (Pl.) | K23: =IF(OR(D23=0,E23=0,F23=0),"", (21+AZ23/100*(-0.43)+BA23/20*0.58)*$F23) ->  | L23: =IF(AND(F23<>0,D23=0),"TZW fehlt",IF(AND(F23<>0,E23=0),"A-LG fehlt",IF(AND(D23<>0,E23<>0,F23<>0),(35.68+AZ23/100*1.408+BA23/20*0.744)*$F23,""))) ->  | M23: =IF(AND(D23<>0,E23<>0,F23<>0),(13.4+AZ23/100*0.66+BA23/20*0.32)*$F23,"") ->  | N23: =IF(AND(D23<>0,E23<>0,F23<>0),(36.2+AZ23/100*0.1+BA23/20*0.94)*$F23,"") ->  | O23: =IF(AND(D23<>0,E23<>0,F23<>0),(5.8+AZ23/100*0.42+BA23/20*0.06)*$F23,"") ->  | P23: =IF(ISNUMBER(L23),IF( OR(A23="pou",A23="iemp"),IF(G23<=180,L23*(G23/365)*0.1,"Tage?"),IF(G23<=365,L23*(G23/365)*0.1,"Tage?")),"") ->  | Q23: =IF(ISNUMBER(L23),IF(OR(H23>24,I23>365),"St,Tg?",IF(G23*2.4+H23*I23>24*365,"L+W?",L23*(H23*I23/24/365))),"") ->  | R23: =IF(ISNUMBER(L23),IF(J23=100,L23-P23-Q23,IF(J23=50,(L23-P23-Q23)*0.5, 0)),"") ->  | W23: =IF(ISNUMBER(F23),IF(ISBLANK(D23),"M-TZW fehlt",IF(ISBLANK(E23),"Ausstall-LG fehlt",IF(OR(ISBLANK(U23),U23=0),"Schlachtalter fehlt",ROUND(BB23,0)&" g -> weicht "&ABS(ROUND(BB23-D23,0))&" g ab"))),"") ->  | Y23: =IF(ISNUMBER(F23),IF(ISNUMBER(V23),BD23& " kg LG -> weicht " &ABS(ROUND(BD23-E23,0))&" kg ab","Schlachtgewicht (SG) fehlt"),"") ->  | AA23: Werte ausserhalb des Gültigkeitsbereiches werden auf das jeweilige Minimum oder Maximum gesetzt | AZ23: =IF(ISNUMBER(D23),IF(D23<850,850-1400,IF(D23>1500,1500-1400,D23-1400)),"TZW fehlt") -> TZW fehlt | BA23: =IF(ISNUMBER(E23),IF(E23<400,400-530,IF(E23>580,580-530,E23-530)),"AS-LG fehlt") -> AS-LG fehlt | BB23: =IF(ISNUMBER(F23),ROUND(1396+3.19*E23-4.29*U23,0),"") ->  | BC23: =D23/BB23-1 ->  | BD23: =IF(ISNUMBER(F23),ROUND(V23/0.566,0),"") ->  | BE23: =E23/BD23-1 -> 
A24: =IF(ISBLANK(B24),0,VLOOKUP(B24,Daten!$B$248:$E$345,4,FALSE)) -> 0 | B24: - | K24: =IF(F24=0,"",VLOOKUP($A24,Daten!$E$248:$L$345,4,FALSE)*$F24) ->  | L24: =IF(F24<>0,VLOOKUP($A24,Daten!$E$248:$L$345,5,FALSE)*$F24,"") ->  | M24: =IF(F24<>0,VLOOKUP($A24,Daten!$E$248:$L$345,6,FALSE)*$F24,"") ->  | N24: =IF(F24<>0,VLOOKUP($A24,Daten!$E$248:$L$345,7,FALSE)*$F24,"") ->  | O24: =IF(F24<>0,VLOOKUP($A24,Daten!$E$248:$L$345,8,FALSE)*$F24,"") ->  | P24: =IF(ISNUMBER(L24),IF( OR(A24="pou",A24="iemp"),IF(G24<=180,L24*(G24/365)*0.1,"Tage?"),IF(G24<=365,L24*(G24/365)*0.1,"Tage?")),"") ->  | Q24: =IF(ISNUMBER(L24),IF(OR(H24>24,I24>365),"St,Tg?",IF(G24*2.4+H24*I24>24*365,"L+W?",L24*(H24*I24/24/365)*(VLOOKUP($A24,Daten!$E$248:$N$345,10,FALSE)*1))),"") ->  | AA24: - Tränker: Milchviehbetriebe erfassen Tränker für den Verkauf als Jungvieh <160 d
A25: =IF(ISBLANK(B25),0,VLOOKUP(B25,Daten!$B$248:$E$345,4,FALSE)) -> 0 | B25: - | K25: =IF(F25=0,"",VLOOKUP($A25,Daten!$E$248:$L$345,4,FALSE)*$F25) ->  | L25: =IF(F25<>0,VLOOKUP($A25,Daten!$E$248:$L$345,5,FALSE)*$F25,"") ->  | M25: =IF(F25<>0,VLOOKUP($A25,Daten!$E$248:$L$345,6,FALSE)*$F25,"") ->  | N25: =IF(F25<>0,VLOOKUP($A25,Daten!$E$248:$L$345,7,FALSE)*$F25,"") ->  | O25: =IF(F25<>0,VLOOKUP($A25,Daten!$E$248:$L$345,8,FALSE)*$F25,"") ->  | Q25: =IF(ISNUMBER(L25),IF(OR(H25>24,I25>365),"St,Tg?",IF(G25*2.4+H25*I25>24*365,"L+W?",L25*(H25*I25/24/365)*(VLOOKUP($A25,Daten!$E$248:$N$345,10,FALSE)*1))),"") ->  | AA25: - Bei Tieren, die zeitweise im Laufhof sind, geben Sie die Anzahl Tage pro Jahr ein (10% des Tagesanfalls fallen im Laufhof an).
A26: =IF(ISBLANK(B26),0,VLOOKUP(B26,Daten!$B$248:$E$345,4,FALSE)) -> 0 | B26: - | K26: =IF(F26=0,"",VLOOKUP($A26,Daten!$E$248:$L$345,4,FALSE)*$F26) ->  | L26: =IF(F26<>0,VLOOKUP($A26,Daten!$E$248:$L$345,5,FALSE)*$F26,"") ->  | M26: =IF(F26<>0,VLOOKUP($A26,Daten!$E$248:$L$345,6,FALSE)*$F26,"") ->  | N26: =IF(F26<>0,VLOOKUP($A26,Daten!$E$248:$L$345,7,FALSE)*$F26,"") ->  | O26: =IF(F26<>0,VLOOKUP($A26,Daten!$E$248:$L$345,8,FALSE)*$F26,"") ->  | Q26: =IF(ISNUMBER(L26),IF(OR(H26>24,I26>365),"St,Tg?",IF(G26*2.4+H26*I26>24*365,"L+W?",L26*(H26*I26/24/365)*(VLOOKUP($A26,Daten!$E$248:$N$345,10,FALSE)*1))),"") ->  | AA26: - Bei Tieren, die zeitweise auf der Weide sind, geben Sie die Stunden pro Tag [Std./T.] und die Tage pro Jahr [Tage/J.] an (nur Zeiten auf dem Betrieb ohne Alpung) | BG26: Bedingung
A27: =IF(ISBLANK(B27),0,VLOOKUP(B27,Daten!$B$248:$E$345,4,FALSE)) -> 0 | B27: - | K27: =IF(F27=0,"",VLOOKUP($A27,Daten!$E$248:$L$345,4,FALSE)*$F27) ->  | L27: =IF(F27<>0,VLOOKUP($A27,Daten!$E$248:$L$345,5,FALSE)*$F27,"") ->  | M27: =IF(F27<>0,VLOOKUP($A27,Daten!$E$248:$L$345,6,FALSE)*$F27,"") ->  | N27: =IF(F27<>0,VLOOKUP($A27,Daten!$E$248:$L$345,7,FALSE)*$F27,"") ->  | O27: =IF(F27<>0,VLOOKUP($A27,Daten!$E$248:$L$345,8,FALSE)*$F27,"") ->  | Q27: =IF(ISNUMBER(L27),IF(OR(H27>24,I27>365),"St,Tg?",IF(G27*2.4+H27*I27>24*365,"L+W?",L27*(H27*I27/24/365)*(VLOOKUP($A27,Daten!$E$248:$N$345,10,FALSE)*1))),"") ->  | AA27: Hinweis: An Weidetagen mit mehr als 12 Std. Weide ist kein zusätzlicher Abzug für Laufhof möglich; die Summe von Laufhof- und Weidezeit kann max. 1 Jahr sein (sonst erscheint L+W?); Weidetage mit < 12 h Weide können gleichzeitig auch Laufhoftage sein. | BA27: Einschränkungen zur Grundfutterrechnung: | BG27: 1= trifft zu | BH27: Text, der angezeigt wird:
A28: =IF(ISBLANK(B28),0,VLOOKUP(B28,Daten!$B$248:$E$345,4,FALSE)) -> 0 | B28: - | K28: =IF(F28=0,"",VLOOKUP($A28,Daten!$E$248:$L$345,4,FALSE)*$F28) ->  | L28: =IF(F28<>0,VLOOKUP($A28,Daten!$E$248:$L$345,5,FALSE)*$F28,"") ->  | M28: =IF(F28<>0,VLOOKUP($A28,Daten!$E$248:$L$345,6,FALSE)*$F28,"") ->  | N28: =IF(F28<>0,VLOOKUP($A28,Daten!$E$248:$L$345,7,FALSE)*$F28,"") ->  | O28: =IF(F28<>0,VLOOKUP($A28,Daten!$E$248:$L$345,8,FALSE)*$F28,"") ->  | Q28: =IF(ISNUMBER(L28),IF(OR(H28>24,I28>365),"St,Tg?",IF(G28*2.4+H28*I28>24*365,"L+W?",L28*(H28*I28/24/365)*(VLOOKUP($A28,Daten!$E$248:$N$345,10,FALSE)*1))),"") ->  | AA28: Hinweis: bei Geflügel ist kein Abzug für Weide möglich; der Aussenklimabereich gehört zum Gebäude, deshalb kein "Laufhofabzug". Für die Anzahl Tage Auslauf ausserhalb von Stall und Aussenklimabereich kann der "Laufhofabzug" jedoch gemacht werden. | AZ28: 1 | BA28: Höhenangabe Betrieb fehlt | BG28: =IF(OR(ISNUMBER(Q51),P51=""),0,1) -> 0 | BH28: =IF(BG28=1," Die Höhenlage des Betriebs eintragen (weiter oben) !","") -> 
D29: alles Jungvieh im Laufstall? | J29: Total (A1) | K29: =SUM(K18:K19,K23:K28) -> 0 | L29: =SUM(L18:L19,L23:L28) -> 0 | M29: 0 | N29: 0 | O29: 0 | P29: =SUM(P18:P19,P23:P28) -> 0 | Q29: 0 | R29: =IF(SUM(R18:R19,R23:R28)<0,0,SUM(R18:R19,R23:R28)) -> 0 | S29: =IF(SUM(R18:R19,R23:R28)<0," V1 ist negativ = nicht möglich",IF(R29>L29," V1 ist grösser als Nges bei A1 = nicht möglich -> Eingaben korrigieren","")) ->  | AA29: Hinweis: Bei Mastpoulethaltung und bei Bruderhähnen ist das Modul Mastpoulet des BLW (Impex) zu verwenden -> | AK29: https://www.blw.admin.ch/blw/de/home/instrumente/direktzahlungen/oekologischer-leistungsnachweis/ausgeglichene-duengerbilanz.html | AZ29: 2 | BA29: Tiefstwert für intensive Wiesen: nach Höhenlage 20-50 dt TS/ha | BG29: =IF(AND(ISNUMBER(G71),G71<BD71),1,0) -> 0 | BH29: =IF(BG29=1," Ertrag intensive Wiesen unter Tiefstwert ("&BD71&" dtTS/ha) --> GF-Flächen + Erträge überprüfen; Anleitung weiter rechts beachten !","") -> 
J30: - Abzug für verfüttertes "nährstoffarmes Grundfutter" (1): | K30: =IF(Q38<0,0,IF((Q38+Q46+Q47)>=K29,K29,SUM(Q38,Q46:Q47))) -> 0 | L30: =IF(K29=0,0,-K30*0.6) -> 0 | M30: =IF(K29=0,0,-K30*0.1) -> 0 | P30: L | Q30: W | R30: V1 | AA30: Bei Pouletmast mit Auslauf ausserhalb von Stall und Aussenklimabereich können max. 180 "Laufhof-Tage" pro Jahr geltend gemacht werden, weil die Küken die ersten Lebenswochen im Stall verbringen. | AZ30: 3 | BA30: wenn Ertrag ext. Wiese über Limite | BG30: =BC66 -> 0 | BH30: =IF(BG30=1," Ertrag extensive Wiesen über Maximalwert --> GF-Flächen + Erträge überprüfen; Anleitung weiter rechts beachten !","") -> 
J31: - Abzug von Stickstoffverlusten infolge Weide- (W*0.7) und Laufhofhaltung (L*0.5): | L31: =-0.5*P29-0.7*Q29 -> 0 | R31: =R116 -> 0 | S31: =IF(-R116>R29," Wegfuhr von VM-Nges höher als V1 -> Wegfuhr überprüfen","") ->  | AA31: - Grundfutter-Verzehr Zuchtschweine: separate "Tierart" auswählen ("GF-Verz. Zuchtschw. dt TS total") und effektiv verfütterte Menge in dt TS in Spalte "Anzahl" eingeben. | AZ31: 4 | BA31: wenn Ertrag ungedüngte Wiese über Limite | BG31: =BC67 -> 0 | BH31: =IF(BG31=1," Ertrag ungedüngte Wiesen über Maximalwert --> GF-Flächen + Erträge überprüfen; Anleitung weiter rechts beachten !","") -> 
K32: Total Nährstoffanfall aus Tierhaltung, korrigiert (A2) | L32: =L29+L30+L31 -> 0 | M32: =M29+M30 -> 0 | N32: =N29 -> 0 | O32: =O29 -> 0 | R32: V2 | AA32: Wird ein Verzehr über 0.5 dt TS / Platz / Jahr geltend gemacht, ist der effektive Verzehr mit Modul 6/7 (I/E-Bilanz oder Lineare Korrektur nach Futtergehalten) nachzuweisen. Die GF sind in der Grundfutterrechnung korrekt einzubeziehen (z.B. verfüttertes Stroh). | AZ32: 5 | BA32: wenn Ertrag ext. Weide über Limite | BG32: =BC68 -> 0 | BH32: =IF(BG32=1," Ertrag extensive Weide über Maximalwert --> GF-Flächen + Erträge überprüfen; Anleitung weiter rechts beachten !","") -> 
K33: davon Nverfügbar: | L33: =J150 -> 0 | Q33: Vollmist-Nges | R33: =R29+R31 -> 0 | AA33: - Grundfutter-Verzehr Mastschweine: nur mit Nachweis mittels I/E-Bilanz möglich, nur ausgewählte Grundfutter (siehe Wegleitung Position 2.10), max. 0.1 kg TS/Tag/Tier | AZ33: 6 | BA33: wenn Ertrag wenig intensive Wiese über Limite | BG33: =BC69 -> 0 | BH33: =IF(BG33=1," Ertrag wenig intensive Wiesen über Maximalwert --> GF-Flächen + Erträge überprüfen; Anleitung weiter rechts beachten !","") -> 
L34: =H148 -> 0.6 | P34: (V1+V2)/(A1+A3) | R34: =IF(AND(IF(R33=0,0,R33/(L29+M116))>=0,IF(R33=0,0,R33/(L29+M116))<=1),IF(R33<=0,0,R33/(L29+M116)),0) -> 0 | S34: =IF(-R116>R29," Wegfuhr von VM-Nges (V2) auf Max.(=V1) gesetzt","") ->  | AZ34: 7 | BA34: wenn Ertrag mittelintensive Wiese über Limite | BG34: =BC70 -> 0 | BH34: =IF(BG34=1," Ertrag mittelintensive Wiesen über Maximalwert --> GF-Flächen + Erträge überprüfen; Anleitung weiter rechts beachten !","") -> 
O36: GF | P36: davon | AA36: - In der Spalte "Vollmist Typ" geben Sie ... (Vollmist = Mist enthält nebst dem Kot auch allen Harn, d.h. kein Gülle-Anfall) | AZ36: 8 | BA36: wenn Ertrag intensive Wiese über Limite | BG36: =BC71 -> 0 | BH36: =IF(BG36=1," Ertrag intensive Wiesen über Maximalwert --> GF-Flächen + Erträge überprüfen; Anleitung weiter rechts beachten !","") ->  | BS36: Bedingungen | CH36: stop
O37: dt TS | P37: normal | Q37: nährstoffarm* | AA37: - 0 ein (oder leer lassen), wenn nur Vollgülle, Gülle + Sapelmist oder Gülle + weniger als 10% Vollmist anfallen. | AZ37: 9 | BA37: wenn Ertrag mittelintensive Wiese > intensive | BG37: =IF(AND(ISNUMBER(G70),ISNUMBER(G71),G70>G71),1,0) -> 0 | BH37: =IF(BG37=1," Ertrag mittelintensive Wiesen > intensive W. ?","") ->  | BL37: Addition der GF-Zu- und Wegfuhren nach Typ | BS37: 1 = trifft zu
B38: Grundfutter-Zufuhr +, GF-Wegfuhr - | F38: Wegf. | G38: Zufuhr | I38: Total Grundfutterverzehr (nach A1) | O38: =K29 -> 0 | P38: =O38-Q38 -> 0 | Q38: =IF(O38=0,0,IF(Q50-Q39+Q40<0,0,Q50/(1+N46+N47)-Q39+Q40)) -> 0 | R38: ="(1)" -> (1) | AA38: - 50 ein, wenn die Tiere im Zweiraumlaufstall Tiefstreu-Laufstallmist (keine Gülle) + Vollgülle | AZ38: 10 | BA38: wenn Ertrag wenig intensive Wiese > mittelintensive | BG38: =IF(AND(ISNUMBER(G69),ISNUMBER(G70),G69>1.1*G70),1,0) -> 0 | BH38: =IF(BG38=1," Ertrag wenig intensive Wiesen > mittelintensive W. ?","") ->  | BN38: GF-Typ | BO38: Wegf. | BP38: Zufuhr | BS38: GF-Art | BT38: %TS | BU38: %TS zu
B39: Art des GF | D39: dt FS | E39: %TS | F39: dt TS | G39: dt TS | I39: + Total GF-Wegfuhr | O39: =SUM(P39:Q39) -> 0 | P39: =-SUM(BO50,BO55) -> 0 | Q39: =-SUM(BO51:BO52) -> 0 | AA39: produzieren (alle Systeme mit 10 - 90% Vollmist). | AZ39: 11 | BA39: wenn Ertrag extensive Wiese > wenig intensive | BG39: =IF(AND(ISNUMBER(G66),ISNUMBER(G69),G66>1.1*G69),1,0) -> 0 | BH39: =IF(BG39=1," Ertrag extensive Wiesen > wenig intensive W. ?","") ->  | BO39: dt TS | BP39: dt TS | BQ39: TS_Min | BR39: TS_Max | BS39: fehlt | BT39: fehlt | BU39: tief | BV39: hoch
B40: - | F40: =IF(AND(D40<0,BN40=4),0,IF(BS40=1,"GF-Art?",IF(BT40=1, "%TS?",IF(OR(BU40=1, BV40=1),"%TS zu",IF(AND(D40<0,E40>0,BU40=0,BV40=0,BN40<>0),D40*E40,""))))) ->  | G40: =IF(AND(D40>0,E40>0,BU40=0,BV40=0,BN40<>0),D40*E40,IF(AND(BS40=0,BT40=0,BU40=1),"tief, Min.= "&BQ40*100&"% ",IF(AND(BS40=0,BT40=0,BV40=1),"hoch, Max.="&BR40*100&"% ",""))) ->  | I40: - Total GF-Zufuhr | O40: =SUM(P40:Q40) -> 0 | P40: =SUM(BP50,BP55,BP59) -> 0 | Q40: =SUM(BP51:BP52,BP54) -> 0 | AA40: - 100 ein, wenn die Tiere im Stall nur Vollmist (Harn ist im Mist) (<10% Gülle), das heisst praktisch keine Gülle produzieren | AZ40: 12 | BA40: wenn Ertrags-Summe der intensiven Wiesen negative Zahl, dann zu viel produziert | BG40: =IF(H71<-0.5,1,0) -> 0 | BH40: =IF(BG40=1," "&-ROUND(H71,1)&" dt TS weniger produzieren !","") ->  | BN40: =IF(B40<>"",VLOOKUP(B40,Grundfutter_Liste,3,FALSE),0) -> 0 | BQ40: =IF(B40<>"",VLOOKUP(B40,Grundfutter_Liste,4,FALSE),0) -> 0 | BR40: =IF(B40<>"",VLOOKUP(B40,Grundfutter_Liste,5,FALSE),1) -> 1 | BS40: =IF(ISNA(BN40),1,IF(AND(D40<>0,BN40=0),1,0)) -> 0 | BT40: =IF(AND(ISNUMBER(D40),E40=0), 1,0) -> 0 | BU40: =IF(AND(BN40<>0,ISNUMBER(E40),E40<BQ40),1,0) -> 0 | BV40: =IF(AND(BN40<>0,ISNUMBER(E40),E40>BR40),1,0) -> 0
B41: - | F41: =IF(AND(D41<0,BN41=4),0,IF(BS41=1,"GF-Art?",IF(BT41=1, "%TS?",IF(OR(BU41=1, BV41=1),"%TS zu",IF(AND(D41<0,E41>0,BU41=0,BV41=0,BN41<>0),D41*E41,""))))) ->  | G41: =IF(AND(D41>0,E41>0,BU41=0,BV41=0,BN41<>0),D41*E41,IF(AND(BS41=0,BT41=0,BU41=1),"tief, Min.= "&BQ41*100&"% ",IF(AND(BS41=0,BT41=0,BV41=1),"hoch, Max.="&BR41*100&"% ",""))) ->  | I41: - betriebseigene verfütterte GF von ausserhalb | AA41: (= Tiefstreulaufstall (1 Raum) für Raufutterverzehrer, Tiefstreulaufstall für Schweine, alle Systeme für Geflügel). | AZ41: 13 | BA41: wenn keine Fläche + Ertrags-Summe der intensiven Wiesen positive Zahl, dann zu wenig produziert | BG41: =IF(AND(F71=0,OR(H71>0.005*O48,H71>2.5)),1,0) -> 0 | BH41: =IF(BG41=1," noch "&ROUND(H71,1)&" dt TS produzieren (bzw. Fläche der intensiven Wiesen & Weiden eintragen) !","") ->  | BN41: =IF(B41<>"",VLOOKUP(B41,Grundfutter_Liste,3,FALSE),0) -> 0 | BQ41: =IF(B41<>"",VLOOKUP(B41,Grundfutter_Liste,4,FALSE),0) -> 0 | BR41: =IF(B41<>"",VLOOKUP(B41,Grundfutter_Liste,5,FALSE),1) -> 1 | BS41: =IF(ISNA(BN41),1,IF(AND(D41<>0,BN41=0),1,0)) -> 0 | BT41: =IF(AND(ISNUMBER(D41),E41=0), 1,0) -> 0 | BU41: =IF(AND(BN41<>0,ISNUMBER(E41),E41<BQ41),1,0) -> 0 | BV41: =IF(AND(BN41<>0,ISNUMBER(E41),E41>BR41),1,0) -> 0
G42: =IF(AND(D42>0,E42>0,BU42=0,BV42=0,BN42<>0),D42*E42,IF(AND(BS42=0,BT42=0,BU42=1),"tief, Min.= "&BQ42*100&"% ",IF(AND(BS42=0,BT42=0,BV42=1),"hoch, Max.="&BR42*100&"% ",""))) ->  | I42: der Futterfläche: | M42: dt FS | N42: %TS | AA42: - Fehlen Ihnen Zeilen für weitere Tierkategorien, fügen Sie solche durch Klicken auf den Knopf "Zeile Tiere einfügen" ein. | AZ42: 14 | BA42: Ertrag Silomais < 125% der intensiven Wiesen | BG42: =IF(AND(ISNUMBER(F55),ISNUMBER(G55),ISNUMBER(F71),ISNUMBER(G71)),IF(G55<1.25*G71,1,0)) -> FALSE | BH42: =IF(BG42=1," Ertrag von Silomais unter 125% des Ertrags der intensiven Wiesen und Weiden --> Erträge überprüfen; Anleitung weiter rechts beachten !","") ->  | BN42: 0 | BQ42: 0 | BR42: 0 | BS42: =IF(ISNA(BN42),1,IF(AND(D42<>0,BN42=0),1,0)) -> 0 | BT42: 0 | BU42: 0 | BV42: 0
G43: =IF(AND(D43>0,E43>0,BU43=0,BV43=0,BN43<>0),D43*E43,IF(AND(BS43=0,BT43=0,BU43=1),"tief, Min.= "&BQ43*100&"% ",IF(AND(BS43=0,BT43=0,BV43=1),"hoch, Max.="&BR43*100&"% ",""))) ->  | O43: =IF(AND(ISNUMBER(M43),N43=0),"% TS?",IF(M43>0,N43*M43,"")) ->  | AA43: - I/E-Bilanz: angemeldete Betriebe (siehe Wegleitung Modul 6 und 7), welche für Schweine (od. andere Tierkat.) eine I/E-Bilanz ausweisen, können durch Klicken auf den | AZ43: 15 | BA43: wenn 1 Ertragsschätzung nötig ist | BE43: Kriterium: | BF43: *Ertragsschätzung* | BG43: =IF(COUNTIF(S66:S71,BF43)>0,1,0) -> 0 | BH43: =IF(BG43=1," erhöhter Ertrag -> nur mit 'Ertragsschätzung' möglich","") ->  | BN43: =IF(B43<>"",VLOOKUP(B43,Grundfutter_Liste,3,FALSE),0) -> 0 | BQ43: =IF(B43<>"",VLOOKUP(B43,Grundfutter_Liste,4,FALSE),0) -> 0 | BR43: =IF(B43<>"",VLOOKUP(B43,Grundfutter_Liste,5,FALSE),1) -> 1 | BS43: 0 | BT43: 0 | BU43: 0 | BV43: 0
O44: =IF(AND(ISNUMBER(M44),N44=0),"% TS?",IF(M44>0,N44*M44,"")) ->  | AA44: Knopf "Zeile für Übertrag I/E-Bilanz einfügen" eine Zeile einfügen, die das Eingeben der Nährstoffmengen direkt in den Spalten "Nährstoffanfall (kg/Jahr)" ermöglicht. | AZ44: 16 | BA44: diese Zeile dient dazu, dass kein Fehlerwert angezeigt wird | BG44: 1 | BH44: =IF(BG44=1,"","") ->  | BN44: 0 | BQ44: 0 | BR44: 0 | BS44: 0 | BT44: 0 | BU44: 0 | BV44: 0
I45: = Total Netto-Grundfutterbedarf (dt TS) | O45: =O38+O39-SUM(O40:O44) -> 0 | P45: =O45-Q45 -> 0 | Q45: =Q38+Q39-Q40 -> 0 | AA45: Berechnung der Grundfutterproduktion auf der Futterfläche: | BN45: 0 | BQ45: 0 | BR45: 0 | BS45: 0 | BT45: 0 | BU45: 0 | BV45: 0
I46: + Lagerungs- und Krippenverluste ( 0-5%) | O46: =IF(ABS($N46)<=0.05,$N46*O45,"max.5% !") -> 0 | P46: =O46-Q46 -> 0 | Q46: =IF(ABS($N46)<=0.05,$N46*Q45,"") -> 0 | R46: ="(1)" -> (1) | AA46: Vorgehen: Aufgrund des GF-Verzehrs auf dem Betrieb, der Zu- und Wegfuhren von GF und der GF-Produktion ausserhalb der Futterfläche | BA46: Hinweise (Anzeige unterhalb "Nährstofftransfer T") | BN46: 0 | BQ46: 0 | BR46: 0 | BS46: 0 | BT46: 0 | BU46: 0 | BV46: 0
I47: + Fehlerbereich der GF-Bilanz ( 0-5%) | O47: =IF(ABS($N47)<=0.05,$N47*O45,"max.5% !") -> 0 | P47: =O47-Q47 -> 0 | Q47: =IF(ABS($N47)<=0.05,$N47*Q45,"") -> 0 | R47: ="(1)" -> (1) | AA47: wird die gesamte GF-Menge berechnet, welche auf der Futterfläche des Betriebes heranwachsen muss | AZ47: 1 | BA47: GF-Wegfuhren von ext. Wiesen > Produktion | BG47: =IF(AND( -SUM(BO51:BP51)>SUM(H66:H67)+0.5,BO51<-50),1,0) -> 0 | BH47: =IF(BG47=1," GF-Wegfuhr von ext. Wiesen ist grösser als Ertrag von ungedüngte Wiesen -> überprüfen!","") ->  | BN47: 0 | BQ47: 0 | BR47: 0 | BS47: 0 | BT47: 0 | BU47: 0 | BV47: 0
I48: = GF-Produktion auf Futterfläche (dt TS) | O48: =SUM(O45:O47) -> 0 | P48: =O48-Q48 -> 0 | Q48: =SUM(Q45:Q47) -> 0 | AA48: - Die Zu- und Wegfuhren von GF müssen lückenlos aufgezeigt werden (Menge und Art des Futters, Lieferant bzw. Abnehmer, Datum, siehe Wegleitung 2.10). | AZ48: 2 | BA48: GF-Wegfuhren von wenig intensiven Wiesen > Produktion | BG48: =IF(AND(-SUM(BO52:BP52)>H69+0.5, BO52<-50),1,0) -> 0 | BH48: =IF(BG48=1," GF-Wegfuhr von wenig int. Wiesen ist grösser als Produktion -> überprüfen!","") ->  | BN48: 0 | BQ48: 0 | BR48: 0 | BS48: 0 | BT48: 0 | BU48: 0 | BV48: 0
AA49: Es steht die Wahl frei zwischen dem 3-Jahresdurchschnitt (= Wiesenerträge im Mittel von 3 Jahren) oder dem Jährlichkeitsprinzip. Ein Wechsel ist frühestens nach 5 Jahren möglich. | AZ49: 3 | BA49: Total GF-Verzehr "normal" wird negativ | BG49: =IF(AND(BG40=0,BG41=0,P38<-50),1,0) -> 0 | BH49: =IF(BG49=1,"Mengen von Zu- und Wegfuhren mit der Produktion von 'normalem' und 'extensivem' GF überprüfen","") -> 
P50: =IF(ABS(N46)>0.05, "Lagerungs- und Krippverluste überprüfen",IF(AND(K29=0,N46>0.025 ),"keine Krippenverluste möglich -> max. 2.5% Lagerverluste ","")) ->  | Q50: =SUM(H66:H69)+H64 -> 0 | AZ50: 4 | BA50: diese Zeile dient dazu, dass kein Fehlerwert angezeigt wird | BG50: 1 | BH50: =IF(BG50=1,"","") ->  | BL50: Gras - normal | BN50: 1 | BO50: =SUMIF(BN40:BN48,BN50,F40:F48) -> 0 | BP50: =SUMIF(BN40:BN48,BN50,G40:G48) -> 0
A51: häufige | P51: =IF(AND(Q51>0,ISNUMBER(Q51)),"Höhenlage Betrieb:",IF(AND(F72=0,H72=0),"","Die Höhenlage des Betriebs eintragen ->")) ->  | R51: =IF(AND(F72=0,H72=0,ISBLANK(Q51)),"","m.ü.M.") ->  | X51: =IF(ISNUMBER(Q51),"Höhenlage -> max. Erträge nach Wegleitung Tab. 3","") ->  | AA51: - bei den GF-Zu-/Wegfuhren ist zu unterscheiden zwischen "normalem" und "nährstoffarmem" GF (= Stroh, GF von extensiven und wenig intensiven Wiesen) | BL51: Gras - extensiv = nährstoffarm | BN51: 2 | BO51: =SUMIF(BN40:BN48,BN51,F40:F48) -> 0 | BP51: =SUMIF(BN40:BN48,BN51,G40:G48) -> 0
A52: Ertrags- | G52: =CHAR(248) & " TS -" -> ø TS - | H52: TS- | AA52: Die zu produzierende Grundfuttermenge ist auf die einzelnen Kategorien und ihre Flächen zu verteilen. Ausgehend von der Höhenlage des Betriebes | BA52: Zusatz zu Nr. 12 + 13 | BC52: TS-Menge? | BD52: Ertrags-Änderung? | BF52: Rang Ert.änd. | BL52: Gras - wenig intensiv = nährstoffarm | BN52: 3 | BO52: =SUMIF(BN40:BN48,BN52,F40:F48) -> 0 | BP52: =SUMIF(BN40:BN48,BN52,G40:G48) -> 0
A53: bereiche | B53: Kulturen | F53: Fläche | G53: Ertrag | H53: Menge | I53: Nährstoffbedarf (kg/dt TS) | M53: Nährstoffbedarf (kg / Jahr) | AA53: dürfen die Erträge maximal denjenigen der intensiven Nutzung der jeweiligen Höhenlage entsprechen (siehe Wegleitung Tab. 3). Werden höhere Erträge | AZ53: 1 | BA53: falls mittelintensive Wiesen | BC53: =IF(AND(ISNUMBER(H70),H70>0),1,0) -> 0 | BD53: =IF(BC53=1,H71/F70,"") ->  | BE53: =ABS(BD53) ->  | BF53: =_xlfn.RANK.EQ(BE53,BE$53:BE$55,1) ->  | BG53: =IF(AND(OR(BG40=1,BG41=1),AND(BC53=1,ISNUMBER(BD53),ABS(BD53)<5,BF53=1,SUM(BG29:BG39)=0)),1,0) ->  | BH53: =IF(BG53=1," z.B. Ertrag mittelintensive W. um "&ROUND(BD53,1)&" dt/ha ändern ","") ->  | BL53: Summe Gras | BN53: 1-3 | BO53: =SUM(BO50:BO52) -> 0 | BP53: =SUM(BP50:BP52) -> 0
A54: < 600 m | F54: ha | G54: dt/ha | H54: dt | I54: N | J54: P2O5 | K54: K2O | L54: Mg | M54: N | N54: P2O5 | O54: K2O | P54: Mg | AA54: - Zum Zwischenfutter gehören auch die Frühjahrsschnitte vor Umbruch von Kunstwiesen. | AJ54: geltend gemacht, so sind diese mit einer "Ertragsschätzung" | AZ54: 2 | BA54: falls wenig intensive Wiesen | BC54: =IF(AND(ISNUMBER(H69),H69>0),1,0) -> 0 | BD54: =IF(BC54=1,H71/F69,"") ->  | BE54: =ABS(BD54) ->  | BF54: =_xlfn.RANK.EQ(BE54,BE$53:BE$55,1) ->  | BG54: =IF(AND(OR(BG40=1,BG41=1),AND(BC54=1,ISNUMBER(BD54),ABS(BD54)<5,BF54=1,SUM(BG29:BG39)=0)),1,0) ->  | BH54: =IF(BG54=1," z.B. Ertrag wenig intensive W. um "&ROUND(BD54,1)&" dt/ha ändern ","") ->  | BL54: Nicht-Gras - Stroh = nährstoffarm | BN54: 4 | BP54: =SUMIF(BN40:BN48,BN54,G40:G48) -> 0
A55: 170-230 | B55: Silomais, Ganzpflanzen-Sorghum | H55: =IF(OR(AND(F55>0,G55<80),BG42=1 ),"Ertrag?",G55*F55) -> 0 | I55: =IF(G55<=0.8*185,110*(G55/185),110) -> 0 | J55: 0.58 | K55: 1.3 | L55: 0.13 | M55: =IF(H55>0,F55*I55,"") ->  | N55: =IF(H55>0,H55*J55,"") ->  | O55: =IF(H55>0,H55*K55,"") ->  | P55: =IF(H55>0,H55*L55,"") ->  | Q55: =IF(BG42=1," Ertrag im Vergleich zu int. Wiesen zu tief, mind. 125% des Ertrags der intensiven Wiesen einsetzen",IF(AND(F55>0,G55<80,ISNUMBER(G55)), "Ertrag sollte 80 dt oder mehr erreichen","")) ->  | AA55: - Wiesen sind Natur- und Kunstwiesen zusammen. | AJ55: gemäss DZV Anhang 1 Ziffer 2.1.11 nachzuweisen. | AZ55: 3 | BA55: falls extensive Wiesen | BC55: =IF(AND(ISNUMBER(H66),H66>0),1,0) -> 0 | BD55: =IF(BC55=1,H71/F66,"") ->  | BE55: =ABS(BD55) ->  | BF55: =_xlfn.RANK.EQ(BE55,BE$53:BE$55,1) ->  | BG55: =IF(AND(OR(BG40=1,BG41=1),AND(BC55=1,ISNUMBER(BD55),ABS(BD55)<5,BF55=1,SUM(BG29:BG39)=0)),1,0) ->  | BH55: =IF(BG55=1," z.B. Ertrag extensive W. um "&ROUND(BD55,1)&" dt/ha ändern ","") ->  | BL55: Nicht-Gras - normal | BN55: 5 | BO55: =SUMIF(BN40:BN48,BN55,F40:F48) -> 0 | BP55: =SUMIF(BN40:BN48,BN55,G40:G48) -> 0
A56: 170-230 | B56: Futterrüben | H56: =IF(AND(F56>0,G56<80),"Ertrag?",G56*F56) -> 0 | I56: =IF(G56<=0.8*175,100*G56/175,100) -> 0 | J56: 0.5 | K56: 1.12 | L56: 0.13 | N56: =IF(H56>0,H56*J56,"") ->  | O56: =IF(H56>0,H56*K56,"") ->  | P56: =IF(H56>0,H56*L56,"") ->  | AA56: - Zuerst alle Flächen eintragen, dann die TS Erträge schätzen und eintragen: | AJ56: (d.h. ist Ertrag plausibel aufgrund von Nutzung, Düngung, Wiesenbestand, Standort?) | AZ56: 4 | BA56: diese Zeile dient dazu, dass kein Fehlerwert angezeigt wird | BG56: 1 | BH56: =IF(BG56=1,"","") ->  | BL56: Summe übriges GF | BN56: 4+5 | BO56: =SUM(BO54:BO55) -> 0 | BP56: =SUM(BP54:BP55) -> 0
A57: fix 106 | B57: Getreide-Silage | G57: 106 | H57: =IF(AND(F57>0,G57<80),"Ertrag?",G57*F57) -> 0 | I57: 110 | J57: =63/106 -> 0.5943396226 | K57: =102/106 -> 0.9622641509 | L57: =11/106 -> 0.1037735849 | N57: =IF(H57>0,H57*J57,"") ->  | O57: =IF(H57>0,H57*K57,"") ->  | P57: =IF(H57>0,H57*L57,"") -> 
A58: fix 106 | B58: Getreide-Silage mit Leguminosen | G58: 106 | H58: =IF(AND(F58>0,G58<80),"Ertrag?",G58*F58) -> 0 | I58: 80 | J58: =60/106 -> 0.5660377358 | K58: =120/106 -> 1.132075472 | L58: =10/106 -> 0.09433962264
A59: 50-70 | B59: Grünmais / Ganzpfl.-Sorghum als 2. Kultur | H59: =IF(AND(F59>0,G59<10),"Ertrag?",G59*F59) -> 0 | I59: =IF(G59<=0.8*60,70*G59/60,70) -> 0 | J59: 0.65 | K59: 2.7 | L59: 0.1 | AA59: bei Wiesen pro Nutzung etwa mit 15 - 25 dt TS/ha rechnen, dann Korrektur vornehmen, so dass Grundfutterbilanz (GF-Verbrauch und GF-Produktion) aufgeht | BL59: Nicht-Gras - Nebenprodukte aus VL | BN59: 6 | BP59: =SUMIF(BN40:BN48,BN59,G40:G48) -> 0
A60: 25 | B60: Zwischenfrüchte (ohne Kunstwiesen) | H60: =IF(AND(F60>0,G60<1),"Ertrag?",G60*F60) -> 0 | I60: =IF(G60<=0.8*25,30*G60/25,30) -> 0 | J60: 0.96 | K60: 2.88 | L60: 0.29 | N60: =IF(H60>0,H60*J60,"") ->  | O60: =IF(H60>0,H60*K60,"") ->  | P60: =IF(H60>0,H60*L60,"") ->  | AA60: - in der Zeile der intensiven Wiesen & Weiden wird jeweils die Rest-Menge angezeigt, welche noch zu produzieren ist. | CH60: stop
A61: 20-30 | B61: Zwischenfutter (Kunstwiesen), Äugstlen | H61: =IF(AND(F61>0,G61<1),"Ertrag?",G61*F61) -> 0 | I61: 1.2 | J61: 0.82 | K61: 2.7 | L61: 0.25 | M61: =IF(H61>0,H61*I61,"") ->  | AA61: Nach Eingabe der Fläche der intensiven Wiesen und Weiden wird der mittlere Ertrag/ha berechnet. Wenn dieser
A62: 80-120 | B62: Samen-Produktion, Leguminosen, Reinsaat | H62: =IF(OR(AND(F62>0,G62<10),G62>120),"Ertrag?",G62*F62) -> 0 | I62: 0 | J62: 0.71 | K62: 2.3 | L62: 0.25 | M62: =IF(H62>0,H62*I62,"") ->  | N62: =IF(H62>0,H62*J62,"") ->  | O62: =IF(H62>0,H62*K62,"") ->  | P62: =IF(H62>0,H62*L62,"") ->  | Q62: =IF(G62>120,"Ertrag zu hoch: max. 120 dt TS/ha","") -> 
A63: 80-120 | B63: Samen-Produktion, Gäser, Reinsaat | H63: =IF(OR(AND(F63>0,G63<10),G63>180),"Ertrag?",G63*F63) -> 0 | I63: 1.7 | J63: 0.71 | K63: 2.3 | L63: 0.25 | M63: =IF(H63>0,H63*I63,"") ->  | N63: =IF(H63>0,H63*J63,"") ->  | O63: =IF(H63>0,H63*K63,"") ->  | P63: =IF(H63>0,H63*L63,"") ->  | Q63: =IF(G63>180,"Ertrag zu hoch: max. 180 dt TS/ha","") ->  | AA63: # Gräser-Reinsaaten: Es werden max. 180 dt TS/ha anerkannt, sofern sie lückenlos nachgewiesen werden (Grundfutterbilanz, Liste mit Grundfutter-Exporten (vgl. Wegleitung Kap. 2.10) oder andere Dokumente)
B64: eigenes verfüttertes Stroh (85%TS) * | G64: dt TS | I64: 0 | J64: 0.22 | K64: 0.92 | L64: 0.13 | M64: =IF(H64>0,H64*I64,"") ->  | Q64: =IF(SUM(Q66:R71)>0,"max. mögl. Ertrag","") ->  | S64: =IF(Q64="",""," gemäss…") ->  | AA64: nicht realistisch ist (z.B. über 135 bzw. unter 55 dt TS/ha, je nach Höhenlage), ist die Grundfutterrechnung gesamthaft zu überprüfen. | BA64: Wiesen | BB64: Limite nach | BC64: über Limite?
B65: eigenes verfütt. Rübenblatt (15%TS) | G65: dt TS | I65: 0 | J65: 0.52 | K65: 2.62 | L65: 0.6 | M65: =IF(H65>0,H65*I65,"") ->  | Q65: =IF(SUM(Q66:Q71)>0,"Wegleit.","") ->  | R65: =IF(SUM(Q66:R71)>0,"eigener 'Ertragsschätzung'","") ->  | AA65: - Nach einem ersten Durchgang ist die Grundfutterberechnung zu überprüfen: | BA65: max. Ertrag | BB65: Wegl. oder Gutachten | BD65: min. Ertrag
A66: 30-40 | B66: extensive Wiesen (ungedüngt) * | H66: =IF(OR(AND(F66>0,G66<1),G66>BB66),"Ertrag?",G66*F66) -> 0 | I66: 0 | J66: 0 | K66: 0 | L66: 0 | M66: =IF(H66="Ertrag?",H66*I66,"") ->  | N66: =IF(H66="Ertrag?",H66*J66,"") ->  | Q66: =IF(OR(ISNUMBER(R66),G66>BA66),BA66,"") ->  | S66: =IF(AND(ISNUMBER(Q51),G66>BB66)," Ertrag zu hoch -> reduzieren bzw. Max. gemäss 'Ertragsschätzung' eingeben", IF(AND(G66>BA66,G66<=BB66)," -> nur mit 'Ertragsschätzung' möglich","")) ->  | AA66: - sind die durchschnittlichen Erträge realisitsch (Flächen mit weniger Ertrag wie z.B. schattige Waldränder, Nordhänge, ...), | BA66: =IF(ISBLANK(Q51),"Höhenangabe Betrieb fehlt",VLOOKUP(Q$51,Wiesen_Ertrag_Max,6,TRUE)) -> Höhenangabe Betrieb fehlt | BB66: =MAX(R66,BA66) -> 0 | BC66: =IF(G66>BB66,1,0) -> 0
A67: 30-40 | B67: übrige Wiesen mit Düngeverbot * | H67: =IF(OR(AND(F67>0,G67<1),G67>BB67),"Ertrag?",G67*F67) -> 0 | I67: 0 | J67: 0 | K67: 0 | L67: 0 | M67: =IF(H67="Ertrag?",H67*I67,"") ->  | N67: =IF(H67="Ertrag?",H67*J67,"") ->  | Q67: =IF(OR(ISNUMBER(R67),G67>BA67),BA67,"") ->  | S67: =IF(AND(ISNUMBER(Q51),G67>BB67)," Ertrag zu hoch -> reduzieren bzw. Max. gemäss 'Ertragsschätzung' eingeben", IF(AND(G67>BA67,G67<=BB67)," -> nur mit 'Ertragsschätzung' möglich","")) ->  | AA67: - sind alle Grundfutter-Flächen aufgeführt ? | BA67: =IF(ISBLANK(Q51),"Höhenangabe Betrieb fehlt",VLOOKUP(Q$51,Wiesen_Ertrag_Max,6,TRUE)) -> Höhenangabe Betrieb fehlt | BB67: 0 | BC67: =IF(G67>BB67,1,0) -> 0
A68: 30-60 | B68: extensive Weiden * | H68: =IF(OR(AND(F68>0,G68<1),G68>BB68),"Ertrag?",G68*F68) -> 0 | I68: 0.5 | J68: 0.5 | K68: 1.2 | L68: 0.2 | M68: =IF(H68>0,H68*I68,"") ->  | N68: =IF(H68>0,H68*J68,"") ->  | O68: =IF(H68>0,H68*K68,"") ->  | P68: =IF(H68>0,H68*L68,"") ->  | Q68: =IF(OR(ISNUMBER(R68),G68>BA68),BA68,"") ->  | S68: =IF(AND(ISNUMBER(Q51),G68>BB68)," Ertrag zu hoch -> reduzieren bzw. Max. gemäss 'Ertragsschätzung' eingeben", IF(AND(G68>BA68,G68<=BB68)," -> nur mit 'Ertragsschätzung' möglich","")) ->  | AA68: - sind alle Tierbestände zutreffend aufgeführt (TVD-Auszug; Durchschnittsbestände übers Jahr) ? | BA68: =IF(ISBLANK(Q51),"Höhenangabe Betrieb fehlt",VLOOKUP(Q$51,Wiesen_Ertrag_Max,7,TRUE)) -> Höhenangabe Betrieb fehlt | BB68: 0 | BC68: =IF(G68>BB68,1,0) -> 0
A69: 50-70 | B69: wenig intensive Wiesen & Weiden * | H69: =IF(OR(AND(F69>0,G69<1),G69>BB69),"Ertrag?",G69*F69) -> 0 | I69: 0.5 | J69: 0.57 | K69: 1.7 | L69: 0.15 | M69: =IF(H69>0,H69*I69,"") ->  | N69: =IF(H69>0,H69*J69,"") ->  | O69: =IF(H69>0,H69*K69,"") ->  | P69: =IF(H69>0,H69*L69,"") ->  | Q69: =IF(OR(ISNUMBER(R69),G69>BA69),BA69,"") ->  | S69: =IF(AND(ISNUMBER(Q51),G69>BB69)," Ertrag zu hoch -> reduzieren bzw. Max. gemäss 'Ertragseinschätzung' eingeben", IF(AND(G69>BA69,G69<=BB69)," -> nur mit 'Ertragsschätzung' möglich","")) ->  | AA69: - stimmen die Zufuhren (positive Zahlen) und Wegfuhren (negative Zahlen) von Grundfutter (Belege ?, Angaben in dt TS ?, ...) | BA69: =IF(ISBLANK(Q51),"Höhenangabe Betrieb fehlt",VLOOKUP(Q$51,Wiesen_Ertrag_Max,5,TRUE)) -> Höhenangabe Betrieb fehlt | BB69: 0 | BC69: =IF(G69>BB69,1,0) -> 0
A70: 70-100 | B70: mittelintensive Wiesen & Weiden | H70: =IF(OR(AND(F70>0,G70<1),G70>BB70),"Ertrag?",G70*F70) -> 0 | I70: 0.95 | J70: 0.71 | K70: 2.3 | L70: 0.2 | M70: =IF(H70>0,H70*I70,"") ->  | N70: =IF(H70>0,H70*J70,"") ->  | O70: =IF(H70>0,H70*K70,"") ->  | P70: =IF(H70>0,H70*L70,"") ->  | Q70: =IF(OR(ISNUMBER(R70),G70>BA70),BA70,"") ->  | S70: =IF(AND(ISNUMBER(Q51),G70>BB70)," Ertrag zu hoch -> reduzieren bzw. Max. gemäss 'Ertragsschätzung' eingeben", IF(AND(G70>BA70,G70<=BB70)," -> nur mit 'Ertragsschätzung' möglich","")) ->  | AA70: wurde nicht mehr ext. GF verkauft als produziert wird? ... | BA70: =IF(ISBLANK(Q51),"Höhenangabe Betrieb fehlt",VLOOKUP(Q$51,Wiesen_Ertrag_Max,4,TRUE)) -> Höhenangabe Betrieb fehlt | BB70: 0 | BC70: =IF(G70>BB70,1,0) -> 0
A71: 90-125 | B71: intensive Wiesen & Weiden | G71: =IF(F71>0,H71/F71,IF(AND(ISNUMBER(F71)=TRUE,F71=0),"",IF(H71>0.005*O48,"ha ?",""))) ->  | H71: =H72-SUM(H56:H70)-F55*G55 -> 0 | I71: 1.2 | J71: 0.82 | K71: 2.7 | L71: 0.25 | M71: =IF(AND($F71>0,$H71>2),$H71*I71,"") ->  | N71: =IF(AND($F71>0,$H71>2),$H71*J71,"") ->  | O71: =IF(AND($F71>0,$H71>2),$H71*K71,"") ->  | P71: =IF(AND($F71>0,$H71>2),$H71*L71,"") ->  | Q71: =IF(OR(ISNUMBER(R71),AND(G71>BA71,F71>0)),BA71,"") ->  | S71: =IF(AND(ISNUMBER(Q51),ISNUMBER(G71),G71>BB71)," Ertrag zu hoch -> siehe Wegleitung (weiter rechts)", IF(AND(G71>BA71,G71<=BB71)," -> nur mit 'Ertragsschätzung' möglich","")) ->  | AB71: -> Massgebend sind die tatsächlichen Verhältnisse auf dem Betrieb ! | BA71: =IF(ISBLANK(Q51),"Höhenangabe Betrieb fehlt",VLOOKUP(Q$51,Wiesen_Ertrag_Max,3,TRUE)+VLOOKUP(Q$51,Wiesen_Ertrag_Max,13,TRUE)) -> Höhenangabe Betrieb fehlt | BB71: 0 | BC71: =IF(AND(ISNUMBER(G71),G71>BB71),1,0) -> 0 | BD71: =VLOOKUP(Q$51,Wiesen_Ertrag_Max,8,TRUE) -> 50
E72: Total Grundfutterproduktion: | F72: =SUM(F66:F71)+SUM(F55:F58)+SUM(F62:F63) -> 0 | G72: ha | H72: =O48 -> 0 | I72: dt TS | L72: Total (C1) | M72: =SUM(M55:M71) -> 0 | N72: =SUM(N55:N71) -> 0 | O72: =SUM(O55:O71) -> 0 | P72: =SUM(P55:P71) -> 0 | AA72: zum Grundfutter zählen: -> siehe Wegleitung Suisse-Bilanz 3.2, Grundfutter (bzw. DZV, Anhang 5, Ziffer 1.1 DZV) | BA72: int.+mittelint. Wiese nicht interpoliert
E73: davon düngbar | F73: =F72-F66-F67 -> 0 | G73: ha | H73: =VLOOKUP(1,BG28:BH44,2,FALSE) ->  | AA73: Futter von Grünflächen und Streueflächen (frisch, siliert, getrocknet), sowie (verfüttertes) Stroh; als Futtermittel angebaute Ackerkulturen, bei denen die ganze Pflanze geerntet wird: frisch, siliert oder getrocknet, ohne Maiskolbenschrot; Chicorée-Wurzeln;
B75: Nährstofftransfer für Futter von ungedüngten Wiesen (T) | H75: =IF(K75<=0,0,IF(K75>H72/4,H72/4,K75)) -> 0 | I75: dt TS | J75: 0.4 | K75: =IF(L75>O38,O38,L75) -> 0 | L75: =IF(O38>0,SUM(H66,H67,BO51),0) -> 0 | N75: =H75*J75 -> 0 | AA75: Rübenblätter und Rübennass- und Rübenpressschnitzel; frisches Obst; unverarbeitete Kartoffeln, einschliesslich Sortierabgang; Abgänge und nicht getrocknete oder konzentrierte Nebenprodukte aus der Kartoffel-, Obst- und Gemüseverarbeitung; für die Rindviehmast: Mischungen aus Spindel und Körnern des Maiskolbens/Maiskolbenschrot/Maiskolbensilage (Corn-Cob-Mix, CCM) (vgl. auch unten);
C76: =VLOOKUP(1,BG47:BH50,2,FALSE) ->  | P76: =VLOOKUP(1,BG53:BH56,2,FALSE) ->  | AA76: Nebenprodukte aus der Verarbeitung von Lebensmitteln: ZR-Schnitzel getrocknet, Biertreber frisch, siliert, getrocknet, Nebenprodukte der Trocken- und Schälmüllerei: Weizenkleie, Haferabfallmehl, Dinkel- und Haferspelzen, Dinkelspreu und Kornspreuer sowie Gemische davon
AA77: - Der Nährstofftransfer ist nur für das auf dem eigenen Betrieb produzierte und verfütterte Grundfutter von ungedüngten Wiesen
AA78: möglich (extensive Wiesen + übrige Wiesen mit Düngeverbot - Wegfuhren); die massgebende Futtermenge ist begrenzt auf max. 25% der produzierten GF-Menge.
K79: Name: | L79: =C8 ->  | O79: =G7 -> 0 | P79: =IF(ISBLANK(O8),"",O8) -> 2023-02-14 | R79: Seite 2 | AA79: - Acker-, Gemüse-, Dauerkulturen sowie Zweit-, Dritt- und Zwischenkulturen eintragen im angegebenen Abschnitt, damit die Flächen richtig mitgerechnet werden (offene Ackerfläche, Dauerkulturen, Zweitkulturen).
AA80: - Bei den Ackerkulturen setzen Sie Ihre effektiven Durchschnittserträge der letzten 3 Jahre ein (siehe Wegleitung 3.7).
B81: Kulturen | G81: Stand.- | H81: f FS- | J81: Korrekturfaktoren | AB81: (Nachweis mittels vollständigem Feldkalender/Schlagkartei und Waag-, Lieferscheinen, Abrechnungen oder Buchhaltungsbelegen). | CH81: stop
F82: Fläche | G82: ertrag | H82: Ertrag | I82: Menge | J82: nach Bodenanalysen | M82: Nährstoffbedarf (kg / Jahr) | R82: N | AA82: Parzellen in Nitratprojekten nach Art. 62a Gewässerschutzgesetz: Eine ertragsabhängige N-Korrektur nach oben ist bei | BF82: Abk. | BG82: Referenz- | BH82: N - Norm | BI82: Korrektur | BJ82: Ertrag für
A83: Abkürz. | B83: Ackerkulturen: | F83: ha | G83: dt/ha | H83: dt/ha | I83: dt | J83: P | K83: K | L83: Mg | M83: N | N83: P2O5 | O83: K2O | P83: Mg | R83: kg/ha | AA83: diesen nicht möglich -> Kultur mit dem Zusatz "Nitrat-Projekt" wählen (vgl. Wegleitung 3.7 Nährstoffbedarf, Ackerkulturen) | BG83: Ertrag | BH83: kg / ha | BI83: kg / ha | BJ83: Berechnung
A84: =IF(ISBLANK(B84),0,VLOOKUP(B84,Daten!$B$6:$E$65,4,FALSE)) -> 0 | B84: - | G84: =VLOOKUP($A84,Daten!$E$6:$Y$65,21,FALSE) -> 0 | I84: =IF(H84>0,F84*H84,F84*G84) -> 0 | M84: =IF(ISNUMBER($F84), IF(OR(A84="rp",A84="rh",A84="wg",A84="wr",A84="wt",A84="ww",A84="fw",A84="rpnp",A84="rhnp",A84="wgnp",A84="wrnp",A84="wtnp",A84="wwnp",A84="fwnp"), F84*(BH84+BI84), IF(OR(H84>0.8*BG84,ISBLANK(H84)), VLOOKUP($A84,Daten!$E$6:$L$65,5,FALSE)*F84, VLOOKUP($A84,Daten!$E$6:$L$65,5,FALSE)*H84/BG84*F84)),"") ->  | N84: =IF(ISNUMBER($F84), IF(VLOOKUP($A84,Daten!$E$6:$L$65,4,FALSE)=0,VLOOKUP($A84,Daten!$E$6:$L$65,6,FALSE)*$F84,VLOOKUP($A84,Daten!$E$6:$L$65,6,FALSE)*$I84),"") ->  | O84: =IF(ISNUMBER($F84), IF(VLOOKUP($A84,Daten!$E$6:$L$65,4,FALSE)=0,VLOOKUP($A84,Daten!$E$6:$L$65,7,FALSE)*$F84,VLOOKUP($A84,Daten!$E$6:$L$65,7,FALSE)*$I84),"") ->  | P84: =IF(ISNUMBER($F84), IF(VLOOKUP($A84,Daten!$E$6:$L$65,4,FALSE)=0,VLOOKUP($A84,Daten!$E$6:$L$65,8,FALSE)*$F84,VLOOKUP($A84,Daten!$E$6:$L$65,8,FALSE)*$I84),"") ->  | R84: =IF(ISNUMBER($F84), IF(ISNUMBER(BH84), BH84& IF(BI84=0,"",( IF(BI84<0,"","+")&FIXED(BI84,0))), ""), "") ->  | AA84: Wenn Sie keine Erträge vorgeben, wird mit Standarderträgen gerechnet, ist in der Regel nicht sinnvoll, weil die effektiven Erträge (Mittel der letzten 3 Jahre) massgebend sind im ÖLN. | BF84: =A84 -> 0 | BG84: =VLOOKUP($A84,Daten!$E$6:$L$65,4,FALSE) -> 0 | BH84: =IF(AND(H84<1,ISNUMBER(H84)),0,VLOOKUP($A84,Daten!$E$6:$L$65,5,FALSE)) -> 0 | BI84: =IF( AND(VLOOKUP($A84,Daten!$E$6:$P$65,12,FALSE)<1,H84*1<=0.8*BG84,ISNUMBER(H84)),(H84/BG84-1)*VLOOKUP($A84,Daten!$E$6:$P$65,5,FALSE),IF(H84*1>0,IF(H84>VLOOKUP($A84,Daten!$E$6:$P$65,12,FALSE), (VLOOKUP($A84,Daten!$E$6:$P$65,12,FALSE) - VLOOKUP($A84,Daten!$E$6:$P$65,4,FALSE) ) * VLOOKUP($A84,Daten!$E$6:$P$65,11,FALSE), (H84 - VLOOKUP($A84,Daten!$E$6:$P$65,4,FALSE) ) * VLOOKUP($A84,Daten!$E$6:$P$65,11,FALSE)), IF(ISBLANK(H84 ), (G84 - VLOOKUP($A84,Daten!$E$6:$P$65,4,FALSE) ) * VLOOKUP($A84,Daten!$E$6:$P$65,11,FALSE),0))) -> 0 | BJ84: =IF(ISBLANK(H84),G84,H84) -> 0
A85: =IF(ISBLANK(B85),0,VLOOKUP(B85,Daten!$B$6:$E$65,4,FALSE)) -> 0 | B85: - | G85: =VLOOKUP($A85,Daten!$E$6:$Y$65,21,FALSE) -> 0 | I85: =IF(H85>0,F85*H85,F85*G85) -> 0 | M85: =IF(ISNUMBER($F85), IF(OR(A85="rp",A85="rh",A85="wg",A85="wr",A85="wt",A85="ww",A85="fw",A85="rpnp",A85="rhnp",A85="wgnp",A85="wrnp",A85="wtnp",A85="wwnp",A85="fwnp"), F85*(BH85+BI85), IF(OR(H85>0.8*BG85,ISBLANK(H85)), VLOOKUP($A85,Daten!$E$6:$L$65,5,FALSE)*F85, VLOOKUP($A85,Daten!$E$6:$L$65,5,FALSE)*H85/BG85*F85)),"") ->  | N85: =IF(ISNUMBER($F85), IF(VLOOKUP($A85,Daten!$E$6:$L$65,4,FALSE)=0,VLOOKUP($A85,Daten!$E$6:$L$65,6,FALSE)*$F85,VLOOKUP($A85,Daten!$E$6:$L$65,6,FALSE)*$I85),"") ->  | O85: =IF(ISNUMBER($F85), IF(VLOOKUP($A85,Daten!$E$6:$L$65,4,FALSE)=0,VLOOKUP($A85,Daten!$E$6:$L$65,7,FALSE)*$F85,VLOOKUP($A85,Daten!$E$6:$L$65,7,FALSE)*$I85),"") ->  | P85: =IF(ISNUMBER($F85), IF(VLOOKUP($A85,Daten!$E$6:$L$65,4,FALSE)=0,VLOOKUP($A85,Daten!$E$6:$L$65,8,FALSE)*$F85,VLOOKUP($A85,Daten!$E$6:$L$65,8,FALSE)*$I85),"") ->  | R85: =IF(ISNUMBER($F85), IF(ISNUMBER(BH85), BH85& IF(BI85=0,"",( IF(BI85<0,"","+")&FIXED(BI85,0))), ""), "") ->  | AA85: - Bei den Spezialkulturen können Sie die Erträge nicht verändern, es wird mit Standarderträgen gerechnet, z.T. abgestuft nach Ertragskategorie. | BF85: =A85 -> 0 | BG85: =VLOOKUP($A85,Daten!$E$6:$L$65,4,FALSE) -> 0 | BH85: =IF(AND(H85<1,ISNUMBER(H85)),0,VLOOKUP($A85,Daten!$E$6:$L$65,5,FALSE)) -> 0 | BI85: =IF( AND(VLOOKUP($A85,Daten!$E$6:$P$65,12,FALSE)<1,H85*1<=0.8*BG85,ISNUMBER(H85)),(H85/BG85-1)*VLOOKUP($A85,Daten!$E$6:$P$65,5,FALSE),IF(H85*1>0,IF(H85>VLOOKUP($A85,Daten!$E$6:$P$65,12,FALSE), (VLOOKUP($A85,Daten!$E$6:$P$65,12,FALSE) - VLOOKUP($A85,Daten!$E$6:$P$65,4,FALSE) ) * VLOOKUP($A85,Daten!$E$6:$P$65,11,FALSE), (H85 - VLOOKUP($A85,Daten!$E$6:$P$65,4,FALSE) ) * VLOOKUP($A85,Daten!$E$6:$P$65,11,FALSE)), IF(ISBLANK(H85 ), (G85 - VLOOKUP($A85,Daten!$E$6:$P$65,4,FALSE) ) * VLOOKUP($A85,Daten!$E$6:$P$65,11,FALSE),0))) -> 0 | BJ85: =IF(ISBLANK(H85),G85,H85) -> 0
A86: =IF(ISBLANK(B86),0,VLOOKUP(B86,Daten!$B$6:$E$65,4,FALSE)) -> 0 | B86: - | G86: =VLOOKUP($A86,Daten!$E$6:$Y$65,21,FALSE) -> 0 | I86: =IF(H86>0,F86*H86,F86*G86) -> 0 | M86: =IF(ISNUMBER($F86), IF(OR(A86="rp",A86="rh",A86="wg",A86="wr",A86="wt",A86="ww",A86="fw",A86="rpnp",A86="rhnp",A86="wgnp",A86="wrnp",A86="wtnp",A86="wwnp",A86="fwnp"), F86*(BH86+BI86), IF(OR(H86>0.8*BG86,ISBLANK(H86)), VLOOKUP($A86,Daten!$E$6:$L$65,5,FALSE)*F86, VLOOKUP($A86,Daten!$E$6:$L$65,5,FALSE)*H86/BG86*F86)),"") ->  | N86: =IF(ISNUMBER($F86), IF(VLOOKUP($A86,Daten!$E$6:$L$65,4,FALSE)=0,VLOOKUP($A86,Daten!$E$6:$L$65,6,FALSE)*$F86,VLOOKUP($A86,Daten!$E$6:$L$65,6,FALSE)*$I86),"") ->  | O86: =IF(ISNUMBER($F86), IF(VLOOKUP($A86,Daten!$E$6:$L$65,4,FALSE)=0,VLOOKUP($A86,Daten!$E$6:$L$65,7,FALSE)*$F86,VLOOKUP($A86,Daten!$E$6:$L$65,7,FALSE)*$I86),"") ->  | P86: =IF(ISNUMBER($F86), IF(VLOOKUP($A86,Daten!$E$6:$L$65,4,FALSE)=0,VLOOKUP($A86,Daten!$E$6:$L$65,8,FALSE)*$F86,VLOOKUP($A86,Daten!$E$6:$L$65,8,FALSE)*$I86),"") ->  | R86: =IF(ISNUMBER($F86), IF(ISNUMBER(BH86), BH86& IF(BI86=0,"",( IF(BI86<0,"","+")&FIXED(BI86,0))), ""), "") ->  | AA86: - Bei Kartoffeln entweder alle als "Standard-Kart." erfassen oder alle nach den sortenspezifischen N-Bedarfsgruppen (a, b od. c) gemässe Sortenliste Kartoffeln (Wegleitung Tab.4). | BF86: =A86 -> 0 | BG86: =VLOOKUP($A86,Daten!$E$6:$L$65,4,FALSE) -> 0 | BH86: =IF(AND(H86<1,ISNUMBER(H86)),0,VLOOKUP($A86,Daten!$E$6:$L$65,5,FALSE)) -> 0 | BI86: =IF( AND(VLOOKUP($A86,Daten!$E$6:$P$65,12,FALSE)<1,H86*1<=0.8*BG86,ISNUMBER(H86)),(H86/BG86-1)*VLOOKUP($A86,Daten!$E$6:$P$65,5,FALSE),IF(H86*1>0,IF(H86>VLOOKUP($A86,Daten!$E$6:$P$65,12,FALSE), (VLOOKUP($A86,Daten!$E$6:$P$65,12,FALSE) - VLOOKUP($A86,Daten!$E$6:$P$65,4,FALSE) ) * VLOOKUP($A86,Daten!$E$6:$P$65,11,FALSE), (H86 - VLOOKUP($A86,Daten!$E$6:$P$65,4,FALSE) ) * VLOOKUP($A86,Daten!$E$6:$P$65,11,FALSE)), IF(ISBLANK(H86 ), (G86 - VLOOKUP($A86,Daten!$E$6:$P$65,4,FALSE) ) * VLOOKUP($A86,Daten!$E$6:$P$65,11,FALSE),0))) -> 0 | BJ86: =IF(ISBLANK(H86),G86,H86) -> 0
A87: ausblenden | AA87: Zeile ausblenden
B88: Gemüsekulturen: | AA88: - Korrekturfaktoren nach Bodenproben (siehe Wegleitung 3.7) | CH88: stop
A89: =IF(ISBLANK(B89),0,VLOOKUP(B89,Daten!$B$72:$E$184,4,FALSE)) -> 0 | B89: - | G89: =VLOOKUP($A89,Daten!$E$72:$L$184,4,FALSE) -> 0 | I89: =IF(AND(H89>0,G89>0),F89*H89,F89*G89) -> 0 | J89: 1 | K89: 1 | L89: 1 | M89: =IF(ISNUMBER($F89),IF(OR(H89>0.8*G89,ISBLANK(H89)), VLOOKUP($A89,Daten!$E$72:$L$184,5,FALSE)*F89, VLOOKUP($A89,Daten!$E$72:$L$184,5,FALSE)*H89/G89*F89),"") ->  | N89: =IF(ISNUMBER($F89),IF(VLOOKUP($A89,Daten!$E$72:$L$184,4,FALSE)=0,VLOOKUP($A89,Daten!$E$72:$L$184,6,FALSE)*$F89*J89,VLOOKUP($A89,Daten!$E$72:$L$184,6,FALSE)*$I89*J89),"") ->  | O89: =IF(ISNUMBER($F89),IF(VLOOKUP($A89,Daten!$E$72:$L$184,4,FALSE)=0,VLOOKUP($A89,Daten!$E$72:$L$184,7,FALSE)*$F89*K89,VLOOKUP($A89,Daten!$E$72:$L$184,7,FALSE)*$I89*K89),"") ->  | P89: =IF(ISNUMBER($F89),IF(VLOOKUP($A89,Daten!$E$72:$L$184,4,FALSE)=0,VLOOKUP($A89,Daten!$E$72:$L$184,8,FALSE)*$F89*L89,VLOOKUP($A89,Daten!$E$72:$L$184,8,FALSE)*$I89*L89),"") ->  | AA89: > Dauerkulturen (Obst, Reben, etc.): die Korrekturfaktoren nach Bodenanalysen sind zu berücksichtigen (Werte von 0 bis 1.5)
A90: ausblenden | AA90: Zeile ausblenden
B91: Div. oAF: | E91: Bunt-/Rotationsbrache/ | G91: Nützlingsstreifen/ Saum auf Ackerfläche/... (keine Düngung, kein Grundfutter) | AA91: > Gemüsekulturen: grundsätzlich kann der Nettonährstoffbedarf verwendet werden (d.h. Korrekturfaktor = 1), ein Mehrbedarf kann über einen gesamtbetrieblichen
B92: Dauerkulturen: | E92: Hecke/Streue/... | G92: (keine Düngung, kein Grundfutter) | AA92: Düngungsplan oder durch Berücksichtigung der parzellenspezifischen Korrekturfaktoren bei allen Gemüsekulturen geltend gemacht werden (Werte von 0 bis 1.5)
A93: =IF(ISBLANK(B93),0,VLOOKUP(B93,Daten!$B$190:$E$241,4,FALSE)) -> 0 | B93: - | G93: =VLOOKUP($A93,Daten!$E$190:$L$241,4,FALSE) -> 0 | I93: =IF(AND(H93>0,G93>0),F93*H93,F93*G93) -> 0 | K93: 1 | L93: 1 | M93: =IF(ISNUMBER($F93), VLOOKUP($A93,Daten!$E$190:$L$241,5,FALSE)*F93,"") ->  | N93: =IF(ISNUMBER($F93),IF(VLOOKUP($A93,Daten!$E$190:$L$241,4,FALSE)=0,VLOOKUP($A93,Daten!$E$190:$L$241,6,FALSE)*$F93*J93,VLOOKUP($A93,Daten!$E$190:$L$241,6,FALSE)*$I93*J93),"") ->  | O93: =IF(ISNUMBER($F93),IF(VLOOKUP($A93,Daten!$E$190:$L$241,4,FALSE)=0,VLOOKUP($A93,Daten!$E$190:$L$241,7,FALSE)*$F93*K93,VLOOKUP($A93,Daten!$E$190:$L$241,7,FALSE)*$I93*K93),"") ->  | P93: =IF(ISNUMBER($F93),IF(VLOOKUP($A93,Daten!$E$190:$L$241,4,FALSE)=0,VLOOKUP($A93,Daten!$E$190:$L$241,8,FALSE)*$F93*L93,VLOOKUP($A93,Daten!$E$190:$L$241,8,FALSE)*$I93*L93),"") ->  | AA93: > übrige Kulturen: ein Mehrbedarf kann aufgrund eines Düngungsplans oder der flächengewichteten P-Korrekturfaktoren geltend gemacht werden (-> Gesuch/Bewilligung nötig).
A94: ausblenden | AA94: Zeile ausblenden
B95: Zweit-, Dritt- und Zwischenkulturen (nicht Grundfutter): | J95: =IF(COUNTBLANK(J93:J94)>COUNTBLANK(F93:F94),"bei Dauerkulturen P-Korrekturfaktor eingeben","") ->  | AA95: - Fehlen Ihnen Zeilen für weitere Kulturen, fügen Sie solche durch Klicken auf den Knopf "Zeile einfügen" ein [funktioniert nur, wenn Makros aktiviert sind]
A96: =IF(ISBLANK(B96),0,VLOOKUP(B96,Daten!$B$73:$E$184,4,FALSE)) -> 0 | B96: - | G96: =VLOOKUP($A96,Daten!$E$6:$L$184,4,FALSE) -> 0 | I96: =IF(AND(H96>0,G96>0),F96*H96,F96*G96) -> 0 | J96: 1 | K96: 1 | L96: 1 | M96: =IF(ISNUMBER($F96),IF(OR(H96>0.8*G96,ISBLANK(H96)), VLOOKUP($A96,Daten!$E$6:$L$184,5,FALSE)*F96, VLOOKUP($A96,Daten!$E$6:$L$184,5,FALSE)*H96/G96*F96),"") ->  | N96: =IF(ISNUMBER($F96),IF(VLOOKUP($A96,Daten!$E$6:$L$184,4,FALSE)=0,VLOOKUP($A96,Daten!$E$6:$L$184,6,FALSE)*$F96*J96,VLOOKUP($A96,Daten!$E$6:$L$184,6,FALSE)*$I96*J96),"") ->  | O96: =IF(ISNUMBER($F96),IF(VLOOKUP($A96,Daten!$E$6:$L$184,4,FALSE)=0,VLOOKUP($A96,Daten!$E$6:$L$184,7,FALSE)*$F96*K96,VLOOKUP($A96,Daten!$E$6:$L$184,7,FALSE)*$I96*K96),"") ->  | P96: =IF(ISNUMBER($F96),IF(VLOOKUP($A96,Daten!$E$6:$L$184,4,FALSE)=0,VLOOKUP($A96,Daten!$E$6:$L$184,8,FALSE)*$F96*L96,VLOOKUP($A96,Daten!$E$6:$L$184,8,FALSE)*$I96*L96),"") ->  | R96: =IF(ISNUMBER($F96), IF(ISNUMBER(BH96), BH96& IF(BI96=0,"",( IF(BI96<0,"","+")&FIXED(BI96,0))), ""), "") ->  | AA96: - Bei den Zweit- und Drittkulturen wird die Fläche nicht mehr zur LN aufgerechnet. Hier sind z.B. auch Gründüngungen (keine Futternutzung) einzutragen. | BF96: =A96 -> 0 | BG96: =VLOOKUP($A96,Daten!$E$6:$L$65,4,FALSE) -> 0 | BH96: =IF(AND(H96<1,ISNUMBER(H96)),0,VLOOKUP($A96,Daten!$E$6:$L$65,5,FALSE)) -> 0 | BI96: =IF( AND(VLOOKUP($A96,Daten!$E$6:$P$65,12,FALSE)<1,H96*1<=0.8*BG96,ISNUMBER(H96)),(H96/BG96-1)*VLOOKUP($A96,Daten!$E$6:$P$65,5,FALSE),IF(H96*1>0,IF(H96>VLOOKUP($A96,Daten!$E$6:$P$65,12,FALSE), (VLOOKUP($A96,Daten!$E$6:$P$65,12,FALSE) - VLOOKUP($A96,Daten!$E$6:$P$65,4,FALSE) ) * VLOOKUP($A96,Daten!$E$6:$P$65,11,FALSE), (H96 - VLOOKUP($A96,Daten!$E$6:$P$65,4,FALSE) ) * VLOOKUP($A96,Daten!$E$6:$P$65,11,FALSE)), IF(ISBLANK(H96 ), (G96 - VLOOKUP($A96,Daten!$E$6:$P$65,4,FALSE) ) * VLOOKUP($A96,Daten!$E$6:$P$65,11,FALSE),0))) -> 0 | BJ96: =IF(ISBLANK(H96),G96,H96) -> 0
A97: ausblenden | AA97: Zeile ausblenden
B98: Feldobstbau: | H98: Hochstamm-Obstbäume, Nussbäume, Edelkastanien | J98: Stück | M98: =IF(ISNUMBER($I98),$I98*0.45,"") ->  | N98: =IF(ISNUMBER($I98),$I98*0.15,"") ->  | O98: =IF(ISNUMBER($I98),$I98*0.56,"") ->  | P98: =IF(ISNUMBER($I98),$I98*0.075,"") ->  | AA98: - Beim Feldobstbau wird von einem Ertrag von durchschnittlich 300 kg Obst pro Baum ausgegangen.
A99: str | B99: Stroh-, Rübenblatt-Wegfuhr: | H99: =VLOOKUP(A99,Daten!$E$186:$L$188,2,FALSE) -> Stroh (85% TS) | J99: dt FS | M99: =IF(ISNUMBER($I99),VLOOKUP($A99,Daten!$E$186:$L$188,5,FALSE)*$I99,"") ->  | N99: =IF(ISNUMBER($I99),VLOOKUP($A99,Daten!$E$186:$L$188,6,FALSE)*$I99,"") ->  | O99: =IF(ISNUMBER($I99),VLOOKUP($A99,Daten!$E$186:$L$188,7,FALSE)*$I99,"") ->  | P99: =IF(ISNUMBER($I99),VLOOKUP($A99,Daten!$E$186:$L$188,8,FALSE)*$I99,"") ->  | AB99: Sie setzen die Anzahl Obstbäume ein.
A100: rb | H100: =VLOOKUP(A100,Daten!$E$186:$L$188,2,FALSE) -> Rübenblatt (15%TS) | J100: dt FS | M100: =IF(ISNUMBER($I100),VLOOKUP($A100,Daten!$E$186:$L$188,5,FALSE)*$I100,"") ->  | N100: =IF(ISNUMBER($I100),VLOOKUP($A100,Daten!$E$186:$L$188,6,FALSE)*$I100,"") ->  | O100: =IF(ISNUMBER($I100),VLOOKUP($A100,Daten!$E$186:$L$188,7,FALSE)*$I100,"") ->  | P100: =IF(ISNUMBER($I100),VLOOKUP($A100,Daten!$E$186:$L$188,8,FALSE)*$I100,"") -> 
E101: Acker- & Spezialkulturen (ha): | F101: =SUM(F84:F91)+SUM(F93:F94) -> 0 | J101: davon düngbare Fläche (ha): | K101: =F101-F91 -> 0 | L101: Total | M101: =SUM(M84:M100) -> 0 | N101: =SUM(N84:N100) -> 0 | O101: =SUM(O84:O100) -> 0 | P101: =SUM(P84:P100) -> 0 | S101: Vergleich der Gesamtfläche | AA101: - Jetzt müssen Sie die Flächen kontrollieren, die gesamte LN Ihres Betriebes muss erfasst sein: | AK101: vgl. Wegleitung 2.9: Kurzpacht Gemüsekultur -> in Suisse-Bilanz des Kurzpächters
L102: (C2+C3)
C103: Gesamtfläche (ha): | D103: =F101+F72+F92 -> 0 | F103: davon düngbar: | G103: =K101+F73 -> 0 | L103: Gesamtnährstoffbedarf Betrieb (C) | M103: =M101+M72 -> 0 | N103: =N101+N72 -> 0 | O103: =O101+O72 -> 0 | P103: =P101+P72 -> 0 | U103: =IF(ISNUMBER(V103)," > Betriebsdatenblatt ","Fläche Betriebsdatenblatt ->") -> Fläche Betriebsdatenblatt -> | W103: ha | X103: =ROUND((V105-V103),6) -> 0 | AA103: Offene Ackerfläche, Kunstwiesen, Naturwiesen, Dauerkulturen, ökologische Ausgleichsflächen. | AK103: vgl. Wegleitung 2.9: Zwischenfutter, Gründüngung, Frühjahresnutzen -> in Suisse-Bilanz des Standortbetriebs
C105: ausserhalb LN (ha): | D105: 0 | F105: -> LN (ha): | G105: =D103-D105 -> 0 | K105: offene Ackerfläche (ha): | L105: =SUMIF(B84:B91,"<>*, GH*",F84:F91)+SUM(F55:F58) -> 0 | M105: = | N105: =IF(L105=0,0,L105/D103) -> 0 | O105: der Gesamtfläche | S105: > in Suisse-Bilanz | V105: =D103 -> 0 | W105: ha -> | X105: =IF(ISBLANK(V103),"Betr.fläche eintragen",IF(X103 < -0.0049999,ROUND(-X103,3)&" ha zu wenig",IF(X103 > 0.005,ROUND(X103,3)&" ha zu viel","i.O."))) -> Betr.fläche eintragen | AA105: -> Flächen und Kulturen gemäss Betriebsdatenerhebung sind massgebend
K107: Name: | L107: =C8 ->  | O107: =G7 -> 0 | P107: =IF(ISBLANK(O8),"",O8) -> 2023-02-14 | R107: Seite 3 | AA107: diese Zeile wird nur beim Drucken verwendet
R108: nein | S108: nein
R109: ja | S109: ja | AA109: - Sämtliche Zu- und Wegfuhren von Nährstoffen in den 3 Abschnitten eintragen:
G110: Menge | R110: Voll- | AA110: > unvergärte Hofdünger (A3) -> Wegleitung 3.6
F111: Einheit | G111: Zufuhr + | H111: Nährstoffgehalt (kg / Einheit) | M111: Nährstoffanfall (kg pro Jahr) | R111: mist-N | S111: =IF($K$7="BIO"," BIO - Hofdünger","") ->  | AB111: - Es sind die Saldi gemäss Auszug aus HODUFLU massgebend
B112: Düngerart, Lief./Abn. - HODUFLU | G112: Wegfuhr - | H112: Nges | I112: Nverf | J112: P2O5 | K112: K2O | L112: Mg | M112: Nges | N112: Nverf | O112: P2O5 | P112: K2O | Q112: Mg | R112: ja/nein | S112: =IF($K$7="BIO","ja/nein","") ->  | T112: =IF($K$7="BIO","Nverf","") ->  | U112: =IF($K$7="BIO","P2O5","") ->  | AB112: - Achtung: Gehalt an Nges eintragen, Nverf wird betriebsspezifisch berechnet (60% - Abzug für offene Ackerfläche - Abzug für Vollmist-Nges).
I113: =IF(ISNUMBER(H113),H113*H$148,"") ->  | M113: =IF($G113=0,"",IF(H113="","Nges?",$G113*H113)) ->  | N113: =IF($G113=0,"",$G113*I113) ->  | T113: =IF(AND($K$7="BIO",$S113="",SUM(N113:Q113)<>0),"<- Bio?",IF(AND($K$7="BIO",$S113="ja"),N113,"")) ->  | U113: =IF(AND($K$7="BIO",$S113="ja"),O113,"") ->  | AB113: - in der Spalte "Vollmist-N" ist "ja" einzugeben, wenn es sich um Mist aus Vollmist-Systemen handelt (Typ 50 oder 100, siehe oben bei Tierhaltung).
I114: =IF(ISNUMBER(H114),H114*H$148,"") ->  | M114: =IF($G114=0,"",IF(H114="","Nges?",$G114*H114)) ->  | T114: =IF(AND($K$7="BIO",$S114="",SUM(N114:Q114)<>0),"<- Bio?",IF(AND($K$7="BIO",$S114="ja"),N114,"")) ->  | AB114: - für Wegfuhren können die Gehaltswerte im Abschnitt "Hofdüngeranfall" (Seite 3, in diesem Blatt) berechnet werden oder mit Hilfe der offiziellen Tabellen geschätzt werden
I115: =IF(ISNUMBER(H115),H115*H$148,"") ->  | M115: =IF($G115=0,"",IF(H115="","Nges?",$G115*H115)) -> 
L116: Zu- und Wegfuhren von Hofdüngern (A3) | M116: =SUM(M113:M115) -> 0 | N116: =SUM(N113:N115) -> 0 | O116: =SUM(O113:O115) -> 0 | P116: =SUM(P113:P115) -> 0 | Q116: =SUM(Q113:Q115) -> 0 | R116: =SUMIF(R113:R115,"ja",M113:M115) -> 0 | S116: =IF($K$7="BIO","Bio-Hd.","") ->  | T116: =IF($K$7="BIO",SUM(T113:T115,T127:T139),"") ->  | U116: =IF($K$7="BIO",SUM(U113:U115),"") ->  | V116: =IF($K$7="BIO"," = Summe Zu-/Wegfuhr von 'Bio-Hofdünger' (kg)","") ->  | AA116: =Daten!E459 -> 
Q117: =IF(-R116>R29,"VM-Nges-Wegfuhr höher als Anfall (V1)-> überprüfen","") ->  | R117: V2 | S117: =IF($K$7="BIO","Nicht-Bio-Hd.","") ->  | T117: =IF(T116="","",N116-T116) ->  | U117: =IF(U116="","",O116-U116) ->  | V117: =IF($K$7="BIO"," = Summe Zu-/Wegfuhr von 'Nicht-Bio-Hofdünger' (kg)","") ->  | AA117: > übrige Dünger (D) -> siehe Wegleitung 3.8
B119: Strohzukauf zum Einstreuen | F119: Tonnen | G119: 0 | I119: 0 | J119: 1.9 | K119: 7.9 | L119: 1.1 | N119: =IF($G119=0,"",$G119*I119) ->  | S119: =IF($K$7="BIO","Hd.","") ->  | T119: =IF(AND($K$7="BIO",M103>0),(N116-T116)/J151,"") ->  | U119: =IF(AND($K$7="BIO",N103>0),(O116-U116)/K151,"") ->  | V119: =IF(AND($K$7="BIO",SUM(N116:O116)<>0)," = Anteile 'Nicht-Bio-Hofdünger' am Bedarf (C)","") ->  | AB119: - alle Dünger- und Nährstoffzufuhren, die nicht zu A3 oder E gehören, sind hier zu erfassen (z.B. Kompost, Mineraldünger, Stroh zum Einstreuen, Gemüse-Rüstabfälle, etc. )
A120: emissionsmindernde Ausbringverfahren | B120: schleppschlauchoblig. Fläche (SSOF) | G120: 0 | H120: ha | I120: 6 | J120: ab 2024 anzurechnen | T120: =IF(AND($K$7="BIO",SUM(N116:O116)<>0,OR(T119>0.5,U119>0.5),SUM(M103:N103)<>0),"BIO-Achtung: über 50% !","" ) ->  | AB120: - schleppschlauchobligatorische Fläche (SSOF): Grundsätzlich ist die gesamte SSOF anzurechnen (2 Gaben à 3 kg Nverf = 6 kg Nverf/ha). Wird aufgrund von fehlendem bzw. geringerem Hofdüngereinsatz nicht die gesamte SSOF
B121: Kompost | F121: t | G121: 0 | H121: 7 | I121: =H121*0.1 -> 0.7 | J121: 3 | K121: 5 | L121: 2.5 | N121: =IF($G121=0,"",$G121*I121) ->  | Z121: bio
B122: org. Handelsdünger | F122: dt | G122: 0 | I122: =IF(ISNUMBER(H122),0.7*H122,"") ->  | Z122: bio
B123: =IF(K7="Bio",""," Ammonsalpeter 27% N") -> Ammonsalpeter 27% N | F123: dt | G123: 0 | I123: 27 | AB123: emissionsmindernd begüllt oder erfolgen weniger als 2 Gaben pro Jahr, kann eine angepasste effektive Fläche deklariert werden. Die Herleitung dieser Fläche muss plausibel dargelegt werden.
AA124: > Vergärungsprodukte (E ) -> siehe Wegleitung 3.9 (= Produkte aus Vergärungsanlagen)
L125: übrige eingesetzte Dünger (D) | N125: =SUM(N119:N124) -> 0 | O125: =SUM(O119:O124) -> 0 | P125: =SUM(P119:P124) -> 0 | Q125: =SUM(Q119:Q124) -> 0 | S125: =IF($K$7="BIO"," BIO","") ->  | AA125: - Es sind die Saldi gemäss Auszug aus HODUFLU massgebend
E126: Übertrag der Vergärungsprodukte gemäss Auszug HODUFLU | R126: =IF($K$7="BIO","Dü.-Art","") ->  | S126: =S112 ->  | AA126: Gärgülle: Gesamtsubstrat nach der Vergärung von Material landwirtschaftlicher Herkunft plus max. 20% Material nicht landw. Herkunft (FS); gilt als vergärter Hofdünger
B127: Gärgülle und Gärdünngülle, Summe HODUFLU | H127: =" betr.spez. N-Ausnutzung: 65% "&IF(H146<>0,ROUND(H146*100,1)&"% = "," - 0% = ") -> betr.spez. N-Ausnutzung: 65% - 0% = | L127: =0.65+H146 -> 0.65 | N127: =IF(ISNUMBER(M127),M127*L127,"") ->  | R127: =IF(AND(SUM(N127:Q127)<>0,$K$7="BIO"),"HoDü","") ->  | T127: =IF(AND(LEFT(R127,2)="Ho",S127=""),"<- Bio?",IF(ISNUMBER(N127),N127,"")) ->  | U127: =IF(AND($K$7="BIO",$S127="ja",LEFT(R127,2)="Ho"),O127,"") ->  | AA127: Gärdünngülle: flüssige Phase nach der Separierung von Gärgülle; gilt als vergärter Hofdünger
A128: verg.Hofdünger -> | B128: - | I128: =IF(ISNUMBER(H128),H128*(0.65+H$146),"") ->  | M128: =IF($G128=0,"",IF(H128="","Nges?",$G128*H128)) ->  | N128: =IF($G128=0,"",$G128*I128) ->  | O128: =IF($G128=0,"",IF(J128="","P2O5?",$G128*J128)) ->  | P128: =IF($G128=0,"",$G128*K128) ->  | Q128: =IF($G128=0,"",$G128*L128) ->  | R128: =IF(AND($K$7="BIO",G128<>0,COUNTIFS(B128,"*Hofdünger*")>0),"HoDü","") ->  | T128: =IF(AND($K$7="BIO",$S128="ja",LEFT(R128,2)="Ho"),N128,"") ->  | U128: =IF(AND($K$7="BIO",$S128="ja",LEFT(R128,2)="Ho"),O128,"") ->  | AA128: N-Ausnutzung flüssige vergärte Hofdünger: Nverf = Nges * ( Basis 65% - % offene Ackerfläche * 0.15 ) [gemäss Wegleitun Suisse-Bilanz, Ziffer 3.9]
A129: Z. ausblenden | AA129: Zeile ausblenden
A130: Recyclingdünger -> | B130: - | N130: =IF($G130=0,"",IF(I130="","Nverf?",$G130*I130)) ->  | O130: =IF($G130=0,"",IF(J130="","P2O5?",$G130*J130)) ->  | P130: =IF($G130=0,"",$G130*K130) ->  | Q130: =IF($G130=0,"",$G130*L130) ->  | AA130: Gärgut Gesamtsubstrat nach der Vergärung von Material mit mehr als 20% nicht landw. Herkunft (FS); gilt als vergärter Recyclingdünger
A131: Z. ausblenden | R131: =IF(COUNTIF(B131,"*Hofdünger*")>0,"HoDü","") ->  | AA131: Zeile ausblenden
B132: Flüssige Vergärungsprodukte (E1) | N132: =SUM(N127:N131) -> 0 | O132: =SUM(O127:O131) -> 0 | P132: =SUM(P127:P131) -> 0 | Q132: =SUM(Q127:Q131) -> 0 | T132: =IF(AND($K$7="BIO",SUM(N140:O140)<>0),N132/J151,"") ->  | U132: =IF(AND($K$7="BIO",SUM(N140:O140)<>0),O132/K151,"") ->  | V132: =IF(AND($K$7="BIO",SUM(N140:O140)<>0),"Anteile E1 an C","") ->  | AA132: flüssiges Gärgut: flüssige Phase nach der Separierung von Gärgut; gilt als vergärter Recyclingdünger; N-Ausnutzung flüssige Recyclingdünger: Nverf = Nlös + Norg x 0.25 [gemäss Wegleitung Suisse-Bilanz, Ziffer 3.9]
B134: Feste Vergärungsprodukte, Summe HODUFLU | I134: =" N-Ausnutzung: = 20% " -> N-Ausnutzung: = 20% | N134: =IF(ISNUMBER(M134),0.2*M134,"") ->  | R134: =IF(SUM(N134:Q134)<>0,"HoDü","") ->  | T134: =IF(AND($K$7="BIO",$S134="ja",LEFT(R134,2)="Ho"),N134,"") ->  | U134: =IF(AND($K$7="BIO",$S134="ja",LEFT(R134,2)="Ho"),O134,"") ->  | AA134: Gärmist: feste Phase nach der Separierung von Gärgülle; gilt als vergärter Hofdünger
B135: - | I135: =IF(ISNUMBER(H135),H135*0.2,"") ->  | M135: =IF($G135=0,"",IF(H135="","Nges?",$G135*H135)) ->  | N135: =IF($G135=0,"",$G135*I135) ->  | O135: =IF($G135=0,"",IF(J135="","P2O5?",$G135*J135)) ->  | P135: =IF($G135=0,"",$G135*K135) ->  | Q135: =IF($G135=0,"",$G135*L135) ->  | R135: =IF(AND($K$7="BIO",G135<>0,COUNTIFS(B135,"*Hofdünger*")>0),"HoDü","") ->  | T135: =IF(AND($K$7="BIO",$S135="ja",LEFT(R135,2)="Ho"),N135,"") ->  | U135: =IF(AND($K$7="BIO",$S135="ja",LEFT(R135,2)="Ho"),O135,"") ->  | AA135: festes Gärgut: feste Phase nach der Separierung von Gärgut; gilt als vergärter Recyclingdünger, Kompostierung von festem Gärgut ergibt Kompost -> Erfassung unter "Übrige Dünger (D), Nverf = Nges gemäss HODUFLU * 0.10
A136: Z. ausblenden | B136: Zeile nicht benutzen (Hofd <-> Rec.) | G136: 0 | I136: =IF(ISNUMBER(H136),H136*0.2,"") ->  | M136: =IF($G136=0,"",IF(H136="","Nges?",$G136*H136)) ->  | N136: =IF($G136=0,"",$G136*I136) ->  | O136: =IF($G136=0,"",IF(J136="","P2O5?",$G136*J136)) ->  | P136: =IF($G136=0,"",$G136*K136) ->  | Q136: =IF($G136=0,"",$G136*L136) ->  | R136: =IF(AND(G136<>0,COUNTIF(B136,"*Hofdünger*")>0),"HoDü","") ->  | AA136: Zeile ausblenden
B137: Feste Vergärungsprodukte (E2) | N137: =SUM(N134:N136) -> 0 | O137: =SUM(O134:O136) -> 0 | P137: =SUM(P134:P136) -> 0 | Q137: =SUM(Q134:Q136) -> 0 | T137: =IF(AND($K$7="BIO",SUM(N140:O140)<>0),N137/J151,"") ->  | U137: =IF(AND($K$7="BIO",SUM(N140:O140)<>0),O137/K151,"") ->  | V137: =IF(AND($K$7="BIO",SUM(N140:O140)<>0),"Anteile E2 an C","") ->  | AA137: N-Ausnutzung feste Vergärungsprodukte: Nverf = Nges * 0.20 [gemäss Wegleitung Suisse-Bilanz, Ziffer 3.9]
B139: Ernterückstände Gemüse (E3) | F139: t | H139: 3.3 | I139: =IF(ISNUMBER(H139),H139*(0.65+H$146),"") -> 2.145 | J139: 0.9 | K139: 4 | L139: 0.6 | M139: =IF($G139=0,"",IF(H139="","Nges?",$G139*H139)) ->  | N139: =IF($G139=0,"",$G139*I139) ->  | O139: =IF($G139=0,"",$G139*J139) ->  | P139: =IF($G139=0,"",$G139*K139) ->  | Q139: =IF($G139=0,"",$G139*L139) ->  | AA139: Ernterückstände von Gemüsekulturen: Gehalte = Mittelwerte in kg / t Ernterückstände frisch
L140: Vergärungsprodukte und Ernterückstände Gemüse (E) | N140: =SUM(N132,N137,N139) -> 0 | O140: =SUM(O132,O137,O139) -> 0 | P140: 0 | Q140: 0 | S140: =IF(AND($K$7="BIO",SUM(N140:O140)<>0),"Summe","") ->  | T140: =IF(AND($K$7="BIO",SUM(N140:O140)<>0),SUM(N132,N137)/J151,"") ->  | U140: =IF(AND($K$7="BIO",SUM(N140:O140)<>0),SUM(O132,O137)/K151,"") ->  | V140: =IF(AND($K$7="BIO",SUM(N140:O140)<>0)," = Anteile 'Vergärungsprodukte (E1+E2)' am Bedarf (C)","") -> 
E142: =K8 -> 2023 | M142: Saldo Nährstoffzufuhr und -wegfuhr (A3+D+E) | N142: =IF($A156="ja", SUM(N116,N125,N140), "") -> 0 | O142: =IF($A156="ja", SUM(O116,O125,O140), "") -> 0 | P142: =IF($A156="ja", SUM(P116,P125,P140), "") -> 0 | Q142: =IF($A156="ja", SUM(Q116,Q125,Q140), "") -> 0 | T142: =IF(AND($K$7="BIO",SUM(N140:O140)<>0,OR(T140>0.5,U140>0.5) )," BIO-Achtung: Anteil Vergärungsprodukte ist über 50% ","" ) -> 
B144: betriebsspezif. N-Ausnutzungsgrad (A2,A3): | G144: Basis = | H144: 0.6 | M144: =IF(OR(ISBLANK(N144),N144<0,N144>0.1,ISBLANK(O144),O144<0,O144>0.1),"Fehlerbereiche für N + P eintragen ->","Fehlerbereiche für N und P ") -> Fehlerbereiche für N + P eintragen -> | P144: =IF(K8>2023," (ab 2024: 0%)"," (10% od. 0%)") -> (10% od. 0%) | S144: =IF(OR(N144>0,O144>0),"Achtung, ab Jahr 2024: Fehlerbereich = 0%","") ->  | AA144: =Daten!E460 -> 
C146: =IF(D103=0,0,N105) -> 0 | D146: offene Ackerfläche | G146: * 0.15 = | H146: =-C146*0.15 -> 0 | J146: Gesamtbetrieb pro Jahr | N146: je ha düngbare Fläche | AA146: =Daten!E453 -> - Beim ÖLN darf die Gesamtbilanz den Fehlerbereich bei N und P nicht überschreiten.
C147: =IF(AND(R34<=1,R34>=0),R34,"??") -> 0 | D147: Anteil Vollmist-Nges | G147: * 0.12 = | H147: =-C147*0.12 -> 0 | J147: Nverf | K147: P2O5 | L147: K2O | M147: Mg | N147: Nverf | O147: P2O5 | P147: K2O | Q147: Mg | T147: Anteile am Bedarf C | AA147: - Der Ausnutzungsgrad des Gesamt-Stickstoffs (Nges) für unvergärte Hofdünger wird ausgehend von der Basis 60% korrigiert nach
G148: N-Ausnutzungsgrad unverg. Hofdünger | H148: =SUM(H144:H147) -> 0.6 | J148: kg | K148: kg | L148: kg | M148: kg | N148: kg/ha | O148: kg/ha | P148: kg/ha | Q148: kg/ha | T148: =J147 -> Nverf | U148: =K147 -> P2O5 | AA148: Anteil offener Ackerfläche (pro 1% Anteil -0.15%) und Anteil Vollmist-Nges (pro 1% Anteil -0.12% ).
A150: =IF(OR(NOT(ISERROR(SEARCH("*Ertragsschätzung*",H73))),H73=""),"","GF-Rechnung prüfen") ->  | B150: Nährstoffe aus Tierhaltung | G150: A2 | H150: =IF(H148="--",0,L32) -> 0 | I150: kg Nges | J150: =IF(H148="--",0,H148*L32) -> 0 | K150: =M32 -> 0 | L150: =N32 -> 0 | M150: =O32 -> 0 | N150: =IF(G103=0,"",J150/$G$103) ->  | O150: =IF(G103=0,"",K150/$G$103) ->  | P150: =IF(G103=0,"",L150/$G$103) ->  | Q150: =IF(G103=0,"",M150/$G$103) ->  | T150: =J150/J$151 ->  | AA150: - Zwischenbilanz "Eigenversorgung": Differenz zwischen Nährstoffanfall und Nährstoffbedarf des Betriebes.
A151: =COUNTIF(J84:J90,">2.5")+COUNTIF(J93:J94,">2.5")+COUNTIF(J96:J97,">2.5") -> 0 | B151: - Gesamtnährstoffbedarf des Betriebes (=100%) | I151: C | J151: =M103 -> 0 | K151: =N103 -> 0 | L151: =O103 -> 0 | M151: =P103 -> 0 | N151: =IF(G103=0,"",J151/$G$103) ->  | O151: =IF(G103=0,"",K151/$G$103) ->  | P151: =IF(G103=0,"",L151/$G$103) ->  | Q151: =IF(G103=0,"",M151/$G$103) ->  | AB151: Positive Zahl = Nährstoffüberschuss; negative Zahl = Nährstoffmanko.
A152: =IF(OR(A150<>"",A151>0.1),"nein","ja") -> ja | B152: = Zwischenbilanz: Eigenversorgung | I152: Z = A2 - C | J152: =J150-J151 -> 0 | K152: =K150-K151 -> 0 | L152: =L150-L151 -> 0 | M152: =M150-M151 -> 0 | N152: =IF(G103=0,"",N150-N151) ->  | O152: =IF(G103=0,"",O150-O151) ->  | P152: =IF(G103=0,"",P150-P151) ->  | Q152: =IF(G103=0,"",Q150-Q151) ->  | AA152: =Daten!E453 -> - Beim ÖLN darf die Gesamtbilanz den Fehlerbereich bei N und P nicht überschreiten.
A154: G'Bilanz | B154: + Saldo Zu- und Wegfuhr | I154: S = A3+D+E | J154: =IF(OR($A$152<>"ja",$A$156<>"ja"),"",N142) -> 0 | K154: =IF(OR($A$152<>"ja",$A$156<>"ja")," ",O142) -> 0 | L154: =IF(OR($A$152<>"ja",$A$156<>"ja")," ",P142) -> 0 | M154: =IF(OR($A$152<>"ja",$A$156<>"ja")," ",Q142) -> 0 | N154: =IF(G103=0,"",IF($A156<>"ja"," ",J154/$G$103)) ->  | O154: =IF(G103=0,"",IF($A156<>"ja"," ",K154/$G$103)) ->  | P154: =IF(G103=0,"",IF($A156<>"ja"," ",L154/$G$103)) ->  | Q154: =IF(G103=0,"",IF($A156<>"ja"," ",M154/$G$103)) ->  | T154: =J154/J$151 ->  | U154: =K154/K$151 ->  | AA154: =IF(K8<=2023,Daten!E454,"") -> Der Fehlerbereich beträgt in der Regel bei N und P 10% des Bedarfs (C), bei
A155: rechnen? | B155: - Nährstofftransfer für Futter von ungedüngten Wiesen | I155: T | K155: =N75 -> 0 | O155: =IF(G103=0,"",K155/$G$103) ->  | U155: =K155/K$151 ->  | AA155: =IF(K8<=2023,Daten!E455,"") -> bestimmten Betrieben beträgt der P-Fehlerbereich aber 0 %:
A156: ja | B156: = Gesamtbilanz | D156: (+ = Ueberschuss) | I156: G = Z+A3+D+E-T | J156: =IF(OR($A$152<>"ja",$A$156<>"ja"), "",J152+J154) -> 0 | K156: =IF(OR($A$152<>"ja",$A$156<>"ja"),"",K152+K154-K155) -> 0 | L156: =IF(OR($A$152<>"ja",$A$156<>"ja")," ",L152+L154) -> 0 | M156: =IF(OR($A$152<>"ja",$A$156<>"ja")," ",M152+M154) -> 0 | N156: =IF(G103=0,"",IF($A156<>"ja"," ",N152+N154)) ->  | O156: =IF(G103=0,"",IF($A156<>"ja"," ",O152+O154-O155)) ->  | P156: =IF(G103=0,"",IF($A156<>"ja"," ",P152+P154)) ->  | Q156: =IF(G103=0,"",IF($A156<>"ja"," ",Q152+Q154)) ->  | T156: =J156/J$151 ->  | U156: =K156/K$151 ->  | AA156: =IF(K8<=2023,Daten!E456,"") -> Einzelbetriebliche Verfügung nach Direktzahlungsverordnung (Änderung 1.1.2002) bei Bauten mit Ausdehnung des Tierbestandes, DZV Art. 13 und Anhang 1.
A158: (ja/nein) | B158: =Daten!E461 -> ÖLN: | C158: Max. Fehlerbereich für N und P2O5 | I158: F | J158: =IF(A152<>"ja","",IF(OR(Daten!Y1="BIO", K8>2023),0,IF(ISBLANK(N144)," _ ",IF(N144<=0.1,J151*N144,0.1*J151)))) -> _ | K158: =IF(A152<>"ja","",IF(ISBLANK(O144)," _ ",IF( K8>2023,0,IF(O144<=0.1,K151*O144,0.1*K151)))) -> _ | N158: =IF(G103=0,"",IF(J158=0,0,N151*N144)) ->  | O158: =IF(G103=0,"",IF(K8>2023,0,IF(O144<=0.1,O151*O144,0.1*O151))) ->  | AA158: =Daten!E457 -> 
A160: Bemerk. | H160: =IF(OR(ISNUMBER(R31)=FALSE,ISNUMBER(R34)=FALSE),"Vollmist-Nges überprüfen (Anfall/Zu-Wegfuhren) !",IF(A150<>"", "Grundfutter-Rechnung überprüfen !", IF(A151>0.1,A151&" Korrekturfaktor(en) Bodenproben zu gross (>2.5)", IF(OR(ISBLANK(O144), O144<0, O144 > 0.1), "P-Fehlerbereich eintragen (0% oder 10%)", IF(A156="ja",IF(AND(J160>0,K160>0),"Toleranzen überschritten !",IF(J160>0,"N-Toleranz überschritten !",IF(K160>0,"P-Toleranz überschritten !","Gesamtbilanz: Toleranzen eingehalten !"))), ""))))) -> P-Fehlerbereich eintragen (0% oder 10%) | J160: =IF(A156<>"ja", "", IF((J156-J158)>=0.5, J156-J158, 0)) ->  | K160: =IF(A156<>"ja","", IF((K156-K158)>=0.5,K156-K158, 0)) ->  | N160: =IF(G103=0,"",IF(AND(J160>0, A156= "ja"), N156-N158,"")) ->  | O160: =IF(G103=0,"",IF(AND(A156= "ja", K160>0),O156-O158, "")) ->  | Q160: =IF(K7="BIO","Zone","") ->  | S160: =IF(AND(K7="BIO",OR(R160=" -",ISBLANK(R160))),"<- Geben Sie die Zone ein für den DGVE-Höchstwert (vgl. Tab. weiter rechts)","") ->  | AA160: =IF(K8<=2023,Daten!E458,"") -> 
H161: max. mögl. Düngung (inkl. F) : | I161: C+F | J161: =J151+J158 ->  | K161: =K151+K158 ->  | N161: =IF(G103=0,"",N151+N158) ->  | O161: =IF(G103=0,"",O151+O158) ->  | R161: =IF(K7 = "BIO", "Höchstwert", "") ->  | AA161: =IF(K8<=2023,"Der Fehlerbereich ist die Kompensation für Schätz-Ungenauigkeiten der verwendeten Grunddaten (bis 2023). ","") -> Der Fehlerbereich ist die Kompensation für Schätz-Ungenauigkeiten der verwendeten Grunddaten (bis 2023).
H162: total gedüngt: | I162: A2+S-T | J162: =IF(A156="ja", J154+J150, "") -> 0 | K162: =IF(A156="ja", K154+K150-K155, "") -> 0 | N162: =IF(G103=0,"",IF(A156="ja", N154+N150, "")) ->  | O162: =IF(G103=0,"",IF(A156="ja", O154+O150-O155, "")) ->  | R162: =IF(K7 = "BIO", "DGVE / ha DF","") -> 
B163: =IF(S160<>""," Zonenangabe für DGVE/ha fehlt",IF(S163<>"",S163,IF(AND(K7="BIO",T142<>""),T142,IF(AND(K7="BIO",T120<>""),"Achtung: über 50% Nicht-BIO-Hofdünger!",IF(BG43=1," erhöhter Grundfutter-Ertrag -> Ertragsschätzung nötig",""))))) ->  | J163: =IF(G103=0,"",IF(A156="ja",J162/J151, "")) ->  | K163: =IF(G103=0,"",IF(A156="ja",K162/K151, "")) ->  | M163: =IF(K7 = "BIO", "entspricht ","") ->  | N163: =IF(AND(K7="BIO",A156="ja"),N162/(105*0.85*0.6),"") ->  | O163: =IF(AND(K7="BIO",A156="ja"),O162/35,"") ->  | P163: =IF(K7 = "BIO", " DGVE (Rind)","") ->  | R163: =IF(AND(K7="BIO",ISNUMBER( VLOOKUP(R160,BIO_DGVE_pro_ha,2,FALSE))),VLOOKUP(R160,BIO_DGVE_pro_ha,2,FALSE),"") ->  | S163: =IF( K7= "BIO",IF(AND(ISNUMBER(R163),R163>2.5),"<- Höchstwert zu hoch ! (max. 2.5)",IF(OR(N163>R163,O163>R163),"DGVE-Höchstwert überschritten ","")), "") ->  | Z163: =IF(K7="bio",K7,"") ->  | AA163: =IF(Z163="BIO","DGVE-Höchstwerte je ha DF ","") ->  | AF163: =IF(Z163="BIO","Ackerbau- und Übergangszonen 2.5","") -> 
AY164: stop | BK164: stop
B165: Datum: | D165: Unterschrift Betriebsleiter: | K165: =Daten!E452 -> Unterschrift ÖLN-Kontrolleur: | AF165: =IF(Z163="BIO","Voralpine Hügelzone 2.1","") ->  | AY165: stop | BK165: stop
A166: Ende Suisse-Bilanz | AA166: =IF(Z163="BIO","Die Zertifizierungsstelle kann auf Antrag höhere Werte zulassen. Die Obergrenze von 2.5 kann jedoch keinesfalls überschritten werden.","") ->  | AF166: =IF(Z163="BIO","Bergzone 1 1.8 Bergzone 2 1.4 Bergzone 3 1.2 Bergzone 4 1.1","") -> 
A167: mögliche zusätzliche Berechnungen (nur bei Bedarf): | V167: Die zusätzlichen Berechnungen A und B sind nicht Bestandteil der Nährstoffbilanz (und entsprechend für diese in der Regel nicht nötig).
A168: A) | B168: Zwischenstand Nährstoffzufuhren/Wegfuhren
C169: ="Zur Nährstoffbilanz "&K8 -> Zur Nährstoffbilanz 2023 | P169: =O8 -> 2023-02-14
C170: =C8&", "&C9&", Betr.Nr."&I8 -> , , Betr.Nr. | N170: je ha DF
J172: Nverf | K172: P2O5 | N172: Nverf | O172: P2O5
B173: =B158 -> ÖLN: | C173: Max.Zufuhr(+) bzw. min.Wegfuhr(-) | I173: = - Z + F + T | J173: =-J152+J158 ->  | K173: =-K152+K158+K155 ->  | N173: =-N152+N158 ->  | O173: =-O152+O158+O155 ->  | AA173: - Maximal zulässige Nährstoffzufuhr (inkl. Fehlerbereich) (= positive Zahl), oder
B174: zum Vergleich: Saldo Nährstoffzufuhr und -wegfuhr (A3+D+E) | J174: =N142 -> 0 | K174: =O142 -> 0 | N174: =N154 ->  | O174: =O154 ->  | AB174: minimal notwendige Nährstoffwegfuhr (= negative Zahl).
C176: max. mögliche weitere Zufuhr (inkl. Fehlerbereich) | J176: =ROUND(J173-J174,0) ->  | K176: =ROUND(K173-K174,0) ->  | N176: =N173-N174 ->  | O176: =O173-O174 -> 
J177: =IF(J176<0, "bereits zu viel N ausgebracht ", IF(J178>J176,"zu viel N geplant ","")) ->  | K177: =IF( K176<0, " bereits zuviel P ausgebracht", IF(K178>K176," zu viel P geplant","")) -> 
B178: Planung für weitere Zufuhr | J178: =ROUND(SUM(J181:J185),0) -> 0 | K178: =ROUND(SUM(K181:K185),0) -> 0 | N178: =J178/G103 ->  | O178: =K178/G103 -> 
H179: Gehalte (kg/Einheit)
C180: Düngerart | F180: Menge | G180: Einheit | H180: Nverf | I180: P2O5 | AA180: - die geplante weitere Zufuhr wird nicht automatisch in die Nährstoffbilanz übernommen
B181: Dünger 1 | G181: dt | J181: =IF(ISNUMBER(F181),F181*H181,"") ->  | K181: =IF(ISNUMBER(F181),F181*I181,"") -> 
B182: Dünger 2 | G182: m3 | J182: =IF(ISNUMBER(F182),F182*H182,"") ->  | K182: =IF(ISNUMBER(F182),F182*I182,"") -> 
B183: Dünger 3 | J183: =IF(ISNUMBER(F183),F183*H183,"") ->  | K183: =IF(ISNUMBER(F183),F183*I183,"") -> 
B184: Dünger 4 | J184: =IF(ISNUMBER(F184),F184*H184,"") ->  | K184: =IF(ISNUMBER(F184),F184*I184,"") -> 
B185: Dünger 5 | J185: =IF(ISNUMBER(F185),F185*H185,"") ->  | K185: =IF(ISNUMBER(F185),F185*I185,"") -> 
A188: B) | B188: Aufteilung der Nährstoffe auf Gülle, Mist und Weide zur Schätzung der Hofdüngergehalte | AA188: =B188 -> Aufteilung der Nährstoffe auf Gülle, Mist und Weide zur Schätzung der Hofdüngergehalte | AS188: BASISTABELLE: | AT188: Hofdüngerarten: Mengen pro Vieheinheit und Nährstoffanteile in der Gülle | BF188: =R5&" / "&LEFT(B6,27) -> (Basis = Version 1.17, 2023, agridea und EVD/BLW) / Version 1.17 - 2023 Copyr | BK188: stop
B190: HOFDÜNGERANFALL | E190: =K8 -> 2023 | G190: Name: | H190: =C8&", "&C9 -> , | N190: Datum: | O190: =IF(ISBLANK(O8),"",O8) -> 2023-02-14 | R190: Seite 3 | AS190: Zeilen | AT190: Code | AU190: 0 | AV190: 1 | AW190: 2 | AX190: 3 | AY190: 4 | AZ190: 5 | BA190: 6 | BB190: 7 | BC190: 8 | BD190: 9 | BE190: 10 | BF190: 11 | BG190: 12
M191: =G7 -> 0 | AS191: 2 | AT191: Tier- | AU191: 0 | AV191: Rindvieh | AW191: Rindvieh | AX191: Rindvieh | AY191: Rindvieh | AZ191: Rindvieh | BA191: Rindv., Pferde | BB191: Schweine | BC191: Schweine | BD191: Schweine | BE191: Geflügel | BF191: Geflügel | BG191: Geflügel
B192: Hofdüngerarten nach Tierkategorien und Aufstallungssystemen | P192: ="erstellt von: "&O9 -> erstellt von: | AA192: - Zur Berechnung des Hofdüngeranfalles müssen bei den einzelnen Tierkategorien | AS192: 3 | AT192: arten | AU192: 0 | AZ192: Pferde | BA192: Scha,Zi,Kan
AB193: die Hofdüngerarten nach Aufstallungssystem gemäss der Liste links als | AS193: 4 | AT193: Hofdünger- | AU193: 0 | AV193: Vollgülle | AW193: Vollgülle + | AX193: kotreiche Gülle | AY193: kotarme Gülle | AZ193: Harngülle | BA193: keine Gülle | BB193: Vollgülle | BC193: Vollgülle | BD193: keine Gülle | BE193: Hennenkot | BF193: Geflügelmist | BG193: Geflügelmist
B194: Code | C194: Tierart | E194: Hofdüngerart, Aufstallung | J194: Code | K194: Tierart | M194: Hofdüngerart, Aufstallung | AB194: Zahlencodes eingegeben werden. | AS194: 5 | AT194: arten | AU194: 0 | AV194: kein Mist | AW194: Laufstallmist | AX194: + wenig Mist | AY194: + mittel Mist | AZ194: + viel Mist | BA194: Laufstallmist | BB194: kein Mist | BC194: + Mist | BD194: Laufstallmist | BE194: Kotband | BF194: Bodenhaltung | BG194: in Güllegrube
B195: 1 | C195: Rindvieh | E195: Vollgülle, kein Mist: Gitterrost, | J195: 7 | K195: Schweine | M195: Vollgülle | AB195: Z.B. Milchkühe im Anbindestall mit Schwemmentmistung produzieren Vollgülle: Code = 1 | AS195: 6 | AT195: m3 Gülle | AU195: 0 | AV195: 23 | AW195: =8*1.15 -> 9.2 | AX195: =13.2*1.15 -> 15.18 | AY195: 11 | AZ195: =6*1.15 -> 6.9 | BA195: 0 | BB195: =1.6*6 -> 9.6 | BC195: =1.6*6*0.5 -> 4.8 | BD195: 0 | BE195: 0 | BF195: 0 | BG195: 1.8
E196: Spaltenboden oder Schieber | M196: keine Mistproduktion | AS196: 7 | AT196: t Mist | AU196: 0 | AV196: 0 | AW196: =11*1.15 -> 12.65 | AX196: =5.4*1.15 -> 6.21 | AY196: 8.9 | AZ196: =10*1.15 -> 11.5 | BA196: 21 | BB196: 0 | BC196: =(1.2*6-2.2)*0.5 -> 2.5 | BD196: =1.2*6-2.2 -> 5 | BE196: 2.7 | BF196: 1.5 | BG196: 0
B197: 2 | C197: Rindvieh | E197: Vollgülle + Laufstallmist | J197: 8 | K197: Schweine | M197: Gülle + Mist | AA197: - Bei Gülle und Mist können je 3 separate Lagerstätten als Nr. 1, 2 oder 3 gewählt werden. | AS197: 8 | AT197: Nges % | AU197: 0 | AV197: 1 | AW197: 0.4 | AX197: 0.68 | AY197: 0.56 | AZ197: 0.44 | BA197: 0 | BB197: 1 | BC197: 0.32 | BD197: 0 | BE197: 0 | BF197: 0 | BG197: 1
E198: Tiefstreu und Fressplatz | M198: Einstreustall mit Kotgang | AS198: 9 | AT198: Nverf % | AU198: 0 | AV198: 1 | AW198: 0.46 | AX198: 0.75 | AY198: 0.73 | AZ198: 0.61 | BA198: 0 | BB198: 1 | BC198: 0.4 | BD198: 0 | BE198: 0 | BF198: 0 | BG198: 1
B199: 3 | C199: Rindvieh | E199: kotreiche Gülle + wenig Mist | J199: 9 | K199: Schweine | M199: Vollmist | AB199: Je nach dem wird dann pro Grube oder Stock die Gesamtmenge | AS199: 10 | AT199: P2O5 % | AU199: 0 | AV199: 1 | AW199: 0.34 | AX199: 0.52 | AY199: 0.33 | AZ199: 0.12 | BA199: 0 | BB199: 1 | BC199: 0.28 | BD199: 0 | BE199: 0 | BF199: 0 | BG199: 1
E200: viel Kot abgeschorrt | M200: Tiefstreulaufstall | AB200: und der durchschnittliche Gehalt berechnet. | AS200: 11 | AT200: K2O % | AU200: 0 | AV200: 1 | AW200: 0.35 | AX200: 0.78 | AY200: 0.69 | AZ200: 0.61 | BA200: 0 | BB200: 1 | BC200: 0.23 | BD200: 0 | BE200: 0 | BF200: 0 | BG200: 1
B201: 4 | C201: Rindvieh | E201: kotarme Gülle + mittel Mist | J201: 10 | K201: Geflügel | M201: Hennenkot | AS201: 12 | AT201: Mg % | AU201: 0 | AV201: 1 | AW201: 0.35 | AX201: 0.65 | AY201: 0.45 | AZ201: 0.25 | BA201: 0 | BB201: 1 | BC201: 0.26 | BD201: 0 | BE201: 0 | BF201: 0 | BG201: 1
E202: mittlere Menge Kot abgeschorrt | M202: Volierenhaltung mit Kotband | AA202: - Bei den einzelnen Güllegruben muss die effektive Güllemenge pro Jahr eingegeben werden.
B203: 5 | C203: Rindvieh, Pferde | E203: Harngülle + viel Mist | J203: 11 | K203: Geflügel | M203: Geflügelmist | AB203: Am besten schätzt man durch Erhebungen (Hofdüngerrapport)
E204: kein Kot abgeschorrt | M204: Tiefstreu, Kotgrube, Schräggitter | AB204: die jährliche Gesamtmenge an Gülle ein.
B205: 6 | C205: Rindvieh, Pferde, | E205: nur Laufstallmist, keine Gülle | J205: 12 | K205: Geflügel | M205: Geflügelmist in Güllegrube eingemischt
C206: Schafe, Ziegen, Kaninchen, Hirsche
B208: vorhandene Hofdüngerlager: | F208: Güllengruben | H208: Bezeichnung | L208: Miststöcke | N208: Bezeichnung
F209: Grube 1 | L209: Stock 1 | BK209: stop | CH209: stop
F210: Grube 2 | L210: Stock 2 | BL210: Aufteilung von N auf die Kategorien | CF210: max. Nv Betrieb | CG210: Rest
F211: Grube 3 | L211: Stock 3 | BM211: Betrieb | BO211: Stall | BQ211: Laufhof | BT211: Weide | BY211: Summe | CB211: Abzug "nicht verfügbarer Nges"
BN212: a | BP212: a1 | BR212: a2 | BS212: b | BU212: a3 | BV212: c | BW212: d | BX212: e | BY212: f =a+b+d | BZ212: g | CA212: h =f-g | CB212: i | CC212: j | CD212: k | CE212: l | CF212: m | CG212: n
B213: Code: Nr. eingeben , | I213: Güllegrube: Nr. 1, 2 od. 3 einsetzen | J213: und | K213: Miststock: Nr. 1, 2 oder 3 einsetzen | AA213: Berechnungstabelle | BN213: Betrieb | BP213: Stall | BR213: L'hof | BS213: Aufteilung | BU213: Weide | BW213: Aufteilung | BX213: a3-d | BY213: gedüngt | BZ213: prop.a1 | CE213: Nv | CF213: Nv | CG213: Nv
I214: Aufstal | J214: Gülle- | K214: Mist- | M214: Korrigierter Nährstoffanfall | AA214: Gülleanfall in Grube 1 | AG214: Gülleanfall in Grube 2 | AM214: Gülleanfall in Grube 3 | AS214: Mistanfall Stock 1 | AY214: Mistanfall Stock 2 | BE214: Mistanfall Stock 3 | BL214: Anfall | BM214: Abzug | BN214: Anfall | BP214: Anfall | BQ214: Zeit | BR214: Anfall | BS214: Abzug | BU214: Anfall | BV214: für Ber. | BW214: Abzug | BX214: Düngung | BY214: "Anfall" | BZ214: Vollmist | CA214: Nicht VM | CB214: Basis | CC214: oAL | CD214: VM | CE214: Betrieb | CF214: Weide | CG214: M+G
B215: Tierkategorien | E215: Anzahl | F215: Weide | H215: Korrig. | I215: ="-lung" -> -lung | J215: grube | K215: stock | M215: (kg pro Jahr) | AA215: Menge | AC215: kg Nährstoffe | AG215: Menge | AI215: kg Nährstoffe | AM215: Menge | AO215: kg Nährstoffe | AS215: Menge | AU215: kg Nährstoffe | AY215: Menge | BA215: kg Nährstoffe | BE215: Menge | BG215: kg Nährstoffe | BL215: brutto | BM215: na. Futter | BN215: abz. naF | BO215: Zeit | BP215: abz. naF | BR215: abz. naF | BS215: prop. | BT215: Zeit | BU215: abz. naF | BV215: Abzug | BW215: prop. c | BX215: Weide | BY215: netto | BZ215: abz. naF | CB215: prop. f | CC215: prop.(f-e) | CD215: prop. g
F216: Std./T. | G216: Tage/J. | H216: Einh. | I216: Code | J216: Nr. | K216: Nr. | L216: Nges | M216: Nverf | N216: P2O5 | O216: K2O | P216: Mg | AA216: m3 | AB216: Nges | AC216: Nverf | AD216: P2O5 | AE216: K2O | AF216: Mg | AG216: m3 | AH216: Nges | AI216: Nverf | AJ216: P2O5 | AK216: K2O | AL216: Mg | AM216: m3 | AN216: Nges | AO216: Nverf | AP216: P2O5 | AQ216: K2O | AR216: Mg | AS216: t | AT216: Nges | AU216: Nverf | AV216: P2O5 | AW216: K2O | AX216: Mg | AY216: t | AZ216: Nges | BA216: Nverf | BB216: P2O5 | BC216: K2O | BD216: Mg | BE216: t | BF216: Nges | BG216: Nverf | BH216: P2O5 | BI216: K2O | BJ216: Mg | BL216: kg Nges | BM216: kg Nges | BN216: kg Nges | BP216: kg Nges | BR216: kg Nges | BS216: a2 | BU216: kg Nges | BW216: kg Nges | BX216: kg Nges | BY216: kg Nges | BZ216: kg Nges | CA216: kg Nges | CE216: Nverf | CF216: Nverf | CG216: Nverf
B217: Milchkühe | C217: kg: | D217: =B18 -> 0 | E217: =IF(ISNUMBER(F18),F18,) -> 0 | F217: =H18 -> 0 | G217: =I18 -> 0 | H217: =(E217-E217*F217*G217/24/365)*IF(D217<7500,(1+0.05*(D217-7500)/1000),(1+0.05*(D217-7500)/1000)) -> 0 | L217: =IF(ISNUMBER(L18),BP217+BR217+BS217,) -> 0 | M217: =IF(ISNUMBER(L18),CG217,) -> 0 | N217: =IF(ISNUMBER(M18),(M18-IF($K$29=0,0,$K$30/$K$29*K18*0.1))*(1-$F217*$G217/24/365),) -> 0 | O217: =IF(ISNUMBER(N18),N18*(1-$F217*$G217/24/365),) -> 0 | P217: =IF(ISNUMBER(O18),O18*(1-$F217*$G217/24/365),) -> 0 | Q217: =IF(AND(E217>0,I217=0),"Aufstallungscode fehlt",IF(AND(E217>0,SUM(J217:K217)<1),"Grube / Stock fehlt",IF(COUNTIF(J217:K217,">3")>0,"Nr-Grube/Stock falsch",))) -> 0 | AA217: =IF($J217=1,$H217*HLOOKUP($I217,$AT$190:$BG$201,6),0) -> 0 | AB217: =IF($J217=1,$L217*HLOOKUP($I217,$AT$190:$BG$201,8),0) -> 0 | AC217: =IF($J217=1,$M217*HLOOKUP($I217,$AT$190:$BG$201,9),0) -> 0 | AD217: =IF($J217=1,$N217*HLOOKUP($I217,$AT$190:$BG$201,10),0) -> 0 | AE217: =IF($J217=1,$O217*HLOOKUP($I217,$AT$190:$BG$201,11),0) -> 0 | AF217: =IF($J217=1,$P217*HLOOKUP($I217,$AT$190:$BG$201,12),0) -> 0 | AG217: =IF($J217=2,$H217*HLOOKUP($I217,$AT$190:$BG$201,6),0) -> 0 | AH217: =IF($J217=2,$L217*HLOOKUP($I217,$AT$190:$BG$201,8),0) -> 0 | AI217: =IF($J217=2,$M217*HLOOKUP($I217,$AT$190:$BG$201,9),0) -> 0 | AJ217: =IF($J217=2,$N217*HLOOKUP($I217,$AT$190:$BG$201,10),0) -> 0 | AK217: =IF($J217=2,$O217*HLOOKUP($I217,$AT$190:$BG$201,11),0) -> 0 | AL217: =IF($J217=2,$P217*HLOOKUP($I217,$AT$190:$BG$201,12),0) -> 0 | AM217: =IF($J217=3,$H217*HLOOKUP($I217,$AT$190:$BG$201,6),0) -> 0 | AN217: =IF($J217=3,$L217*HLOOKUP($I217,$AT$190:$BG$201,8),0) -> 0 | AO217: =IF($J217=3,$M217*HLOOKUP($I217,$AT$190:$BG$201,9),0) -> 0 | AP217: =IF($J217=3,$N217*HLOOKUP($I217,$AT$190:$BG$201,10),0) -> 0 | AQ217: =IF($J217=3,$O217*HLOOKUP($I217,$AT$190:$BG$201,11),0) -> 0 | AR217: =IF($J217=3,$P217*HLOOKUP($I217,$AT$190:$BG$201,12),0) -> 0 | AS217: =IF($K217=1,$H217*HLOOKUP($I217,$AT$190:$BG$201,7),0) -> 0 | AT217: =IF($K217=1,$L217*(1-HLOOKUP($I217,$AT$190:$BG$201,8)),0) -> 0 | AU217: =IF($K217=1,$M217*(1-HLOOKUP($I217,$AT$190:$BG$201,9)),0) -> 0 | AV217: =IF($K217=1,$N217*(1-HLOOKUP($I217,$AT$190:$BG$201,10)),0) -> 0 | AW217: =IF($K217=1,$O217*(1-HLOOKUP($I217,$AT$190:$BG$201,11)),0) -> 0 | AX217: =IF($K217=1,$P217*(1-HLOOKUP($I217,$AT$190:$BG$201,12)),0) -> 0 | AY217: =IF($K217=2,$H217*HLOOKUP($I217,$AT$190:$BG$201,7),0) -> 0 | AZ217: =IF($K217=2,$L217*(1-HLOOKUP($I217,$AT$190:$BG$201,8)),0) -> 0 | BA217: =IF($K217=2,$M217*(1-HLOOKUP($I217,$AT$190:$BG$201,9)),0) -> 0 | BB217: =IF($K217=2,$N217*(1-HLOOKUP($I217,$AT$190:$BG$201,10)),0) -> 0 | BC217: =IF($K217=2,$O217*(1-HLOOKUP($I217,$AT$190:$BG$201,11)),0) -> 0 | BD217: =IF($K217=2,$P217*(1-HLOOKUP($I217,$AT$190:$BG$201,12)),0) -> 0 | BE217: =IF($K217=3,$H217*HLOOKUP($I217,$AT$190:$BG$201,7),0) -> 0 | BF217: =IF($K217=3,$L217*(1-HLOOKUP($I217,$AT$190:$BG$201,8)),0) -> 0 | BG217: =IF($K217=3,$M217*(1-HLOOKUP($I217,$AT$190:$BG$201,9)),0) -> 0 | BH217: =IF($K217=3,$N217*(1-HLOOKUP($I217,$AT$190:$BG$201,10)),0) -> 0 | BI217: =IF($K217=3,$O217*(1-HLOOKUP($I217,$AT$190:$BG$201,11)),0) -> 0 | BJ217: =IF($K217=3,$P217*(1-HLOOKUP($I217,$AT$190:$BG$201,12)),0) -> 0 | BL217: =IF(ISNUMBER(L18),L18,) -> 0 | BM217: =IF(AND($K$30>0,ISNUMBER($K18)),$L$30*$K18/$K$29,) -> 0 | BN217: =BL217+BM217 -> 0 | BO217: =IF(ISNUMBER(L18),1-BQ217-BT217,) -> 0 | BP217: =BN217*BO217 -> 0 | BQ217: =IF(P18>0,G18*(24*0.1)/24/365,) -> 0 | BR217: =BN217*BQ217 -> 0 | BS217: =IF($BR$225>0,-$BS$226/$BR$225*BR217,) -> 0 | BT217: =IF(ISNUMBER(L18),H18*I18/24/365,) -> 0 | BU217: =IF(L18=0,0,BN217*BT217) -> 0 | BV217: =IF(Q18=0,0,BU217) -> 0 | BW217: =IF(AND(ISNUMBER(Q18),Q18<>0,$BW$226>0),-$BW$226/$BV$225*BV217,) -> 0 | BX217: =BU217+BW217 -> 0 | BY217: =BN217+BS217+BW217 -> 0 | BZ217: =BP217*J18/100 -> 0 | CA217: =BY217-BZ217 -> 0 | CB217: =$CB$226/$BY$225*BY217 ->  | CC217: =IF(($BY$225-$BX$225)>0,$CC$226/($BY$225-$BX$225)*(BY217-BX217),$CC$226/$BY$225*BY217) ->  | CD217: =IF(BZ217>0,$CD$226/$BZ$225*BZ217,) -> 0 | CE217: =BY217-SUM(CB217:CD217) ->  | CF217: =IF(BW217=0,IF((0.6-0.12)*ABS(BX217)>ABS(CE217),CE217,(0.6-0.12)*BX217),IF(0.6*ABS(BX217)>ABS(CE217),CE217,0.6*BX217)) ->  | CG217: =CE217-CF217 -> 
A218: ausblenden
A219: =A23 -> 0 | B219: RV-Mast >160 d (Pl.) | E219: =IF(ISNUMBER(F23),F23,) -> 0 | F219: =H23 -> 0 | G219: 0 | H219: =N219/13.4*0.46 -> 0 | L219: =IF(ISNUMBER(L23),BP219+BR219+BS219,) -> 0 | M219: =IF(ISNUMBER(L23),CG219,) -> 0 | N219: =IF(ISNUMBER(M23),(M23-IF($K$29=0,0,$K$30/$K$29*K23*0.1))*(1-$F219*$G219/24/365),) -> 0 | O219: =IF(ISNUMBER(N23),N23*(1-$F219*$G219/24/365),) -> 0 | P219: 0 | Q219: =IF(AND(E219>0,I219=0),"Aufstallungscode fehlt",IF(AND(E219>0,SUM(J219:K219)<1),"Grube / Stock fehlt",IF(COUNTIF(J219:K219,">3")>0,"Nr-Grube/Stock falsch",IF(A219="gfzs","Code+Nr.wie Tiere die dieses GF fressen",)))) -> 0 | AA219: 0 | AB219: 0 | AC219: 0 | AD219: 0 | AE219: 0 | AF219: 0 | AG219: 0 | AH219: 0 | AI219: 0 | AJ219: 0 | AK219: 0 | AL219: 0 | AM219: 0 | AN219: 0 | AO219: 0 | AP219: 0 | AQ219: 0 | AR219: 0 | AS219: 0 | AT219: 0 | AU219: 0 | AV219: 0 | AW219: 0 | AX219: 0 | AY219: 0 | AZ219: 0 | BA219: 0 | BB219: 0 | BC219: 0 | BD219: 0 | BE219: 0 | BF219: 0 | BG219: 0 | BH219: 0 | BI219: 0 | BJ219: 0 | BL219: =IF(ISNUMBER(L23),L23,) -> 0 | BM219: =IF(AND($K$30>0,ISNUMBER($K23)),$L$30*$K23/$K$29,) -> 0 | BN219: 0 | BO219: =IF(ISNUMBER(L23),1-BQ219-BT219,) -> 0 | BP219: 0 | BQ219: =IF(P23>0,G23*(24*0.1)/24/365,) -> 0 | BR219: 0 | BS219: 0 | BT219: =IF(ISNUMBER(L23),H23*I23/24/365,) -> 0 | BU219: =IF(L23=0,0,BN219*BT219) -> 0 | BV219: =IF(Q23=0,0,BU219) -> 0 | BW219: =IF(AND(ISNUMBER(Q23),Q23<>0,$BW$226>0),-$BW$226/$BV$225*BV219,) -> 0 | BX219: 0 | BY219: 0 | BZ219: =BP219*J23/100 -> 0 | CA219: 0 | CD219: 0 | CE219: =BY219-SUM(CB219:CD219) ->  | CF219: =IF(BW219=0,IF((0.6-0.12)*ABS(BX219)>ABS(CE219),CE219,(0.6-0.12)*BX219),IF(0.6*ABS(BX219)>ABS(CE219),CE219,0.6*BX219)) ->  | CG219: =CE219-CF219 -> 
A220: 0 | B220: - | E220: 0 | F220: 0 | G220: 0 | H220: =IF(LEFT(A220,2)="ie",N220/35,(E220-E220*F220*G220/24/365)*(VLOOKUP($A220,Daten!$E$248:$M$345,9,FALSE))) -> 0 | L220: 0 | M220: 0 | N220: 0 | O220: 0 | P220: 0 | Q220: 0 | AA220: 0 | AB220: 0 | AC220: 0 | AD220: 0 | AE220: 0 | AF220: 0 | AG220: 0 | AH220: 0 | AI220: 0 | AJ220: 0 | AK220: 0 | AL220: 0 | AM220: 0 | AN220: 0 | AO220: 0 | AP220: 0 | AQ220: 0 | AR220: 0 | AS220: 0 | AT220: 0 | AU220: 0 | AV220: 0 | AW220: 0 | AX220: 0 | AY220: 0 | AZ220: 0 | BA220: 0 | BB220: 0 | BC220: 0 | BD220: 0 | BE220: 0 | BF220: 0 | BG220: 0 | BH220: 0 | BI220: 0 | BJ220: 0 | BL220: 0 | BM220: 0 | BN220: 0 | BO220: 0 | BP220: 0 | BQ220: 0 | BR220: 0 | BS220: 0 | BT220: 0 | BU220: 0 | BV220: 0 | BW220: 0 | BX220: 0 | BY220: 0 | BZ220: 0 | CA220: 0 | CD220: 0
A221: 0 | B221: - | E221: 0 | F221: 0 | G221: 0 | H221: =IF(LEFT(A221,2)="ie",N221/35,(E221-E221*F221*G221/24/365)*(VLOOKUP($A221,Daten!$E$248:$M$345,9,FALSE))) -> 0 | L221: 0 | M221: 0 | N221: 0 | O221: 0 | P221: 0 | Q221: 0 | AA221: 0 | AB221: 0 | AC221: 0 | AD221: 0 | AE221: 0 | AF221: 0 | AG221: 0 | AH221: 0 | AI221: 0 | AJ221: 0 | AK221: 0 | AL221: 0 | AM221: 0 | AN221: 0 | AO221: 0 | AP221: 0 | AQ221: 0 | AR221: 0 | AS221: 0 | AT221: 0 | AU221: 0 | AV221: 0 | AW221: 0 | AX221: 0 | AY221: 0 | AZ221: 0 | BA221: 0 | BB221: 0 | BC221: 0 | BD221: 0 | BE221: 0 | BF221: 0 | BG221: 0 | BH221: 0 | BI221: 0 | BJ221: 0 | BL221: 0 | BM221: 0 | BN221: 0 | BO221: 0 | BP221: 0 | BQ221: 0 | BR221: 0 | BS221: 0 | BT221: 0 | BU221: 0 | BV221: 0 | BW221: 0 | BX221: 0 | BY221: 0 | BZ221: 0 | CA221: 0 | CD221: 0
A222: 0 | B222: - | E222: 0 | F222: 0 | G222: 0 | H222: =IF(LEFT(A222,2)="ie",N222/35,(E222-E222*F222*G222/24/365)*(VLOOKUP($A222,Daten!$E$248:$M$345,9,FALSE))) -> 0 | L222: 0 | M222: 0 | N222: 0 | O222: 0 | P222: 0 | Q222: 0 | AA222: 0 | AB222: 0 | AC222: 0 | AD222: 0 | AE222: 0 | AF222: 0 | AG222: 0 | AH222: 0 | AI222: 0 | AJ222: 0 | AK222: 0 | AL222: 0 | AM222: 0 | AN222: 0 | AO222: 0 | AP222: 0 | AQ222: 0 | AR222: 0 | AS222: 0 | AT222: 0 | AU222: 0 | AV222: 0 | AW222: 0 | AX222: 0 | AY222: 0 | AZ222: 0 | BA222: 0 | BB222: 0 | BC222: 0 | BD222: 0 | BE222: 0 | BF222: 0 | BG222: 0 | BH222: 0 | BI222: 0 | BJ222: 0 | BL222: 0 | BM222: 0 | BN222: 0 | BO222: 0 | BP222: 0 | BQ222: 0 | BR222: 0 | BS222: 0 | BT222: 0 | BU222: 0 | BV222: 0 | BW222: 0 | BX222: 0 | BY222: 0 | BZ222: 0 | CA222: 0 | CD222: 0
... 29 more rows

Sheet GMF_1.8
B1: Futterbilanz für die graslandbasierte | I1: =IF(ISBLANK(Suisse_Bilanz_1.17!G7),"Betr.-Nr. im Blatt 'Suisse_Bilanz…' erfassen",Suisse_Bilanz_1.17!G7) -> Betr.-Nr. im Blatt 'Suisse_Bilanz…' erfassen | M1: =Suisse_Bilanz_1.17!O8 -> 2023-02-14 | Q1: Anleitung | T1: Hilfsspalten für Berechnungen
B2: ="Milch- und Fleischproduktion (GMF) "&Suisse_Bilanz_1.17!K8 -> Milch- und Fleischproduktion (GMF) 2023 | I2: =IF(ISBLANK(Suisse_Bilanz_1.17!C8),"Adresse im Blatt 'Suisse_Bilanz…' erfassen",Suisse_Bilanz_1.17!C8) ->  | Q2: Hinweis: Die Futterbilanz gilt nur zusammen mit der Nährstoffbilanz des entsprechenden Jahres,
B3: Version 1.8 | I3: =IF(ISBLANK(Suisse_Bilanz_1.17!C9),"",Suisse_Bilanz_1.17!C9) ->  | Q3: weil die Futterbilanz mit den Daten der Nährstoffbilanz übereinstimmen muss.
B4: ="als Ergänzung zur Suisse-Bilanz "&Suisse_Bilanz_1.17!K8 -> als Ergänzung zur Suisse-Bilanz 2023 | Q4: zur Dateneingabe:
J5: =IF(OR(LEFT(K5,4)="Talg",LEFT(K5,4)="Berg"),"Gebietszuteilung: ","Wählen Sie die Gebietszuteilung -> ") -> Wählen Sie die Gebietszuteilung -> | Q5: grün: aus Liste wählen
B6: Teil A: Grund- und Kraftfutterverzehr (Bedarf) | Q6: gelb: Daten eingeben
D7: Raufutterverzehrer | F7: Grund- | G7: =IF(U22>0,"davon","") ->  | H7: Kraftfutter- | J7: Sömmerung | Q7: weiss (oder weitere Farbe): Zelle gesperrt bzw. keine Dateneingabe | Y7: Faktor | Z7: Raufutterverzehrer
B8: =Suisse_Bilanz_1.17!B15 -> Tierkategorien | E8: Anzahl | F8: futter- | G8: =IF(U22>0,"Wiesen- &","") ->  | H8: verzehr | U8: Typ für | V8: GF-Verzehr | W8: Sö-KF | X8: Sö-GF-Korr. | Y8: RGVE | Z8: RGVE
B9: gemäss Suisse-Bilanz | C9: =IF(OR(ISNUMBER(E11),ISNUMBER(E12)),"Milchproduktion","") ->  | E9: gemäss | F9: verzehr | G9: =IF(U22>0,"Weidefutter","") ->  | H9: kg FS | I9: dt FS | J9: Anzahl | K9: =IF(SUMIF(J11:J19,">0")>0,"Anzahl","") ->  | L9: =IF(SUMIF(J11:J19,">0")>0,"Sömmerungs-","") ->  | M9: =IF(SUMIF(J11:J19,">0")>0,"GF-Verzehr","") ->  | N9: =IF(SUMIF(J11:J19,">0")>0,"Kraftfutter","") ->  | O9: =IF(COUNT(O11:O19)>0,"KF-Sömmerung","") ->  | Q9: Vorgehen: | U9: Summen- | V9: pro Einheit | W9: kg KF/Einheit | X9: nach KF | Z9: Betrieb | AA9: Sömmerung | AB9: Summe
C10: =IF(OR(ISNUMBER(E11),ISNUMBER(E12)),"kg/Kuh/Jahr","") ->  | E10: Suisse-Bil. | F10: =Suisse_Bilanz_1.17!K16 -> dt TS/J. | G10: =IF(U22>0,F10,"") ->  | H10: pro Einh. | I10: total | J10: Tiere | K10: =IF(SUMIF(J11:J19,">0")>0,"Tage","") ->  | L10: =IF(SUMIF(J11:J19,">0")>0,"Tage total","") ->  | M10: =IF(SUMIF(J11:J19,">0")>0,"dt TS total","") ->  | N10: =IF(SUMIF(J11:J19,">0")>0,"dt FS total","") ->  | O10: =IF(COUNT(O11:O19)>0,"kg KF/Tier-Einheit/Tag","") ->  | Q10: 1. zuerst Suisse-Bilanz ... ausfüllen, | U10: bildung | V10: dt TS / Jahr | W10: umger. im Jahr
B11: =IF(ISNUMBER(F11),Suisse_Bilanz_1.17!B$16,"") ->  | C11: =IF(ISNUMBER(F11),Suisse_Bilanz_1.17!B18,"") ->  | D11: =IF(LEFT(U11,2)="RV","x","") ->  | E11: =IF(AND(ISNUMBER(F11),LEFT(B11,7)<>"GF-Verz"),Suisse_Bilanz_1.17!F18,"") ->  | F11: =IF(AND(ISNUMBER(Suisse_Bilanz_1.17!K18),Suisse_Bilanz_1.17!K18<>0),Suisse_Bilanz_1.17!K18,"") ->  | H11: =IF(ISNUMBER(F11),Suisse_Bilanz_1.17!E18,"") ->  | I11: =IF(ISNUMBER(E11),Suisse_Bilanz_1.17!D18,"") ->  | L11: =IF(AND(D11="x",J11>0),J11*K11,"") ->  | M11: =IF(AND(K11>0,ISNUMBER(L11)), (56+0.14*(C11-7500)/100 - 0.003*((C11-7500)/100)^2)*L11/365,"") ->  | O11: =IF(ISNUMBER(W11),W11/365,"") ->  | Q11: weil die Futterbilanz mit der Suisse-Bilanz übereinstimmen muss | U11: =IF(ISNUMBER(F11),"RVm",0) -> 0 | V11: =IF(ISNUMBER(M11),M11/L11*365,"") ->  | W11: =IF(AND(ISNUMBER(L11),L11>0,U11="RVm"),N11*100*365/L11,"") ->  | X11: 0 | Y11: 1 | Z11: =IF(D11="x", Y11*E11,0) -> 0 | AA11: =IF(AND(D11="x",ISNUMBER(L11)),Y11*L11/365,0) -> 0
A12: ausblenden
A13: ausblenden | X13: diese Zeile jeweils leeren und ausblenden
B14: =IF(ISNUMBER(F14),Suisse_Bilanz_1.17!B23&" - "&Suisse_Bilanz_1.17!D23&" / "&Suisse_Bilanz_1.17!E23,"") ->  | D14: =IF(LEFT(U14,2)="RV","x","") ->  | E14: =IF(AND(ISNUMBER(F14),LEFT(B14,7)<>"GF-Verz"),Suisse_Bilanz_1.17!F23,"") ->  | F14: =IF(AND(ISNUMBER(Suisse_Bilanz_1.17!K23),Suisse_Bilanz_1.17!K23<>0),Suisse_Bilanz_1.17!K23,"") ->  | H14: =IF(AND(D14="x",E14>0,E14<1000000),I14*100/E14,"") ->  | L14: =IF(AND(D14="x",E14>0,J14>0),J14*K14,"") ->  | M14: =IF(AND(ISNUMBER(J14),K14>0,ISNUMBER(L14)),V14*L14/365,"") ->  | O14: =IF(ISNUMBER(W14),ROUND(W14/365,1),"") ->  | U14: =IF(ISNUMBER(F14),"RV",0) -> 0 | V14: =IF(ISNUMBER(E14),F14/E14,"") ->  | W14: =IF(AND(ISNUMBER(L14),L14>0,U14="RVm"),N14*100*365/L14,"") ->  | Y14: 0.331 | Z14: =IF(D14="x", Y14*E14,0) -> 0 | AA14: =IF(AND(D14="x",ISNUMBER(L14)),Y14*L14/365,0) -> 0
B15: =IF(ISNUMBER(F15),Suisse_Bilanz_1.17!B24,"") ->  | E15: =IF(AND(ISNUMBER(F15),LEFT(B15,7)<>"GF-Verz"),Suisse_Bilanz_1.17!F24,"") ->  | F15: =IF(AND(ISNUMBER(Suisse_Bilanz_1.17!K24),Suisse_Bilanz_1.17!K24<>0),Suisse_Bilanz_1.17!K24,"") ->  | H15: =IF(AND(D15="x",E15>0),I15*100/E15,"") ->  | Q15: 2. "Gebietszuteilung" auswählen | U15: =VLOOKUP($B15,Daten!$F$248:$Q$345,12,FALSE) -> 0 | V15: =VLOOKUP(Suisse_Bilanz_1.17!A24,Daten!$E$248:$L$345,4,FALSE) -> 0 | Y15: =VLOOKUP(Suisse_Bilanz_1.17!B24,Daten!$F$248:$S$345,11,FALSE) -> 0 | Z15: 0 | AA15: 0
B16: =IF(ISNUMBER(F16),Suisse_Bilanz_1.17!B25,"") ->  | E16: =IF(AND(ISNUMBER(F16),LEFT(B16,7)<>"GF-Verz"),Suisse_Bilanz_1.17!F25,"") ->  | F16: =IF(AND(ISNUMBER(Suisse_Bilanz_1.17!K25),Suisse_Bilanz_1.17!K25<>0),Suisse_Bilanz_1.17!K25,"") ->  | Q16: 3. Teil A: Grund- und Kraftfutterverzehr | U16: =VLOOKUP($B16,Daten!$F$248:$Q$345,12,FALSE) -> 0 | V16: =VLOOKUP(Suisse_Bilanz_1.17!A25,Daten!$E$248:$L$345,4,FALSE) -> 0 | Y16: =VLOOKUP(Suisse_Bilanz_1.17!B25,Daten!$F$248:$S$345,11,FALSE) -> 0 | Z16: 0 | AA16: 0
B17: =IF(ISNUMBER(F17),Suisse_Bilanz_1.17!B26,"") ->  | E17: =IF(AND(ISNUMBER(F17),LEFT(B17,7)<>"GF-Verz"),Suisse_Bilanz_1.17!F26,"") ->  | F17: =IF(AND(ISNUMBER(Suisse_Bilanz_1.17!K26),Suisse_Bilanz_1.17!K26<>0),Suisse_Bilanz_1.17!K26,"") ->  | Q17: - Alle Tierarten mit Grundfutterverzehr erscheinen aufgelistet ab Blatt Suisse_Bilanz_... | U17: =VLOOKUP($B17,Daten!$F$248:$Q$345,12,FALSE) -> 0 | V17: =VLOOKUP(Suisse_Bilanz_1.17!A26,Daten!$E$248:$L$345,4,FALSE) -> 0 | Y17: =VLOOKUP(Suisse_Bilanz_1.17!B26,Daten!$F$248:$S$345,11,FALSE) -> 0 | Z17: 0 | AA17: 0
B18: =IF(ISNUMBER(F18),Suisse_Bilanz_1.17!B27,"") ->  | E18: =IF(AND(ISNUMBER(F18),LEFT(B18,7)<>"GF-Verz"),Suisse_Bilanz_1.17!F27,"") ->  | F18: =IF(AND(ISNUMBER(Suisse_Bilanz_1.17!K27),Suisse_Bilanz_1.17!K27<>0),Suisse_Bilanz_1.17!K27,"") ->  | Q18: - pro Tierkategorie Kraftfutter pro Jahr erfassen in dt Frischsubstanz (= Total Kraftfutterverzehr | U18: =VLOOKUP($B18,Daten!$F$248:$Q$345,12,FALSE) -> 0 | V18: =VLOOKUP(Suisse_Bilanz_1.17!A27,Daten!$E$248:$L$345,4,FALSE) -> 0 | Y18: =VLOOKUP(Suisse_Bilanz_1.17!B27,Daten!$F$248:$S$345,11,FALSE) -> 0 | Z18: 0 | AA18: 0
B19: =IF(ISNUMBER(F19),Suisse_Bilanz_1.17!B28,"") ->  | E19: =IF(AND(ISNUMBER(F19),LEFT(B19,7)<>"GF-Verz"),Suisse_Bilanz_1.17!F28,"") ->  | F19: =IF(AND(ISNUMBER(Suisse_Bilanz_1.17!K28),Suisse_Bilanz_1.17!K28<>0),Suisse_Bilanz_1.17!K28,"") ->  | Q19: auf dem Ganzjahresbetrieb) | U19: =VLOOKUP($B19,Daten!$F$248:$Q$345,12,FALSE) -> 0 | V19: =VLOOKUP(Suisse_Bilanz_1.17!A28,Daten!$E$248:$L$345,4,FALSE) -> 0 | Y19: =VLOOKUP(Suisse_Bilanz_1.17!B28,Daten!$F$248:$S$345,11,FALSE) -> 0 | Z19: 0 | AA19: 0
B20: Total alle Tiere | E20: A1: | F20: =SUM(F11:F19) -> 0 | Q20: - Sömmerung: Anzahl zur Sömmerung gegebene Tiere und die Anz. Tage erfassen
B21: davon: | E21: Raufutterverzehrer (x) A2: | F21: =SUMIF(U11:U19,U21,F11:F19) -> 0 | H21: A4: | I21: =SUMIF(U11:U19,U21,I11:I19) -> 0 | L21: A6: | M21: =SUMIF(U11:U19,U21,M11:M19) -> 0 | N21: =SUMIF(U11:U19,"RVm",N11:N19) -> 0 | Q21: - KF-Verzehr während Sömmerung nur möglich für gemolkene Tiere folgender Kategorien: | U21: RV* | Z21: =SUM(Z11:Z19) -> 0 | AA21: =SUM(AA11:AA19) -> 0 | AB21: =Z21+AA21 -> 0
C22: übrige Tiere | E22: A1-A2: | F22: =F20-F21 -> 0 | G22: =SUMIF(U14:U19,"GF",G14:G19) -> 0 | H22: =IF(G47>(F21+M21+G31+G32)," W&W-Futter-Anteil zu gering bzw. bei RV(x) ist W&W-Futter grösser als ihr GF-Verzehr","A3") -> A3 | Q22: Milchkühe, Milchschafe und Ziegen. Effektive Menge eingeben. | T22: GF | U22: =COUNTIF(U14:U19,T22) -> 0
E23: Gesamtverzehr Raufutterverzehrer A5: | F23: =F21+I21*0.88 -> 0 | G23: dt TS (A2+A4*88%) | Q23: - Für Grund- und Kraftfutter während der Sömmerung gelten ebenfalls
Q24: die Definitionen gemäss Anhang 5 DZV.
B25: Teil B: Grundfutterproduktion | F25: Total Grundfutter | H25: davon | I25: Wiesen + Weiden | K25: übrige Grundfutter | M25: Nebenprodukte | Q25: 4. Teil B: Grundfutterproduktion: Daten gemäss Erfassung im Blatt "Suisse-Bilanz_..."
B26: Mengen gemäss Suisse-Bilanz | G26: dt TS | J26: dt TS | L26: dt TS | M26: aus Verarbeitung | Q26: 5. Teil C: Zu- und Wegfuhr Grundfutter: Daten gemäss Erfassung im Blatt "Suisse-Bilanz_..."
F27: B1: | G27: =Suisse_Bilanz_1.17!H72 -> 0 | I27: B2: | J27: =SUM(Suisse_Bilanz_1.17!H60:H63,Suisse_Bilanz_1.17!H66:H71) -> 0 | K27: B3: | L27: =SUM(Suisse_Bilanz_1.17!H55:H59,Suisse_Bilanz_1.17!H64:H65) -> 0 | M27: Lebensmittel | Q27: 6. Teil D: Futtermengen (dt TS) und -anteile (%) am Futterbedarf
N28: dt TS | Q28: - Abhängig von der Gebietszuteilung wird angezeigt, ob die Mindestanteile an der Ration
B29: Teil C: Zu- und Wegfuhr Grundfutter | F29: Wegfuhr | G29: =J29+L29 -> 0 | I29: C1: | J29: =Suisse_Bilanz_1.17!BO53 -> 0 | K29: C2: | L29: =Suisse_Bilanz_1.17!BO56 -> 0 | Q29: erfüllt sind oder nicht.
B30: Mengen gemäss Suisse-Bilanz | F30: Zufuhr | G30: =J30+L30+N30 -> 0 | I30: C3: | J30: =Suisse_Bilanz_1.17!BP53 -> 0 | K30: C4: | L30: =Suisse_Bilanz_1.17!BP56 -> 0 | M30: C6: | N30: =Suisse_Bilanz_1.17!BP59 -> 0
F31: Lagerungs- und Krippenverluste C7: | G31: =Suisse_Bilanz_1.17!O46 -> 0 | K31: ausserhalb Futterfläche C5: | L31: =SUM(Suisse_Bilanz_1.17!O43:O44) -> 0 | Q31: Link zum BLW (Informationen, Anforderungen)
F32: Fehlerbereich GF-Bilanz C8: | G32: =Suisse_Bilanz_1.17!O47 -> 0 | Q32: https://www.blw.admin.ch/blw/de/home/instrumente/direktzahlungen/produktionssystembeitraege/beitrag-fuer-graslandbasierte-milch--und-fleischproduktion.html
B34: Teil D: Futtermengen (dt TS) und -anteile (%) am Futterbedarf der Raufutterverzehrer | Q34: Auszug aus der Direktzahlungsverordnung (DZV) Anhang 5, Ziffer 1
E35: Total | G35: Wiesen- und | I35: übriges Grundfutter | M35: Kraftfutter | Q35: Spezifische Anforderungen des Programms
E36: Futter-Bedarf | G36: Weidefutter | I36: Rau- und Saftfutter | K36: Nebenprodukte aus VL | M36: (Nicht-Grundfutter) | Q36: zur graslandbasierten Milch- und Fleischproduktion (GMF)
E37: A5+A6+A7+C7+C8 | G37: B2+A6+C3-C1-A3 | I37: B3+C4+C5-C2-A1+A2+A3 | K37: C6 (1) | M37: A4+A7 in TS (2) | Q37: 1 Definition der Futtermittel und der Ration | W37: Anforderungen
E38: dt | F38: % | G38: dt | H38: % | I38: dt | J38: % | K38: dt | L38: % | M38: dt | N38: % | V38: 1) | W38: mind. 90% Grundfutter an der Jahresration
B39: Gesamtverzehr der Raufutterverzehrer | E39: =F23 -> 0 | Q39: 1.1 Als Grundfutter für GMF zählen: | V39: 2) | W39: Talgebiet: mind. 75% Wiesen/Weidefutter an der Jahresration
B40: [+] Verluste und Fehlerbereich | E40: =SUM(G31:G32) -> 0 | Q40: 1.1.1 Grundfutter nach Artikel 28 LBV | W40: Berggebiet: mind. 85% Wiesen/Weidefutter an der Jahresration
B41: [+] Verzehr während Sömmerung | E41: =M21+N21*0.88 -> 0 | Q41: a. Futter von Grünflächen und Streueflächen: frisch, siliert oder getrocknet
B42: Produktion | G42: =J27 -> 0 | I42: =L27 -> 0 | Q42: sowie Stroh | W42: Futterart | X42: Gebiet
B43: [+] Zufuhr | G43: =J30 -> 0 | I43: =L30+L31 -> 0 | K43: =N30 -> 0 | M43: =I21*0.88 -> 0 | Q43: b. als Futtermittel angebaute Ackerkulturen, bei denen die ganze Pflanze | X43: Talgebiet | Y43: Berggebiet
B44: [+] Futter während Sömmerung | G44: =M21 -> 0 | M44: =N21*0.88 -> 0 | Q44: geerntet wird: frisch siliert oder getrocknet, ohne Maiskolbenschrot | V44: 2) | W44: Wiesen-/Weidefutter | X44: 0.75 | Y44: 0.85
B45: [-] Wegfuhr | G45: =J29 -> 0 | I45: =L29 -> 0 | W45: Übriges GF | X45: 0.15 | Y45: 0.05
B46: [-] Grundfutter übrige Tiere | G46: =-G22 -> 0 | I46: =-(F22-G22) -> 0 | O46: Nebenp.(1)+KF(2) | Q46: c. Chicorée-Wurzeln | W46: KF | X46: 0.1 | Y46: 0.1
B47: Futtermengen und %Anteile | E47: =SUM(E39:E46) -> 0 | F47: 1 | G47: =IF(SUM(G39:G46)<0,"Fehler",SUM(G39:G46)) -> 0 | H47: =G47/E47 ->  | I47: =IF(SUM(I39:I46)<0,"Fehler",SUM(I39:I46)) -> 0 | J47: =I47/E47 ->  | K47: =IF(SUM(K39:K46)<0,"Fehler",SUM(K39:K46)) -> 0 | L47: =K47/E47 ->  | M47: =IF(SUM(M39:M46)<0,"Fehler",SUM(M39:M46)) -> 0 | N47: =M47/E47 ->  | O47: =N47+L47 ->  | Q47: d. Rübenblätter und frische Rübennass- und Rübenpressschnitzel | V47: 1) | W47: GF total | X47: 0.9 | Y47: 0.9
B49: ="Erforderliche Anteile an der Ration: "&K5 -> Erforderliche Anteile an der Ration: | G49: ≥ | H49: =IF(K5="Talgebiet",X44,IF(K5="Berggebiet",Y44,"Gebietszuteilung fehlt")) -> Gebietszuteilung fehlt | K49: Nebenp.(1)+KF(2) ≤ | L49: 0.15 | M49: ≤ | N49: 0.1 | Q49: e. frisches Obst
B51: =IF(OR(H51="ja",H51="nein"),"Erfüllung der erforderlichen Anteile an der Ration","") ->  | H51: =IF(LEFT(H49,5)="Gebie", "Gebietszuteilung vornehmen (weiter oben)",IF(I47="Fehler","Summe 'übriges GF' ist negativ ",IF(AND(ISNUMBER(I47),H47<1.0001, H47>=H49),"ja","nein"))) -> Gebietszuteilung vornehmen (weiter oben) | L51: =IF((L47+N47)<=L49,"ja","nein, Nebenpr.+Kraftfu. > 15%") ->  | N51: =IF(N47<=N49,"ja","nein") ->  | Q51: f. unverarbeitete Kartoffeln, einschliesslich Sortierabgang
H52: =VLOOKUP(1,X55:Y57,2,FALSE) -> 
B53: Ort, Datum: | I53: Unterschrift: | Q53: g. Abgänge und nicht getrocknete oder konzentrierte Nebenprodukte aus der | U53: für Kommentare | X53: Bedingung
Q54: Kartoffel-, Obst- und Gemüseverarbeitung | U54: Bedingung | X54: 1= trifft zu | Y54: Text, der angezeigt wird:
O55: oder übers Menü: | T55: 1 | U55: wenn in Suisse-Bilanz GF-Rechnung nicht stimmt | X55: =IF(IFERROR(SEARCH("Grundfutter",Suisse_Bilanz_1.17!H160),0)>0,1,0) -> 0 | Y55: =IF(X55=1," Vor dem Drucken zuerst die GF-Rechnung in der Suisse-Bilanz in Ordnung bringen!","") -> 
O56: Datei > Drucken > Seiten … | Q56: 1.1.2 für die Rindviehmast: Mischungen aus Spindel und Körnern des Maiskolbens / | T56: 2 | U56: wenn W&W > als GF Verzehr | X56: =IF(OR(I47<0,I47="Fehler"),1,0) -> 0 | Y56: =IF(X56=1," ev. ist der W&W Anteil bei den übrigen Tieren zu tief eingetragen !","") -> 
Q57: Maiskolbenschrot / Maiskolbensilage (Corn-Cob-Mix) | T57: 3 | U57: diese Zeile dient dazu, dass kein Fehlerwert angezeigt wird | X57: 1 | Y57: =IF(X57=1,"","") -> 
B59: Informationsteil (Angaben ohne Gewähr)
Q60: 1.1.3 Nebenprodukte aus der Verarbeitung von Lebensmitteln
B61: Die Berechnung der Höhe der Beiträge ist nur eine Schätzung, weil der massgebende Tierbestand | Q61: a. Biertreber frisch, siliert oder getrocknet
B62: leicht abweichen kann vom hier verwendeten. | Q62: b. Zuckerrübenschnitzel getrocknet
B63: =IF((COUNTIF(B13:B19,"Maul*" )+COUNTIF(B13:B19,"Ponies*" )) > 0, "Insbesondere bei Kleinpferden und Maultieren/Mauleseln kann die GVE-Berechnung hier zu wenig genau erfolgen.","") ->  | Q63: c. Nebenprodukte der Trocken- und Schälmüllerei:
B64: Flächen- und Zonen-Angaben für die Berechnung des Mindesttierbesatzes: | Q64: Weizenkleie,
Q65: Haferabfallmehl,
E66: Dauergrünfläche | G66: Dauergrünfläche als BFF | K66: erford. Mindesttierbesatz RGVE | Q66: Dinkel- und Haferspelzen,
E67: + Kunstwiesen | G67: extensive | H67: extensive | I67: wenig int. | J67: weitere | L67: Anrech.BFF | Q67: Dinkelspreu und Kornspreuer,
E68: (ohne BFF) | G68: Wiese | H68: Weide | I68: Wiese | L68: 0.3 | Q68: sowie Gemische davon
E69: ha | G69: ha | H69: ha | I69: ha | J69: ha | K69: /ha | L69: /ha | M69: Betrieb
C70: Talzone | K70: 1 | L70: =K70*$L$68 -> 0.3 | M70: =E70*K70+SUM(G70:J70)*L70 -> 0 | Q70: 1.2 Als Wiesen- und Weidefutter gilt das auf Weideflächen geweidete Futter und das
C71: Hügelzone | K71: 0.8 | L71: 0.24 | M71: 0 | Q71: Erntegut von Dauerwiesen und Kunstwiesen sowie das Erntegut von Zwischen-
C72: Bergzone 1 | K72: 0.7 | L72: 0.21 | M72: 0 | Q72: kulturen zu Fütterungszwecken.
C73: Bergzone 2 | K73: 0.6 | L73: 0.18 | M73: 0
C74: Bergzone 3 | K74: 0.5 | L74: 0.15 | M74: 0 | Q74: 1.3 Weitere nicht aufgezählte Futtermittel und Futterkomponenten gelten als Ergänzungsfutter.
C75: Bergzone 4 | K75: 0.4 | L75: 0.12 | M75: 0 | Q75: zu Ziff. 1.3: Die verfütterte Milch (auch Schotte oder Magermilch oder Milchpulver) bei der Kälberaufzucht
C76: Flächen im Ausland | K76: 0 | L76: 0 | M76: 0 | Q76: oder -mast wird nicht in die Berechnung einbezogen (Weisung DZV 2023, 14. Nov. 2022).
C77: Summe | E77: =SUM(E70:E76) -> 0 | G77: =SUM(G70:G76) -> 0 | H77: =SUM(H70:H76) -> 0 | I77: =SUM(I70:I76) -> 0 | J77: =SUM(J70:J76) -> 0
C78: Total Grünfläche | F78: =SUM(E77,G77:J77) -> 0 | M78: =IF(AND(F80="",K80=""),SUM(M70:M76),"") -> 0 | Q78: 1.4 Liegt bei einem Futtermittel der Anteil an Grundfutter über 20 Prozent, so muss
C79: Angabe in Suisse-Bilanz | F79: =SUM(Suisse_Bilanz_1.17!F66:F71,Suisse_Bilanz_1.17!F62:F63) -> 0 | G79: =Suisse_Bilanz_1.17!F66 -> 0 | H79: =Suisse_Bilanz_1.17!F68 -> 0 | I79: =Suisse_Bilanz_1.17!F69 -> 0 | J79: =IF(J77>Suisse_Bilanz_1.17!F67," weitere BFF > 'übrige Wiesen mit Düngeverbot' in SB","") ->  | Q79: der Anteil Grundfutter in der Grundfutterbilanz eingerechnet werden.
C80: =IF(AND(ABS(SUM(E80:I80))<0.005, J80="" ),"","Abweichung") ->  | E80: =IF(AND(E77<SUM(Suisse_Bilanz_1.17!F70:F71,Suisse_Bilanz_1.17!F62:F63,-0.0049),F80=""),"ev . ?","") ->  | F80: =IF(ABS(F78-F79)>0.0049,F78-F79,"") ->  | G80: =IF(ABS(G77-G79)<0.005,"",G77-G79) ->  | H80: =IF(ABS(H77-H79)<0.005,"",H77-H79) ->  | I80: =IF(ABS(I77-I79)<0.005,"",I77-I79) ->  | J80: =IF(J77>Suisse_Bilanz_1.17!F67,"ev. ?","") ->  | K80: =IF(AND(G80="",H80="",I80=""),""," ''BFF-Fläche'' weicht von Angabe in Suisse-Bilanz ab -> korrigieren") -> 
F81: =IF(OR(F80="",OR(G80<>"",H80<>"",I80<>"")),"","''Total Grünfläche'' weicht vom Total Grünfläche der Suisse-Bilanz ab -> korrigieren") ->  | Q81: 1.5 Die Jahresration pro Tier entspricht dem gesamten TS-Verzehr innerhalb eines Jahres.
H83: RGVE | J83: RGVE/ha Grünfläche | Q83: 1.6 Die Produkte nach Ziffer 1.1.3 sind insgesamt bis zu maximal 5 Prozent der Gesamtration
B84: Erforderlicher Mindesttierbesatz für 100 % der GMF-Beiträge | H84: =IF(M78>0,M78,"") ->  | J84: =IF(H84<>"",M78/F79,"") ->  | Q84: als Grudfutter anrechenbar.
B85: Vorhandene Raufutterverzehrer (inkl. Sömmerung) | H85: =AB21 -> 0 | J85: =H85/F79 ->  | Q85: zu Ziff. 1.6: Der Anteil der Nebenprodukte nach Ziffer 1.1.3 und der Ergänzungsfutter nach Ziffer 1.3 darf insgesamt
I86: Erfüllung des Mindesttierbesatzes (max. möglicher Anteil der GMF-Beiträge) | J86: =IF(H84<>"",MIN(J85/J84,1),"") ->  | Q86: nicht mehr als 15 Prozent der Gesamtration überschreiten, wobei die Ergänzungsfutter nach Ziffer 1.3
Q87: höchstens 10 Prozent der Gesamtration betragen dürfen.
B88: Anteile an der Jahresration | E88: Mindest- | F88: effektive | G88: Erfüllung
E89: Anteile | F89: Anteile | Q89: 3.3 Die TS-Erträge für Wiesen und Weiden gemäss Tab. 3 der Wegleitung zur «Suisse-Bilanz»
B90: - Grundfutter | E90: 0.9 | F90: =H47+J47 ->  | G90: =N51 ->  | Q90: gelten als Maximalwerte für die Futterbilanz. Werden höhere Erträge geltend gemacht, so
B91: - Wiesen- und Weidefutter | E91: =H49 -> Gebietszuteilung fehlt | F91: =H47 ->  | G91: =H51 -> Gebietszuteilung vornehmen (weiter oben) | Q91: sind diese mit einer Ertragsschätzung nachzuweisen. Der Kanton kann nicht plausible
Q92: Ertragsschätzungen zurückweisen. Der Gesuchsteller oder die Gesuchstellerin muss die Plausibilität
G93: -> | H93: =IF(AND(G90="ja",G91="ja",J86>0),ROUND(J86*100,1) &"% der GMF-Beiträge","keine GMF-Beiträge") ->  | Q93: seiner Ertragsschätzungen auf Verlangen des Kantons zu seinen Lasten belegen.
G94: -> | H94: =IF(AND(G90="ja",G91="ja",J86>0),J86*200,"") ->  | I94: CHF / ha Grünfläche (bei 100% = 200 CHF)
G95: rund | H95: =IF(ISNUMBER(H94),ROUNDDOWN(F79*H94,-1),"") ->  | I95: ="CHF total (bei "&ROUND(F79,2)&" ha beitragsberechtigter Grünfläche)" -> CHF total (bei 0 ha beitragsberechtigter Grünfläche) | Q95: 3.4 Von der Berechnung der Futterbilanz befreit sind Betriebe, die ausschliesslich
Q96: betriebseigenes Wiesen- und Weidefutter nach Ziffer 1.2 verfüttern.
Q98: 4.1 Für die abgeschlossenen Futterbilanzen gilt eine Aufbewahrungspflicht von sechs Jahren.
Q99: Die Kantone bestimmen, in welcher Form die Futterbilanz zu Plausibilisierungszwecken
Q100: eingereicht werden muss.
Q102: -> massgebend ist die Direktzahlungsverordnung (DZV)
Q103: https://www.blw.admin.ch/blw/de/home/instrumente/direktzahlungen/produktionssystembeitraege/beitrag-fuer-graslandbasierte-milch--und-fleischproduktion.html

Sheet Lineare Korrektur
C1: ="Suisse-Bilanz "&Suisse_Bilanz_1.17!K8 -> Suisse-Bilanz 2023 | I1: =Suisse_Bilanz_1.17!C8&IF(Suisse_Bilanz_1.17!I8<>0," Nr. "&Suisse_Bilanz_1.17!I8,"") -> 
C2: Lineare Korrektur nach Futtergehalten (LK) | I2: =Suisse_Bilanz_1.17!C9 -> 0 | P2: =Suisse_Bilanz_1.17!O8 -> 2023-02-14 | AE2: Bundesamt für Landwirtschaft
B3: Berechnung nach Modul 6 (Auflage 1.3, April 2010) | C3: Berechnung nach Zusatzmodul 6 (Auflage 1.12, Weisungen zur Berücksichtigung von nährstoffreduziertem Futter in der Suisse-Bilanz)
N5: Änderung Anfall | R5: Tiefstwerte
F6: Nährstoffanfall | K6: Futtergehalte | N6: - pro g Gehalt | P6: Vgl. Futter | AE6: agriidea
C7: Tiere: Grundfutterbedarf und Nährstoffanfall | D7: Einheit | E7: GF-Verz. | F7: Nges | G7: P2O5 | H7: K2O | I7: Mg | K7: MJ | L7: RP | M7: P | N7: - im Vgl. zu Standard | P7: RP | Q7: P | R7: kg / Jahr / Einheit | T7: im Vgl. zur Norm
B8: Abkürz. | C8: Tierkategorie | E8: dt TS/Jahr | F8: kg pro Jahr | K8: MJ/kg | L8: g/kg | M8: g/kg | N8: N | O8: P2O5 | P8: g/kg | Q8: g/kg | R8: Nges | S8: P2O5 | T8: Nges | U8: P2O5
A10: Standard | B10: =IF(ISBLANK(C10),"",VLOOKUP(C10,Daten!$B$291:$E$306,4,FALSE)) ->  | D10: =IF(ISBLANK(C10),"",VLOOKUP(B10,Daten!$E$248:$L$345,3,FALSE)) ->  | E10: =IF(ISBLANK(C10),"",VLOOKUP(B10,Daten!$E$248:$L$345,4,FALSE)) ->  | F10: =IF(ISBLANK(C10),"",VLOOKUP(B10,Daten!$E$248:$L$345,5,FALSE)) ->  | G10: =IF(ISBLANK(C10),"",VLOOKUP(B10,Daten!$E$248:$L$345,6,FALSE)) ->  | H10: =IF(ISBLANK(C10),"",VLOOKUP(B10,Daten!$E$248:$L$345,7,FALSE)) ->  | I10: =IF(ISBLANK(C10),"",VLOOKUP(B10,Daten!$E$248:$L$345,8,FALSE)) ->  | K10: =IF(ISBLANK(C10),"",VLOOKUP(B10,Daten!$E$248:$X$345,14,FALSE)) ->  | L10: =IF(ISBLANK(C10),"",VLOOKUP(B10,Daten!$E$248:$X$345,15,FALSE)) ->  | M10: =IF(ISBLANK(C10),"",VLOOKUP(B10,Daten!$E$248:$X$345,16,FALSE)) ->  | N10: =IF(ISBLANK(C10),"",VLOOKUP(B10,Daten!$E$248:$X$345,17,FALSE)) ->  | O10: =IF(ISBLANK(C10),"",VLOOKUP(B10,Daten!$E$248:$X$345,18,FALSE)) ->  | R10: =IF(ISBLANK(C10),"",VLOOKUP(B10,Daten!$E$248:$X$345,19,FALSE)) ->  | S10: =IF(ISBLANK(C10),"",VLOOKUP(B10,Daten!$E$248:$X$345,20,FALSE)) ->  | T10: =(R10/F10)-1 ->  | U10: =(S10/G10)-1 -> 
A11: korrigiert (1) | B11: =IF(ISBLANK(C10),"","lk1") ->  | C11: =IF(B11="","",IF(AND(ISNUMBER(K11*L11*M11),K11<>""),ROUND(K11,2)&" MJ "&ROUND(L11,2)&" RP "&ROUND(M11,2)&" P: "&VLOOKUP(B10,Daten!$E$248:$L$345,2,FALSE),IF(B10="zsp","mittlere Futtergehalte unten berechnen + rechts eingeben", "mittlere Futtergehalte weiter rechts eingeben!"))) ->  | D11: =D10 ->  | E11: =E10 ->  | F11: =IF((L11+M11)=0,"",IF(K11*L11>0,F10*(1+N11),F10)) ->  | G11: =IF((L11+M11)=0,"",IF(K11*M11>0,G10*(1+O11),G10)) ->  | H11: =IF(ISNUMBER(F11),H10,"") ->  | I11: =IF(ISNUMBER(F11),I10,"") ->  | N11: =IF(ISNUMBER(P11),IF((P11-L10)*N10<T10,T10,(P11-L10)*N10),"") ->  | O11: =IF(ISNUMBER(Q11),IF((Q11-M10)*O10<U10,U10,(Q11-M10)*O10),"") ->  | P11: =IF(AND(K11>0,L11>0),L11/K11*K10,"") ->  | Q11: =IF(AND(K11>0,M11>0),M11/K11*K10,"") -> 
A13: Standard | B13: =IF(ISBLANK(C13),"",VLOOKUP(C13,Daten!$B$291:$E$306,4,FALSE)) ->  | D13: =IF(ISBLANK(C13),"",VLOOKUP(B13,Daten!$E$248:$L$345,3,FALSE)) ->  | E13: =IF(ISBLANK(C13),"",VLOOKUP(B13,Daten!$E$248:$L$345,4,FALSE)) ->  | F13: =IF(ISBLANK(C13),"",VLOOKUP(B13,Daten!$E$248:$L$345,5,FALSE)) ->  | G13: =IF(ISBLANK(C13),"",VLOOKUP(B13,Daten!$E$248:$L$345,6,FALSE)) ->  | H13: =IF(ISBLANK(C13),"",VLOOKUP(B13,Daten!$E$248:$L$345,7,FALSE)) ->  | I13: =IF(ISBLANK(C13),"",VLOOKUP(B13,Daten!$E$248:$L$345,8,FALSE)) ->  | K13: =IF(ISBLANK(C13),"",VLOOKUP(B13,Daten!$E$248:$X$345,14,FALSE)) ->  | L13: =IF(ISBLANK(C13),"",VLOOKUP(B13,Daten!$E$248:$X$345,15,FALSE)) ->  | M13: =IF(ISBLANK(C13),"",VLOOKUP(B13,Daten!$E$248:$X$345,16,FALSE)) ->  | N13: =IF(ISBLANK(C13),"",VLOOKUP(B13,Daten!$E$248:$X$345,17,FALSE)) ->  | O13: =IF(ISBLANK(C13),"",VLOOKUP(B13,Daten!$E$248:$X$345,18,FALSE)) ->  | R13: =IF(ISBLANK(C13),"",VLOOKUP(B13,Daten!$E$248:$X$345,19,FALSE)) ->  | S13: =IF(ISBLANK(C13),"",VLOOKUP(B13,Daten!$E$248:$X$345,20,FALSE)) ->  | T13: =(R13/F13)-1 ->  | U13: =(S13/G13)-1 -> 
A14: korrigiert (2) | B14: =IF(ISBLANK(C13),"","lk2") ->  | C14: =IF(B14="","",IF(AND(ISNUMBER(K14*L14*M14),K14<>""),ROUND(K14,2)&" MJ "&ROUND(L14,2)&" RP "&ROUND(M14,2)&" P: "&VLOOKUP(B13,Daten!$E$248:$L$345,2,FALSE),IF(B13="zsp","mittlere Futtergehalte unten berechnen + rechts eingeben", "mittlere Futtergehalte weiter rechts eingeben!"))) ->  | D14: =D13 ->  | E14: =E13 ->  | F14: =IF((L14+M14)=0,"",IF(K14*L14>0,F13*(1+N14),F13)) ->  | G14: =IF((L14+M14)=0,"",IF(K14*M14>0,G13*(1+O14),G13)) ->  | H14: =IF(ISNUMBER(F14),H13,"") ->  | I14: =IF(ISNUMBER(F14),I13,"") ->  | N14: =IF(ISNUMBER(P14),IF((P14-L13)*N13<T13,T13,(P14-L13)*N13),"") ->  | O14: =IF(ISNUMBER(Q14),IF((Q14-M13)*O13<U13,U13,(Q14-M13)*O13),"") ->  | P14: =IF(AND(K14>0,L14>0),L14/K14*K13,"") ->  | Q14: =IF(AND(K14>0,M14>0),M14/K14*K13,"") -> 
A16: Standard | B16: =IF(ISBLANK(C16),"",VLOOKUP(C16,Daten!$B$291:$E$306,4,FALSE)) ->  | D16: =IF(ISBLANK(C16),"",VLOOKUP(B16,Daten!$E$248:$L$345,3,FALSE)) ->  | E16: =IF(ISBLANK(C16),"",VLOOKUP(B16,Daten!$E$248:$L$345,4,FALSE)) ->  | F16: =IF(ISBLANK(C16),"",VLOOKUP(B16,Daten!$E$248:$L$345,5,FALSE)) ->  | G16: =IF(ISBLANK(C16),"",VLOOKUP(B16,Daten!$E$248:$L$345,6,FALSE)) ->  | H16: =IF(ISBLANK(C16),"",VLOOKUP(B16,Daten!$E$248:$L$345,7,FALSE)) ->  | I16: =IF(ISBLANK(C16),"",VLOOKUP(B16,Daten!$E$248:$L$345,8,FALSE)) ->  | K16: =IF(ISBLANK(C16),"",VLOOKUP(B16,Daten!$E$248:$X$345,14,FALSE)) ->  | L16: =IF(ISBLANK(C16),"",VLOOKUP(B16,Daten!$E$248:$X$345,15,FALSE)) ->  | M16: =IF(ISBLANK(C16),"",VLOOKUP(B16,Daten!$E$248:$X$345,16,FALSE)) ->  | N16: =IF(ISBLANK(C16),"",VLOOKUP(B16,Daten!$E$248:$X$345,17,FALSE)) ->  | O16: =IF(ISBLANK(C16),"",VLOOKUP(B16,Daten!$E$248:$X$345,18,FALSE)) ->  | R16: =IF(ISBLANK(C16),"",VLOOKUP(B16,Daten!$E$248:$X$345,19,FALSE)) ->  | S16: =IF(ISBLANK(C16),"",VLOOKUP(B16,Daten!$E$248:$X$345,20,FALSE)) ->  | T16: =(R16/F16)-1 ->  | U16: =(S16/G16)-1 -> 
A17: korrigiert (3) | B17: =IF(ISBLANK(C16),"","lk3") ->  | C17: =IF(B17="","",IF(AND(ISNUMBER(K17*L17*M17),K17<>""),ROUND(K17,2)&" MJ "&ROUND(L17,2)&" RP "&ROUND(M17,2)&" P: "&VLOOKUP(B16,Daten!$E$248:$L$345,2,FALSE),IF(B16="zsp","mittlere Futtergehalte unten berechnen + rechts eingeben", "mittlere Futtergehalte weiter rechts eingeben !"))) ->  | D17: =D16 ->  | E17: =E16 ->  | F17: =IF((L17+M17)=0,"",IF(K17*L17>0,F16*(1+N17),F16)) ->  | G17: =IF((L17+M17)=0,"",IF(K17*M17>0,G16*(1+O17),G16)) ->  | H17: =IF(ISNUMBER(F17),H16,"") ->  | I17: =IF(ISNUMBER(F17),I16,"") ->  | N17: =IF(ISNUMBER(P17),IF((P17-L16)*N16<T16,T16,(P17-L16)*N16),"") ->  | O17: =IF(ISNUMBER(Q17),IF((Q17-M16)*O16<U16,U16,(Q17-M16)*O16),"") ->  | P17: =IF(AND(K17>0,L17>0),L17/K17*K16,"") ->  | Q17: =IF(AND(K17>0,M17>0),M17/K17*K16,"") -> 
A19: Standard | B19: =IF(ISBLANK(C19),"",VLOOKUP(C19,Daten!$B$291:$E$306,4,FALSE)) ->  | D19: =IF(ISBLANK(C19),"",VLOOKUP(B19,Daten!$E$248:$L$345,3,FALSE)) ->  | E19: =IF(ISBLANK(C19),"",VLOOKUP(B19,Daten!$E$248:$L$345,4,FALSE)) ->  | F19: =IF(ISBLANK(C19),"",VLOOKUP(B19,Daten!$E$248:$L$345,5,FALSE)) ->  | G19: =IF(ISBLANK(C19),"",VLOOKUP(B19,Daten!$E$248:$L$345,6,FALSE)) ->  | H19: =IF(ISBLANK(C19),"",VLOOKUP(B19,Daten!$E$248:$L$345,7,FALSE)) ->  | I19: =IF(ISBLANK(C19),"",VLOOKUP(B19,Daten!$E$248:$L$345,8,FALSE)) ->  | K19: =IF(ISBLANK(C19),"",VLOOKUP(B19,Daten!$E$248:$X$345,14,FALSE)) ->  | L19: =IF(ISBLANK(C19),"",VLOOKUP(B19,Daten!$E$248:$X$345,15,FALSE)) ->  | M19: =IF(ISBLANK(C19),"",VLOOKUP(B19,Daten!$E$248:$X$345,16,FALSE)) ->  | N19: =IF(ISBLANK(C19),"",VLOOKUP(B19,Daten!$E$248:$X$345,17,FALSE)) ->  | O19: =IF(ISBLANK(C19),"",VLOOKUP(B19,Daten!$E$248:$X$345,18,FALSE)) ->  | R19: =IF(ISBLANK(C19),"",VLOOKUP(B19,Daten!$E$248:$X$345,19,FALSE)) ->  | S19: =IF(ISBLANK(C19),"",VLOOKUP(B19,Daten!$E$248:$X$345,20,FALSE)) ->  | T19: =(R19/F19)-1 ->  | U19: =(S19/G19)-1 -> 
A20: korrigiert (4) | B20: =IF(ISBLANK(C19),"","lk4") ->  | C20: =IF(B20="","",IF(AND(ISNUMBER(K20*L20*M20),K20<>""),ROUND(K20,2)&" MJ "&ROUND(L20,2)&" RP "&ROUND(M20,2)&" P: "&VLOOKUP(B19,Daten!$E$248:$L$345,2,FALSE),IF(B19="zsp","mittlere Futtergehalte unten berechnen + rechts eingeben", "mittlere Futtergehalte weiter rechts eingeben!"))) ->  | D20: =D19 ->  | E20: =E19 ->  | F20: =IF((L20+M20)=0,"",IF(K20*L20>0,F19*(1+N20),F19)) ->  | G20: =IF((L20+M20)=0,"",IF(K20*M20>0,G19*(1+O20),G19)) ->  | H20: =IF(ISNUMBER(F20),H19,"") ->  | I20: =IF(ISNUMBER(F20),I19,"") ->  | N20: =IF(ISNUMBER(P20),IF((P20-L19)*N19<T19,T19,(P20-L19)*N19),"") ->  | O20: =IF(ISNUMBER(Q20),IF((Q20-M19)*O19<U19,U19,(Q20-M19)*O19),"") ->  | P20: =IF(AND(K20>0,L20>0),L20/K20*K19,"") ->  | Q20: =IF(AND(K20>0,M20>0),M20/K20*K19,"") -> 
A22: Standard | B22: =IF(ISBLANK(C22),"",VLOOKUP(C22,Daten!$B$291:$E$306,4,FALSE)) ->  | D22: =IF(ISBLANK(C22),"",VLOOKUP(B22,Daten!$E$248:$L$345,3,FALSE)) ->  | E22: =IF(ISBLANK(C22),"",VLOOKUP(B22,Daten!$E$248:$L$345,4,FALSE)) ->  | F22: =IF(ISBLANK(C22),"",VLOOKUP(B22,Daten!$E$248:$L$345,5,FALSE)) ->  | G22: =IF(ISBLANK(C22),"",VLOOKUP(B22,Daten!$E$248:$L$345,6,FALSE)) ->  | H22: =IF(ISBLANK(C22),"",VLOOKUP(B22,Daten!$E$248:$L$345,7,FALSE)) ->  | I22: =IF(ISBLANK(C22),"",VLOOKUP(B22,Daten!$E$248:$L$345,8,FALSE)) ->  | K22: =IF(ISBLANK(C22),"",VLOOKUP(B22,Daten!$E$248:$X$345,14,FALSE)) ->  | L22: =IF(ISBLANK(C22),"",VLOOKUP(B22,Daten!$E$248:$X$345,15,FALSE)) ->  | M22: =IF(ISBLANK(C22),"",VLOOKUP(B22,Daten!$E$248:$X$345,16,FALSE)) ->  | N22: =IF(ISBLANK(C22),"",VLOOKUP(B22,Daten!$E$248:$X$345,17,FALSE)) ->  | O22: =IF(ISBLANK(C22),"",VLOOKUP(B22,Daten!$E$248:$X$345,18,FALSE)) ->  | R22: =IF(ISBLANK(C22),"",VLOOKUP(B22,Daten!$E$248:$X$345,19,FALSE)) ->  | S22: =IF(ISBLANK(C22),"",VLOOKUP(B22,Daten!$E$248:$X$345,20,FALSE)) ->  | T22: =(R22/F22)-1 ->  | U22: =(S22/G22)-1 -> 
A23: korrigiert (5) | B23: =IF(ISBLANK(C22),"","lk5") ->  | C23: =IF(B23="","",IF(AND(ISNUMBER(K23*L23*M23),K23<>""),ROUND(K23,2)&" MJ "&ROUND(L23,2)&" RP "&ROUND(M23,2)&" P: "&VLOOKUP(B22,Daten!$E$248:$L$345,2,FALSE),IF(B22="zsp","mittlere Futtergehalte unten berechnen + rechts eingeben", "mittlere Futtergehalte weiter rechts eingeben!"))) ->  | D23: =D22 ->  | E23: =E22 ->  | F23: =IF((L23+M23)=0,"",IF(K23*L23>0,F22*(1+N23),F22)) ->  | G23: =IF((L23+M23)=0,"",IF(K23*M23>0,G22*(1+O23),G22)) ->  | H23: =IF(ISNUMBER(F23),H22,"") ->  | I23: =IF(ISNUMBER(F23),I22,"") ->  | N23: =IF(ISNUMBER(P23),IF((P23-L22)*N22<T22,T22,(P23-L22)*N22),"") ->  | O23: =IF(ISNUMBER(Q23),IF((Q23-M22)*O22<U22,U22,(Q23-M22)*O22),"") ->  | P23: =IF(AND(K23>0,L23>0),L23/K23*K22,"") ->  | Q23: =IF(AND(K23>0,M23>0),M23/K23*K22,"") -> 
A25: Standard | B25: =IF(ISBLANK(C25),"",VLOOKUP(C25,Daten!$B$291:$E$306,4,FALSE)) ->  | D25: =IF(ISBLANK(C25),"",VLOOKUP(B25,Daten!$E$248:$L$345,3,FALSE)) ->  | E25: =IF(ISBLANK(C25),"",VLOOKUP(B25,Daten!$E$248:$L$345,4,FALSE)) ->  | F25: =IF(ISBLANK(C25),"",VLOOKUP(B25,Daten!$E$248:$L$345,5,FALSE)) ->  | G25: =IF(ISBLANK(C25),"",VLOOKUP(B25,Daten!$E$248:$L$345,6,FALSE)) ->  | H25: =IF(ISBLANK(C25),"",VLOOKUP(B25,Daten!$E$248:$L$345,7,FALSE)) ->  | I25: =IF(ISBLANK(C25),"",VLOOKUP(B25,Daten!$E$248:$L$345,8,FALSE)) ->  | K25: =IF(ISBLANK(C25),"",VLOOKUP(B25,Daten!$E$248:$X$345,14,FALSE)) ->  | L25: =IF(ISBLANK(C25),"",VLOOKUP(B25,Daten!$E$248:$X$345,15,FALSE)) ->  | M25: =IF(ISBLANK(C25),"",VLOOKUP(B25,Daten!$E$248:$X$345,16,FALSE)) ->  | N25: =IF(ISBLANK(C25),"",VLOOKUP(B25,Daten!$E$248:$X$345,17,FALSE)) ->  | O25: =IF(ISBLANK(C25),"",VLOOKUP(B25,Daten!$E$248:$X$345,18,FALSE)) ->  | R25: =IF(ISBLANK(C25),"",VLOOKUP(B25,Daten!$E$248:$X$345,19,FALSE)) ->  | S25: =IF(ISBLANK(C25),"",VLOOKUP(B25,Daten!$E$248:$X$345,20,FALSE)) ->  | T25: =(R25/F25)-1 ->  | U25: =(S25/G25)-1 -> 
A26: korrigiert (6) | B26: =IF(ISBLANK(C25),"","lk6") ->  | C26: =IF(B26="","",IF(AND(ISNUMBER(K26*L26*M26),K26<>""),ROUND(K26,2)&" MJ "&ROUND(L26,2)&" RP "&ROUND(M26,2)&" P: "&VLOOKUP(B25,Daten!$E$248:$L$345,2,FALSE),IF(B25="zsp","mittlere Futtergehalte unten berechnen + rechts eingeben", "mittlere Futtergehalte weiter rechts eingeben!"))) ->  | D26: =D25 ->  | E26: =E25 ->  | F26: =IF((L26+M26)=0,"",IF(K26*L26>0,F25*(1+N26),F25)) ->  | G26: =IF((L26+M26)=0,"",IF(K26*M26>0,G25*(1+O26),G25)) ->  | H26: =IF(ISNUMBER(F26),H25,"") ->  | I26: =IF(ISNUMBER(F26),I25,"") ->  | N26: =IF(ISNUMBER(P26),IF((P26-L25)*N25<T25,T25,(P26-L25)*N25),"") ->  | O26: =IF(ISNUMBER(Q26),IF((Q26-M25)*O25<U25,U25,(Q26-M25)*O25),"") ->  | P26: =IF(AND(K26>0,L26>0),L26/K26*K25,"") ->  | Q26: =IF(AND(K26>0,M26>0),M26/K26*K25,"") -> 
A28: Standard | B28: =IF(ISBLANK(C28),"",VLOOKUP(C28,Daten!$B$291:$E$306,4,FALSE)) ->  | D28: =IF(ISBLANK(C28),"",VLOOKUP(B28,Daten!$E$248:$L$345,3,FALSE)) ->  | E28: =IF(ISBLANK(C28),"",VLOOKUP(B28,Daten!$E$248:$L$345,4,FALSE)) ->  | F28: =IF(ISBLANK(C28),"",VLOOKUP(B28,Daten!$E$248:$L$345,5,FALSE)) ->  | G28: =IF(ISBLANK(C28),"",VLOOKUP(B28,Daten!$E$248:$L$345,6,FALSE)) ->  | H28: =IF(ISBLANK(C28),"",VLOOKUP(B28,Daten!$E$248:$L$345,7,FALSE)) ->  | I28: =IF(ISBLANK(C28),"",VLOOKUP(B28,Daten!$E$248:$L$345,8,FALSE)) ->  | K28: =IF(ISBLANK(C28),"",VLOOKUP(B28,Daten!$E$248:$X$345,14,FALSE)) ->  | L28: =IF(ISBLANK(C28),"",VLOOKUP(B28,Daten!$E$248:$X$345,15,FALSE)) ->  | M28: =IF(ISBLANK(C28),"",VLOOKUP(B28,Daten!$E$248:$X$345,16,FALSE)) ->  | N28: =IF(ISBLANK(C28),"",VLOOKUP(B28,Daten!$E$248:$X$345,17,FALSE)) ->  | O28: =IF(ISBLANK(C28),"",VLOOKUP(B28,Daten!$E$248:$X$345,18,FALSE)) ->  | R28: =IF(ISBLANK(C28),"",VLOOKUP(B28,Daten!$E$248:$X$345,19,FALSE)) ->  | S28: =IF(ISBLANK(C28),"",VLOOKUP(B28,Daten!$E$248:$X$345,20,FALSE)) ->  | T28: =(R28/F28)-1 ->  | U28: =(S28/G28)-1 -> 
A29: korrigiert (7) | B29: =IF(ISBLANK(C28),"","lk7") ->  | C29: =IF(B29="","",IF(AND(ISNUMBER(K29*L29*M29),K29<>""),ROUND(K29,2)&" MJ "&ROUND(L29,2)&" RP "&ROUND(M29,2)&" P: "&VLOOKUP(B28,Daten!$E$248:$L$345,2,FALSE),IF(B28="zsp","mittlere Futtergehalte unten berechnen + rechts eingeben", "mittlere Futtergehalte weiter rechts eingeben!"))) ->  | D29: =D28 ->  | E29: =E28 ->  | F29: =IF((L29+M29)=0,"",IF(K29*L29>0,F28*(1+N29),F28)) ->  | G29: =IF((L29+M29)=0,"",IF(K29*M29>0,G28*(1+O29),G28)) ->  | H29: =IF(ISNUMBER(F29),H28,"") ->  | I29: =IF(ISNUMBER(F29),I28,"") ->  | N29: =IF(ISNUMBER(P29),IF((P29-L28)*N28<T28,T28,(P29-L28)*N28),"") ->  | O29: =IF(ISNUMBER(Q29),IF((Q29-M28)*O28<U28,U28,(Q29-M28)*O28),"") ->  | P29: =IF(AND(K29>0,L29>0),L29/K29*K28,"") ->  | Q29: =IF(AND(K29>0,M29>0),M29/K29*K28,"") -> 
A31: Standard | B31: =IF(ISBLANK(C31),"",VLOOKUP(C31,Daten!$B$291:$E$306,4,FALSE)) -> zsp | C31: Zuchtschweine inkl. Ferkel bis 26 kg | D31: =IF(ISBLANK(C31),"",VLOOKUP(B31,Daten!$E$248:$L$345,3,FALSE)) -> Platz | E31: =IF(ISBLANK(C31),"",VLOOKUP(B31,Daten!$E$248:$L$345,4,FALSE)) -> 0 | F31: =IF(ISBLANK(C31),"",VLOOKUP(B31,Daten!$E$248:$L$345,5,FALSE)) -> 35.2 | G31: =IF(ISBLANK(C31),"",VLOOKUP(B31,Daten!$E$248:$L$345,6,FALSE)) -> 21 | H31: =IF(ISBLANK(C31),"",VLOOKUP(B31,Daten!$E$248:$L$345,7,FALSE)) -> 23 | I31: =IF(ISBLANK(C31),"",VLOOKUP(B31,Daten!$E$248:$L$345,8,FALSE)) -> 4.2 | K31: =IF(ISBLANK(C31),"",VLOOKUP(B31,Daten!$E$248:$X$345,14,FALSE)) -> 13.2 | L31: =IF(ISBLANK(C31),"",VLOOKUP(B31,Daten!$E$248:$X$345,15,FALSE)) -> 173 | M31: =IF(ISBLANK(C31),"",VLOOKUP(B31,Daten!$E$248:$X$345,16,FALSE)) -> 5.8 | N31: =IF(ISBLANK(C31),"",VLOOKUP(B31,Daten!$E$248:$X$345,17,FALSE)) -> 0.0064 | O31: =IF(ISBLANK(C31),"",VLOOKUP(B31,Daten!$E$248:$X$345,18,FALSE)) -> 0.192 | R31: =IF(ISBLANK(C31),"",VLOOKUP(B31,Daten!$E$248:$X$345,19,FALSE)) -> 29.04 | S31: =IF(ISBLANK(C31),"",VLOOKUP(B31,Daten!$E$248:$X$345,20,FALSE)) -> 15.2 | T31: =(R31/F31)-1 -> -0.175 | U31: =(S31/G31)-1 -> -0.2761904762
A32: korrigiert (8) | B32: =IF(ISBLANK(C31),"","lk8") -> lk8 | C32: =IF(B32="","",IF(AND(ISNUMBER(K32*L32*M32),K32<>""),ROUND(K32,2)&" MJ "&ROUND(L32,2)&" RP "&ROUND(M32,2)&" P: "&VLOOKUP(B31,Daten!$E$248:$L$345,2,FALSE), IF(B31="zsp","mittlere Futtergehalte unten berechnen + rechts eingeben", "mittlere Futtergehalte weiter rechts eingeben!"))) -> mittlere Futtergehalte unten berechnen + rechts eingeben | D32: =D31 -> Platz | E32: =E31 -> 0 | F32: =IF((L32+M32)=0,"",IF(K32*L32>0,F31*(1+N32),F31)) ->  | G32: =IF((L32+M32)=0,"",IF(K32*M32>0,G31*(1+O32),G31)) ->  | H32: =IF(ISNUMBER(F32),H31,"") ->  | I32: =IF(ISNUMBER(F32),I31,"") ->  | K32: =K39 ->  | L32: =L39 ->  | M32: =M39 ->  | N32: =IF(ISNUMBER(P32),IF((P32-L31)*N31<T31,T31,(P32-L31)*N31),"") ->  | O32: =IF(ISNUMBER(Q32),IF((Q32-M31)*O31<U31,U31,(Q32-M31)*O31),"") ->  | P32: =IF(AND(K32>0,L32>0),L32/K32*K31,"") ->  | Q32: =IF(AND(K32>0,M32>0),M32/K32*K31,"") -> 
E34: Tierkategorie | G34: kg Futter | K34: Durchschnittsgehalte
C35: Berechnung der durchschnittlichen | G35: 88% TS | I35: Anteile | K35: MJ | L35: RP | M35: P
C36: Futtergehalte für die Tierkategorie | E36: Zuchtschweine | I36: =G36/G38 -> 
C37: "Zuchtschweine inkl. Ferkel bis 26 kg" | E37: Ferkel | I37: =G37/G38 -> 
E38: Mittelwerte | G38: =SUM(G36:H37) -> 0 | K38: =IF(AND(K36>0,K37>0),($G36*K36+$G37*K37)/$G38,"") ->  | L38: =IF(AND(L36>0,L37>0),($G36*L36+$G37*L37)/$G38,"") ->  | M38: =IF(AND(M36>0,M37>0),($G36*M36+$G37*M37)/$G38,"") -> 
D39: Normierte mittlere Gehalte | I39: (61% Zuchtschweinefutter + 39% Ferkelfutter) | K39: =IF(AND(ISNUMBER(K36),ISNUMBER(K37)),0.61*K36+0.39*K37,"") ->  | L39: =IF(AND(ISNUMBER(L36),ISNUMBER(L37)),0.61*L36+0.39*L37,"") ->  | M39: =IF(AND(ISNUMBER(M36),ISNUMBER(M37)),0.61*M36+0.39*M37,"") ->  | N39: -> oben bei der Kategorie eingeben
A41: Bei nachstehenden Tierkategorien ist die Lineare Korrektur nach Futtergehalten
A42: gemäss Zusatzmodul 6 möglich: | Q42: oder übers Menü: Datei > Drucken > Seiten …
B43: Abk. | C43: Schweine (Kategorien) | D43: Einheit
B45: msp | C45: Mastschweine (Pl.), 26-108 kg / Remonten | D45: Platz
B46: mss | C46: Mastschwein / Remonte (St.), 26-108 kg | D46: Stück
A47: =COUNTIF(C10:C32,C47) -> 1 | B47: zsp | C47: Zuchtschweine inkl. Ferkel bis 26 kg | D47: Platz | E47: berechnet mit 61% Anteil Zuchtschweinefutter + 39% Anteil Ferkelfutter
B48: zeb | C48: Zuchteber (Pl.) | D48: Platz | E48: mit Werten des Zuchtschweinefutters rechnen
B49: gsp | C49: Galtsauen (Pl.): 2.94 Umtr. pro Jahr | D49: Platz
B50: gss | C50: *Galtsau, pro Umtrieb, 124 d pro Umtrieb | D50: Stück
B51: szp | C51: Säugende Sauen (Pl.): 9.86 Umtr. pro Jahr | D51: Platz
B52: szs | C52: *Säugende Zuchtsau, pro Umtrieb, 37 d pro Umtrieb | D52: Stück
B53: fep | C53: abgesetzte Ferkel (Pl.), Zuw. 8-26 kg LG | D53: Platz
B54: fes | C54: *abgesetzte Ferkel (St.), Zuw. 8-26 kg LG | D54: Stück
C56: Geflügel (Kategorien) | D56: Einheit
B57: hen | C57: Legehennen: Kotband (100 Pl.) | D57: 100 Pl.
B58: henbk | C58: Legehennen: Bodenhaltung, Kotgrube (100 Pl.) | D58: 100 Pl.
B60: * diese Kategorien sind nur in spezifischen Betriebssituationen zutreffend (z.B. arbeitsteilige Tierhaltung); im Normalfall sind die anderen Kategorien zu verwenden.

Sheet Grafik
F1: Übersicht Suisse-Bilanz | S1: ="Grafik zur Suisse-Bilanz "&Suisse_Bilanz_1.17!K8 -> Grafik zur Suisse-Bilanz 2023 | V1: =Suisse_Bilanz_1.17!C8 ->  | W1: =Suisse_Bilanz_1.17!G7 -> 0 | X1: =Suisse_Bilanz_1.17!O8 -> 2023-02-14
J2: Stickstoff | N2: % Anteile
A3: Werte aus Berechnung "Suisse_Bilanz_..." | J3: Nverf, kg/Jahr | N3: Bedarf = 100%
B4: Nverf (kg) | C4: P2O5 (kg) | J4: Bedarf | K4: gedüngt | N4: =J4 -> Bedarf | O4: =K4 -> gedüngt | Q4: Beschriftung
A5: C1 | B5: =Suisse_Bilanz_1.17!M72 -> 0 | C5: =Suisse_Bilanz_1.17!N72 -> 0 | F5: Bedarf Grundfutterfläche | I5: C1 | J5: =B5 -> 0 | N5: =IF($J$13>0,J5/J$12,0) ->  | Q5: =IF(J5>0,$I5&" = "&ROUND(J5,0)& " kg","") -> 
A6: C2+C3 | B6: =Suisse_Bilanz_1.17!M101 -> 0 | C6: =Suisse_Bilanz_1.17!N101 -> 0 | F6: Bedarf Acker- und Spezialkulturen | I6: C2+C3 | J6: =B6 -> 0 | N6: =IF($J$13>0,J6/J$12,0) ->  | Q6: =IF(J6>0, $I6&" = "&ROUND(J6,0)& " kg","") -> 
A7: A2 | B7: =Suisse_Bilanz_1.17!J150 -> 0 | C7: =Suisse_Bilanz_1.17!K150 -> 0 | F7: aus Tierhaltung | I7: von A2 | K7: =B19+B24 -> 0 | L7: 1) | O7: =IF(AND(J12<>0,K7<>""),K7/$J$12,"") ->  | Q7: =IF(AND(ISNUMBER(K7),K7>0),$I7&" = "&ROUND(K7,0)& " kg","") -> 
A8: Saldo A3 | B8: =Suisse_Bilanz_1.17!N116 -> 0 | C8: =Suisse_Bilanz_1.17!O116 -> 0 | F8: Zu- und Wegfuhr Hofdünger | I8: A3 | K8: =IF(B8>=0,B8,"") -> 0 | O8: =IF(AND(J12<>0,K8<>""),K8/$J$12,"") ->  | Q8: =IF(AND(ISNUMBER(K8),K8>0),$I8&" = "&ROUND(K8,0)& " kg","") -> 
A9: Saldo E | B9: =Suisse_Bilanz_1.17!N140 -> 0 | C9: =Suisse_Bilanz_1.17!O140 -> 0 | F9: Vergärungsprodukte | I9: E | K9: =IF(B9>=0,B9,"") -> 0 | O9: =IF(AND(J12<>0,K9<>""),K9/$J$12,"") ->  | Q9: =IF(AND(ISNUMBER(K9),K9>0),I9&" = "&ROUND(K9,0)& " kg","") -> 
A10: Saldo D | B10: =Suisse_Bilanz_1.17!N125 -> 0 | C10: =Suisse_Bilanz_1.17!O125 -> 0 | F10: übrige Dünger | I10: D | K10: =IF(B10>=0,B10,"") -> 0 | O10: =IF(AND(J12<>0,K10<>""),K10/$J$12,"") ->  | Q10: =IF(AND(ISNUMBER(K10),K10>0),I10&" = "&ROUND(K10,0)& " kg","") -> 
A11: Fehlerbereich | B11: =Suisse_Bilanz_1.17!J158 -> _ | C11: =Suisse_Bilanz_1.17!K158 -> _ | F11: max. Fehlerbereich | I11: FB | J11: =B11 -> _ | N11: =IF($J$13>0,J11/J$12,0) ->  | Q11: =IF(J11=0,"",$I11&" = "&ROUND(J11,0)& " kg") -> 
I12: Summe ohne FB | J12: =J6+J5 -> 0 | N12: =IF($J$13>0,J12/J$12,0) ->  | Q12: =K13 -> 0
I13: TOTAL mit FB | J13: =J5+J6+J11 ->  | K13: =SUM(K7:K10) -> 0 | N13: =IF($J$13>0,J13/J$12,0) ->  | O13: =SUM(O7:O10) -> 0 | Q13: =J13 -> 
A14: innerbetrieblicher | N14: =N13 ->  | O14: =N14 ->  | Q14: Limite
A15: Nährstofftransfer GFT | C15: =Suisse_Bilanz_1.17!K155 -> 0 | I15: Gesamtbilanz | K15: =K13-J12 -> 0 | O15: =K15/$J$12 -> 
I16: Differenz zur Limite | K16: =ABS(K13-J13) ->  | L16: =IF((K13-J13)>0,"kg über der Limite bzw.","kg unter der Limite bzw.") ->  | O16: =O13-O14 -> 
A17: 1) Brechnung "A2 gedüngt"
A18: (A2 - neg. Saldo Wegfuhren - Transfer)
A19: A2 | B19: =B7 -> 0 | C19: =C7 -> 0
A20: 1) neg. Saldo A3 | B20: =IF(B8<0,B8,0) -> 0 | C20: 0
A21: 2) neg. Saldo E | B21: 0 | C21: 0
A22: 3) neg. Saldo D | B22: 0 | C22: 0
A23: 4) innerbetr.Transfer | B23: =-B15 -> 0 | C23: =-C15 -> 0
A24: - Summe 1-4 | B24: =SUM(B20:B23) -> 0 | C24: =SUM(C20:C23) -> 0
A25: = A2 gedüngt | B25: =B19+B24 -> 0 | C25: =C19+C24 -> 0
J26: Phosphor | N26: % Anteile
J27: P2O5, kg/Jahr | N27: Bedarf = 100%
J28: Bedarf | K28: gedüngt | N28: =J28 -> Bedarf | O28: =K28 -> gedüngt | Q28: Beschriftung
F29: Bedarf Grundfutterfläche | I29: C1 | J29: =C5 -> 0 | N29: =IF($J$37>0,J29/J$36,0) ->  | Q29: =IF(J29>0,$I5&" = "&ROUND(J29,0)& " kg","") -> 
F30: Bedarf Acker- und Spezialkulturen | I30: C2+C3 | J30: =C6 -> 0 | N30: =IF($J$37>0,J30/J$36,0) ->  | Q30: =IF(J30>0, $I6&" = "&ROUND(J30,0)& " kg","") -> 
F31: aus Tierhaltung | I31: von A2 | K31: =C19+C24 -> 0 | L31: 1) | O31: =IF(AND(J36<>0,K31<>""),K31/J$36,"") ->  | Q31: =IF(AND(ISNUMBER(K31),K31>0),$I7&" = "&ROUND(K31,0)& " kg","") -> 
F32: Zu- und Wegfuhr Hofdünger | I32: A3 | K32: =IF(C8>=0,C8,"") -> 0 | O32: =IF(AND(J36<>0,K32<>""),K32/J$36,"") ->  | Q32: =IF(AND(ISNUMBER(K32),K32>0),$I8&" = "&ROUND(K32,0)& " kg","") -> 
F33: Vergärungsprodukte | I33: E | K33: =IF(C9>=0,C9,"") -> 0 | O33: =IF(AND(J36<>0,K33<>""),K33/J$36,"") ->  | Q33: =IF(AND(ISNUMBER(K33),K33>0),$I9&" = "&ROUND(K33,0)& " kg","") -> 
F34: übrige Dünger | I34: D | K34: =IF(C10>=0,C10,"") -> 0 | O34: =IF(AND(J36<>0,K34<>""),K34/J$36,"") ->  | Q34: =IF(AND(ISNUMBER(K34),K34>0),$I10&" = "&ROUND(K34,0)& " kg","") -> 
F35: max. Fehlerbereich | I35: FB | J35: =C11 -> _ | N35: =IF($J$37>0,J35/J$36,0) ->  | Q35: =IF(J35=0,"",$I11&" = "&ROUND(J35,0)& " kg") -> 
I36: Summe ohne FB | J36: =J30+J29 -> 0 | N36: =IF($J$13>0,J36/J$36,0) ->  | Q36: =K37 -> 0
I37: TOTAL mit FB | J37: =J29+J30+J35 ->  | K37: =SUM(K31:K34) -> 0 | N37: =IF($J$37>0,J37/J$36,0) ->  | O37: =SUM(O31:O34) -> 0 | Q37: =J37 -> 
N38: =N37 ->  | O38: =N38 ->  | Q38: Limite
I39: Gesamtbilanz | K39: =K37-J36 -> 0 | O39: =K39/J$36 -> 
I40: Differenz zur Limite | K40: =ABS(K37-J37) ->  | L40: =IF((K37-J37)>0,"kg über der Limite bzw.","kg unter der Limite bzw.") ->  | O40: =O37-O38 -> 

Sheet Richtwerte Hofdünger
B1: Richtwerte für den Gehalt von Hofdüngern | O1: Quelle: GRUD 2017
B2: -> Mit Tab. "Suisse_Bilanz_..." (Seite 3) können betriebsspezifische Durchschnitts-Gehalte berechnet werden!
G4: Stickstoff | L4: Phosphat | M4: Kali | N4: Magnesium | O4: Calcium
C5: Ver- | E5: TS | F5: OS | G5: Ntot | H5: Nlös | I5: Nverf | L5: P2O5 | M5: K2O | N5: Mg | O5: Ca | P5: Nährstoffverhältnisse | V5: %TS | W5: OS | X5: Ntot | Y5: Nlös | Z5: Nverf | AC5: P2O5 | AD5: K2O | AE5: Mg | AF5: Ca | AG5: Bemerkungen
D6: dünnung | E6: kg / m3 Gülle bzw. kg / t Mist | P6: Ntot | Q6: Nverf | R6: P2O5 | S6: K2O | T6: Mg | W6: %TS | X6: kg / t TS
B7: Milchvieh
B8: Vollgülle | C8: 1: | D8: 0 | E8: 90 | F8: 70 | G8: 3.9 | H8: 2.1 | I8: 2.2 | J8: - | K8: 2.7 | L8: 1.7 | M8: 7.5 | N8: 0.61 | O8: 1.5 | P8: =G8/$L8 -> 2.294117647 | Q8: =(I8+K8)/2/L8 -> 1.441176471 | R8: =L8/$L8 -> 1 | S8: =M8/$L8 -> 4.411764706 | T8: =N8/$L8 -> 0.3588235294 | V8: =IF(E8>0,E8/1000,"") -> 0.09 | W8: =IF(F8>0,F8/E8,"") -> 0.7777777778 | X8: =IF(G8>0,G8*1000/$E8,"") -> 43.33333333 | Y8: =IF(H8>0,H8*1000/$E8,"") -> 23.33333333 | Z8: =IF(I8>0,I8*1000/$E8,"") -> 24.44444444 | AA8: =IF(AB8="","","-") -> - | AB8: =IF(K8>0,K8*1000/$E8,"") -> 30 | AC8: =IF(L8>0,L8*1000/$E8,"") -> 18.88888889 | AD8: =IF(M8>0,M8*1000/$E8,"") -> 83.33333333 | AE8: =IF(N8>0,N8*1000/$E8,"") -> 6.777777778 | AF8: =IF(O8>0,O8*1000/$E8,"") -> 16.66666667 | AG8: GRUD 2017, Modul 4/ Eigenschaften und Anwendung von Düngern, Tab. 6
C9: 1: | D9: 1 | E9: =E$8/(1+$D9) -> 45 | F9: =F$8/(1+$D9) -> 35 | G9: 1.95 | H9: 1.05 | I9: 1.1 | J9: - | K9: 1.35 | L9: 0.85 | M9: 3.75 | N9: 0.305 | O9: 0.75 | V9: 0.045
C10: 1: | D10: 1.5 | E10: =E$8/(1+$D10) -> 36 | F10: 28 | G10: 1.56 | H10: 0.84 | I10: 0.88 | J10: - | K10: 1.08 | L10: 0.68 | M10: 3 | N10: 0.244 | O10: 0.6 | V10: 0.036
B11: Gülle kotarm | C11: 1: | D11: 0 | E11: 75 | F11: 40 | G11: 4.5 | H11: 2.9 | I11: 2.9 | J11: - | K11: 3.8 | L11: 1.1 | M11: 11 | N11: 0.58 | O11: 1 | P11: =G11/$L11 -> 4.090909091 | Q11: =(I11+K11)/2/L11 -> 3.045454545 | R11: =L11/$L11 -> 1 | S11: =M11/$L11 -> 10 | T11: =N11/$L11 -> 0.5272727273 | V11: 0.075 | W11: =IF(F11>0,F11/E11,"") -> 0.5333333333 | X11: =IF(G11>0,G11*1000/$E11,"") -> 60 | Y11: =IF(H11>0,H11*1000/$E11,"") -> 38.66666667 | Z11: =IF(I11>0,I11*1000/$E11,"") -> 38.66666667 | AA11: =IF(AB11="","","-") -> - | AB11: =IF(K11>0,K11*1000/$E11,"") -> 50.66666667 | AC11: =IF(L11>0,L11*1000/$E11,"") -> 14.66666667 | AD11: =IF(M11>0,M11*1000/$E11,"") -> 146.6666667 | AE11: =IF(N11>0,N11*1000/$E11,"") -> 7.733333333 | AF11: =IF(O11>0,O11*1000/$E11,"") -> 13.33333333 | AG11: GRUD 2017, Modul 4/ Eigenschaften und Anwendung von Düngern, Tab. 6
C12: 1: | D12: 2 | E12: =E$11/(1+$D12) -> 25 | F12: =F$11/(1+$D12) -> 13.33333333 | G12: 1.5 | H12: 0.9666666667 | I12: 0.9666666667 | J12: - | K12: 1.266666667 | L12: 0.3666666667 | M12: 3.666666667 | N12: 0.1933333333 | O12: 0.3333333333 | V12: 0.025
C13: 1: | D13: 3 | E13: =E$11/(1+$D13) -> 18.75 | F13: 10 | G13: 1.125 | H13: 0.725 | I13: 0.725 | J13: - | K13: 0.95 | L13: 0.275 | M13: 2.75 | N13: 0.145 | O13: 0.25 | V13: 0.01875
B14: Stapelmist | E14: 190 | F14: 150 | G14: 4.5 | H14: 0.7 | I14: 0.9 | J14: - | K14: 1.8 | L14: 3 | M14: 6.1 | N14: 0.93 | O14: 3 | P14: =G14/$L14 -> 1.5 | Q14: =(I14+K14)/2/L14 -> 0.45 | R14: =L14/$L14 -> 1 | S14: 2.033333333 | T14: 0.31 | V14: 0.19 | W14: =IF(F14>0,F14/E14,"") -> 0.7894736842 | X14: =IF(G14>0,G14*1000/$E14,"") -> 23.68421053 | Y14: 3.684210526 | Z14: 4.736842105 | AA14: =IF(AB14="","","-") -> - | AB14: =IF(K14>0,K14*1000/$E14,"") -> 9.473684211 | AC14: 15.78947368 | AD14: 32.10526316 | AE14: 4.894736842 | AF14: 15.78947368 | AG14: GRUD 2017, Modul 4/ Eigenschaften und Anwendung von Düngern, Tab. 6
B15: Laufstallmist | E15: 210 | F15: 175 | G15: 4.9 | H15: 1.2 | I15: 1.2 | J15: - | K15: 2.5 | L15: 2.2 | M15: 10 | N15: 0.82 | O15: 2.2 | P15: =G15/$L15 -> 2.227272727 | Q15: =(I15+K15)/2/L15 -> 0.8409090909 | R15: 1 | S15: 4.545454545 | T15: 0.3727272727 | V15: 0.21 | W15: =IF(F15>0,F15/E15,"") -> 0.8333333333 | X15: 23.33333333 | Y15: 5.714285714 | Z15: 5.714285714 | AA15: =IF(AB15="","","-") -> - | AB15: 11.9047619 | AC15: 10.47619048 | AD15: 47.61904762 | AE15: 3.904761905 | AF15: 10.47619048 | AG15: GRUD 2017, Modul 4/ Eigenschaften und Anwendung von Düngern, Tab. 6
B17: Rindviehmast
B18: Vollgülle | C18: 1: | D18: 0 | E18: 90 | F18: 65 | G18: 3.5 | H18: 2.1 | I18: 1.8 | J18: - | K18: 2.5 | L18: 1.4 | M18: 3.4 | N18: 0.6 | O18: 1.2 | P18: =G18/$L18 -> 2.5 | Q18: =(I18+K18)/2/L18 -> 1.535714286 | R18: =L18/$L18 -> 1 | S18: =M18/$L18 -> 2.428571429 | T18: =N18/$L18 -> 0.4285714286 | V18: =IF(E18>0,E18/1000,"") -> 0.09 | W18: =IF(F18>0,F18/E18,"") -> 0.7222222222 | X18: =IF(G18>0,G18*1000/$E18,"") -> 38.88888889 | Y18: =IF(H18>0,H18*1000/$E18,"") -> 23.33333333 | Z18: =IF(I18>0,I18*1000/$E18,"") -> 20 | AA18: =IF(AB18="","","-") -> - | AB18: =IF(K18>0,K18*1000/$E18,"") -> 27.77777778 | AC18: =IF(L18>0,L18*1000/$E18,"") -> 15.55555556 | AD18: =IF(M18>0,M18*1000/$E18,"") -> 37.77777778 | AE18: =IF(N18>0,N18*1000/$E18,"") -> 6.666666667 | AF18: =IF(O18>0,O18*1000/$E18,"") -> 13.33333333 | AG18: Agridea DB Ackerbau 2020; GRUD 2017, Modul 4/ Eigenschaften und Anwendung von Düngern, Tab. 6
C19: 1: | D19: 1 | E19: =E$18/(1+$D19) -> 45 | F19: =F$18/(1+$D19) -> 32.5 | G19: 1.75 | H19: 1.05 | I19: 0.9 | J19: - | K19: 1.25 | L19: 0.7 | M19: 1.7 | N19: 0.3 | O19: 0.6 | V19: =IF(E19>0,E19/1000,"") -> 0.045
C20: 1: | D20: 1.5 | E20: =E$18/(1+$D20) -> 36 | F20: 26 | G20: 1.4 | H20: 0.84 | I20: 0.72 | J20: - | K20: 1 | L20: 0.56 | M20: 1.36 | N20: 0.24 | O20: 0.48 | V20: =IF(E20>0,E20/1000,"") -> 0.036
B21: Laufstallmist | E21: 210 | F21: 155 | G21: 4.7 | H21: 1 | I21: 1.2 | J21: - | K21: 2.4 | L21: 1.8 | M21: 7.4 | N21: 0.8 | O21: 1.5 | P21: =G21/$L21 -> 2.611111111 | Q21: =(I21+K21)/2/L21 -> 1 | R21: =L21/$L21 -> 1 | S21: =M21/$L21 -> 4.111111111 | T21: =N21/$L21 -> 0.4444444444 | V21: =IF(E21>0,E21/1000,"") -> 0.21 | W21: =IF(F21>0,F21/E21,"") -> 0.7380952381 | X21: =IF(G21>0,G21*1000/$E21,"") -> 22.38095238 | Y21: =IF(H21>0,H21*1000/$E21,"") -> 4.761904762 | Z21: =IF(I21>0,I21*1000/$E21,"") -> 5.714285714 | AA21: =IF(AB21="","","-") -> - | AB21: =IF(K21>0,K21*1000/$E21,"") -> 11.42857143 | AC21: =IF(L21>0,L21*1000/$E21,"") -> 8.571428571 | AD21: =IF(M21>0,M21*1000/$E21,"") -> 35.23809524 | AE21: =IF(N21>0,N21*1000/$E21,"") -> 3.80952381 | AF21: =IF(O21>0,O21*1000/$E21,"") -> 7.142857143 | AG21: Agridea DB Ackerbau 2020; GRUD 2017, Modul 4/ Eigenschaften und Anwendung von Düngern, Tab. 6
B23: Schweine
B24: Schweinegülle Mast | C24: 1: | D24: 0 | E24: 50 | F24: 36 | G24: 6.5 | H24: 4.6 | I24: 3.3 | J24: - | K24: 4.6 | L24: 3.2 | M24: 3.6 | N24: 0.88 | O24: 2.1 | P24: =G24/$L24 -> 2.03125 | Q24: =(I24+K24)/2/L24 -> 1.234375 | R24: =L24/$L24 -> 1 | S24: =M24/$L24 -> 1.125 | T24: =N24/$L24 -> 0.275 | V24: =IF(E24>0,E24/1000,"") -> 0.05 | W24: =IF(F24>0,F24/E24,"") -> 0.72 | X24: =IF(G24>0,G24*1000/$E24,"") -> 130 | Y24: =IF(H24>0,H24*1000/$E24,"") -> 92 | Z24: =IF(I24>0,I24*1000/$E24,"") -> 66 | AA24: =IF(AB24="","","-") -> - | AB24: =IF(K24>0,K24*1000/$E24,"") -> 92 | AC24: =IF(L24>0,L24*1000/$E24,"") -> 64 | AD24: =IF(M24>0,M24*1000/$E24,"") -> 72 | AE24: =IF(N24>0,N24*1000/$E24,"") -> 17.6 | AF24: =IF(O24>0,O24*1000/$E24,"") -> 42 | AG24: GRUD 2017, Modul 4/ Eigenschaften und Anwendung von Düngern, Tab. 6
C25: 1: | D25: 0.5 | E25: =E$24/(1+$D25) -> 33.33333333 | F25: =F$24/(1+$D25) -> 24 | G25: 4.333333333 | H25: 3.066666667 | I25: 2.2 | J25: - | K25: 3.066666667 | L25: 2.133333333 | M25: 2.4 | N25: 0.5866666667 | O25: 1.4 | V25: 0.03333333333
C26: 1: | D26: 0.75 | E26: =E$24/(1+$D26) -> 28.57142857 | F26: 20.57142857 | G26: 3.714285714 | H26: 2.628571429 | I26: 1.885714286 | J26: - | K26: 2.628571429 | L26: 1.828571429 | M26: 2.057142857 | N26: 0.5028571429 | O26: 1.2 | V26: 0.02857142857
B27: Schweinegülle Zucht | C27: 1: | D27: 0 | E27: 50 | F27: 33 | G27: 4.7 | H27: 3.3 | I27: 2.4 | J27: - | K27: 3.4 | L27: 2.7 | M27: 3 | N27: 0.56 | O27: 1.5 | P27: =G27/$L27 -> 1.740740741 | Q27: =(I27+K27)/2/L27 -> 1.074074074 | R27: =L27/$L27 -> 1 | S27: =M27/$L27 -> 1.111111111 | T27: =N27/$L27 -> 0.2074074074 | V27: 0.05 | W27: =IF(F27>0,F27/E27,"") -> 0.66 | X27: =IF(G27>0,G27*1000/$E27,"") -> 94 | Y27: =IF(H27>0,H27*1000/$E27,"") -> 66 | Z27: =IF(I27>0,I27*1000/$E27,"") -> 48 | AA27: - | AB27: =IF(K27>0,K27*1000/$E27,"") -> 68 | AC27: =IF(L27>0,L27*1000/$E27,"") -> 54 | AD27: =IF(M27>0,M27*1000/$E27,"") -> 60 | AE27: =IF(N27>0,N27*1000/$E27,"") -> 11.2 | AF27: =IF(O27>0,O27*1000/$E27,"") -> 30 | AG27: GRUD 2017, Modul 4/ Eigenschaften und Anwendung von Düngern, Tab. 6
C28: 1: | D28: 0.5 | E28: =E$27/(1+$D28) -> 33.33333333 | F28: =F$27/(1+$D28) -> 22 | G28: 3.133333333 | H28: 2.2 | I28: 1.6 | J28: - | K28: 2.266666667 | L28: 1.8 | M28: 2 | N28: 0.3733333333 | O28: 1 | V28: 0.03333333333
C29: 1: | D29: 0.75 | E29: =E$27/(1+$D29) -> 28.57142857 | F29: 18.85714286 | G29: 2.685714286 | H29: 1.885714286 | I29: 1.371428571 | J29: - | K29: 1.942857143 | L29: 1.542857143 | M29: 1.714285714 | N29: 0.32 | O29: 0.8571428571 | V29: 0.02857142857
B30: Schweinemist | E30: 270 | F30: 230 | G30: 8.8 | H30: 2.6 | I30: 3.5 | J30: - | K30: 5.3 | L30: 6.6 | M30: 7.3 | N30: 1.5 | O30: 5 | P30: =G30/$L30 -> 1.333333333 | Q30: =(I30+K30)/2/L30 -> 0.6666666667 | R30: =L30/$L30 -> 1 | S30: =M30/$L30 -> 1.106060606 | T30: =N30/$L30 -> 0.2272727273 | V30: 0.27 | W30: =IF(F30>0,F30/E30,"") -> 0.8518518519 | X30: =IF(G30>0,G30*1000/$E30,"") -> 32.59259259 | Y30: =IF(H30>0,H30*1000/$E30,"") -> 9.62962963 | Z30: =IF(I30>0,I30*1000/$E30,"") -> 12.96296296 | AA30: - | AB30: =IF(K30>0,K30*1000/$E30,"") -> 19.62962963 | AC30: =IF(L30>0,L30*1000/$E30,"") -> 24.44444444 | AD30: =IF(M30>0,M30*1000/$E30,"") -> 27.03703704 | AE30: =IF(N30>0,N30*1000/$E30,"") -> 5.555555556 | AF30: =IF(O30>0,O30*1000/$E30,"") -> 18.51851852 | AG30: GRUD 2017, Modul 4/ Eigenschaften und Anwendung von Düngern, Tab. 6
B32: Mischgülle: Milchvieh + Schweine-Mast
B33: Vollgülle | C33: 1: | D33: 0 | E33: =(E24+E8)/2 -> 70 | F33: =(F24+F8)/2 -> 53 | G33: 5.2 | H33: 3.35 | I33: 2.75 | J33: - | K33: 3.65 | L33: 2.45 | M33: 5.55 | N33: 0.745 | O33: 1.8 | P33: =G33/$L33 -> 2.12244898 | Q33: =(I33+K33)/2/L33 -> 1.306122449 | R33: =L33/$L33 -> 1 | S33: =M33/$L33 -> 2.265306122 | T33: =N33/$L33 -> 0.3040816327 | V33: =IF(E33>0,E33/1000,"") -> 0.07 | W33: =IF(F33>0,F33/E33,"") -> 0.7571428571 | X33: =IF(G33>0,G33*1000/$E33,"") -> 74.28571429 | Y33: =IF(H33>0,H33*1000/$E33,"") -> 47.85714286 | Z33: =IF(I33>0,I33*1000/$E33,"") -> 39.28571429 | AA33: =IF(AB33="","","-") -> - | AB33: =IF(K33>0,K33*1000/$E33,"") -> 52.14285714 | AC33: =IF(L33>0,L33*1000/$E33,"") -> 35 | AD33: =IF(M33>0,M33*1000/$E33,"") -> 79.28571429 | AE33: =IF(N33>0,N33*1000/$E33,"") -> 10.64285714 | AF33: =IF(O33>0,O33*1000/$E33,"") -> 25.71428571 | AG33: berechnet
C34: 1: | D34: 0.75 | E34: =E$33/(1+$D34) -> 40 | F34: =F$33/(1+$D34) -> 30.28571429 | G34: 2.971428571 | H34: 1.914285714 | I34: 1.571428571 | J34: - | K34: 2.085714286 | L34: 1.4 | M34: 3.171428571 | N34: 0.4257142857 | O34: 1.028571429 | V34: =IF(E34>0,E34/1000,"") -> 0.04
C35: 1: | D35: 1.5 | E35: =E$33/(1+$D35) -> 28 | F35: 21.2 | G35: 2.08 | H35: 1.34 | I35: 1.1 | J35: - | K35: 1.46 | L35: 0.98 | M35: 2.22 | N35: 0.298 | O35: 0.72 | V35: =IF(E35>0,E35/1000,"") -> 0.028
B37: Geflügel
B38: Hennen/Junghennenkot (Kotband) | E38: 350 | F38: 250 | G38: 21 | H38: 6.3 | I38: 8.4 | J38: - | K38: 13 | L38: 17 | M38: 11 | N38: 2.4 | O38: 37 | P38: =G38/$L38 -> 1.235294118 | Q38: =(I38+K38)/2/L38 -> 0.6294117647 | R38: =L38/$L38 -> 1 | S38: 0.6470588235 | T38: 0.1411764706 | V38: =IF(E38>0,E38/1000,"") -> 0.35 | W38: =IF(F38>0,F38/E38,"") -> 0.7142857143 | X38: =IF(G38>0,G38*1000/$E38,"") -> 60 | Y38: 18 | Z38: 24 | AA38: =IF(AB38="","","-") -> - | AB38: =IF(K38>0,K38*1000/$E38,"") -> 37.14285714 | AC38: 48.57142857 | AD38: 31.42857143 | AE38: 6.857142857 | AF38: 105.7142857 | AG38: GRUD 2017, Modul 4/ Eigenschaften und Anwendung von Düngern, Tab. 6
B39: Hennenmist (Kotgrube, Boden- | E39: 500 | F39: 330 | G39: 26 | H39: 7 | I39: 11 | J39: - | K39: 16 | L39: 30 | M39: 20 | N39: 4.3 | O39: 67 | P39: =G39/$L39 -> 0.8666666667 | Q39: =(I39+K39)/2/L39 -> 0.45 | R39: 1 | S39: 0.6666666667 | T39: 0.1433333333 | V39: =IF(E39>0,E39/1000,"") -> 0.5 | W39: =IF(F39>0,F39/E39,"") -> 0.66 | X39: 52 | Y39: 14 | Z39: 22 | AA39: =IF(AB39="","","-") -> - | AB39: 32 | AC39: 60 | AD39: 40 | AE39: 8.6 | AF39: 134 | AG39: GRUD 2017, Modul 4/ Eigenschaften und Anwendung von Düngern, Tab. 6
B40: haltung)
B41: Junghennenmist (Kotgrube, Bodenhaltung) | E41: 500 | F41: 330 | G41: 26 | H41: 7 | I41: 11 | J41: - | K41: 16 | L41: 30 | M41: 20 | N41: 4.3 | O41: 67 | P41: =G41/$L41 -> 0.8666666667 | Q41: =(I41+K41)/2/L41 -> 0.45 | R41: 1 | S41: 0.6666666667 | T41: 0.1433333333 | V41: =IF(E41>0,E41/1000,"") -> 0.5 | W41: =IF(F41>0,F41/E41,"") -> 0.66 | X41: =IF(G41>0,G41*1000/$E41,"") -> 52 | Y41: =IF(H41>0,H41*1000/$E41,"") -> 14 | Z41: =IF(I41>0,I41*1000/$E41,"") -> 22 | AA41: =IF(AB41="","","-") -> - | AB41: =IF(K41>0,K41*1000/$E41,"") -> 32 | AC41: =IF(L41>0,L41*1000/$E41,"") -> 60 | AD41: =IF(M41>0,M41*1000/$E41,"") -> 40 | AE41: =IF(N41>0,N41*1000/$E41,"") -> 8.6 | AF41: =IF(O41>0,O41*1000/$E41,"") -> 134 | AG41: GRUD 2017, Modul 4/ Eigenschaften und Anwendung von Düngern, Tab. 6
B42: Pouletmist | E42: 650 | F42: 440 | G42: 32 | H42: 10 | I42: 13 | J42: - | K42: 19 | L42: 17 | M42: 28 | N42: 5.5 | O42: 5 | P42: =G42/$L42 -> 1.882352941 | Q42: =(I42+K42)/2/L42 -> 0.9411764706 | R42: 1 | S42: 1.647058824 | T42: 0.3235294118 | V42: =IF(E42>0,E42/1000,"") -> 0.65 | W42: =IF(F42>0,F42/E42,"") -> 0.6769230769 | X42: 49.23076923 | Y42: 15.38461538 | Z42: 20 | AA42: =IF(AB42="","","-") -> - | AB42: 29.23076923 | AC42: 26.15384615 | AD42: 43.07692308 | AE42: 8.461538462 | AF42: 7.692307692 | AG42: GRUD 2017, Modul 4/ Eigenschaften und Anwendung von Düngern, Tab. 6
B43: Trutenmist | E43: 600 | F43: 400 | G43: 28 | H43: 7.5 | I43: 12 | J43: - | K43: 18 | L43: 23 | M43: 13 | N43: 6 | O43: 12 | P43: =G43/$L43 -> 1.217391304 | Q43: =(I43+K43)/2/L43 -> 0.652173913 | R43: 1 | S43: 0.5652173913 | T43: 0.2608695652 | V43: =IF(E43>0,E43/1000,"") -> 0.6 | W43: =IF(F43>0,F43/E43,"") -> 0.6666666667 | X43: 46.66666667 | Y43: 12.5 | Z43: 20 | AA43: =IF(AB43="","","-") -> - | AB43: 30 | AC43: 38.33333333 | AD43: 21.66666667 | AE43: 10 | AF43: 20 | AG43: GRUD 2017, Modul 4/ Eigenschaften und Anwendung von Düngern, Tab. 6
B45: Diverse
B46: Kälbermist | E46: 200 | F46: 150 | G46: 5 | H46: 1.9 | I46: 1.3 | J46: - | K46: 2.5 | L46: 2.5 | M46: 5.7 | N46: 0.89 | O46: 1.7 | P46: =G46/$L46 -> 2 | Q46: =(I46+K46)/2/L46 -> 0.76 | R46: =L46/$L46 -> 1 | S46: 2.28 | T46: 0.356 | V46: =IF(E46>0,E46/1000,"") -> 0.2 | W46: =IF(F46>0,F46/E46,"") -> 0.75 | X46: =IF(G46>0,G46*1000/$E46,"") -> 25 | Y46: 9.5 | Z46: 6.5 | AA46: =IF(AB46="","","-") -> - | AB46: =IF(K46>0,K46*1000/$E46,"") -> 12.5 | AC46: 12.5 | AD46: 28.5 | AE46: 4.45 | AF46: 8.5 | AG46: GRUD 2017, Modul 4/ Eigenschaften und Anwendung von Düngern, Tab. 6
B47: Pferdemist frisch | E47: 350 | F47: 300 | G47: 4.4 | H47: 1.2 | I47: 0.3 | J47: - | K47: 0.8 | L47: 2.5 | M47: 9.8 | N47: 0.6 | O47: 2.5 | P47: =G47/$L47 -> 1.76 | Q47: =(I47+K47)/2/L47 -> 0.22 | R47: 1 | S47: 3.92 | T47: 0.24 | V47: =IF(E47>0,E47/1000,"") -> 0.35 | W47: =IF(F47>0,F47/E47,"") -> 0.8571428571 | X47: 12.57142857 | Y47: 3.428571429 | Z47: 0.8571428571 | AA47: =IF(AB47="","","-") -> - | AB47: 2.285714286 | AC47: 7.142857143 | AD47: 28 | AE47: 1.714285714 | AF47: 7.142857143 | AG47: GRUD 2017, Modul 4/ Eigenschaften und Anwendung von Düngern, Tab. 6
B48: Pferdemist | E48: 350 | F48: 240 | G48: 6.8 | H48: 0.7 | I48: 0.7 | J48: - | K48: 1.8 | L48: 5 | M48: 19 | N48: 1.3 | O48: 5 | P48: =G48/$L48 -> 1.36 | Q48: =(I48+K48)/2/L48 -> 0.25 | R48: 1 | S48: 3.8 | T48: 0.26 | V48: =IF(E48>0,E48/1000,"") -> 0.35 | W48: =IF(F48>0,F48/E48,"") -> 0.6857142857 | X48: 19.42857143 | Y48: 2 | Z48: 2 | AA48: =IF(AB48="","","-") -> - | AB48: 5.142857143 | AC48: 14.28571429 | AD48: 54.28571429 | AE48: 3.714285714 | AF48: 14.28571429 | AG48: GRUD 2017, Modul 4/ Eigenschaften und Anwendung von Düngern, Tab. 6
B49: Schaf-/Ziegenmist | E49: 270 | F49: 200 | G49: 8.2 | H49: 2.4 | I49: 3.3 | J49: - | K49: 4.9 | L49: 3.7 | M49: 17 | N49: 1.3 | O49: 4.9 | P49: =G49/$L49 -> 2.216216216 | Q49: =(I49+K49)/2/L49 -> 1.108108108 | R49: 1 | S49: 4.594594595 | T49: 0.3513513514 | V49: =IF(E49>0,E49/1000,"") -> 0.27 | W49: =IF(F49>0,F49/E49,"") -> 0.7407407407 | X49: 30.37037037 | Y49: 8.888888889 | Z49: 12.22222222 | AA49: =IF(AB49="","","-") -> - | AB49: 18.14814815 | AC49: 13.7037037 | AD49: 62.96296296 | AE49: 4.814814815 | AF49: 18.14814815 | AG49: GRUD 2017, Modul 4/ Eigenschaften und Anwendung von Düngern, Tab. 6
B51: Separatormist | G51: 7 | L51: 4.3 | P51: =G51/$L51 -> 1.627906977 | R51: =L51/$L51 -> 1 | U51: 500 | V51: =IF(E51>0,E51/1000,"") ->  | W51: =IF(F51>0,F51/E51,"") ->  | X51: =IF(G51>0,G51*1000/$E51,"") ->  | Y51: =IF(H51>0,H51*1000/$E51,"") ->  | Z51: =IF(I51>0,I51*1000/$E51,"") ->  | AA51: =IF(AB51="","","-") ->  | AB51: =IF(K51>0,K51*1000/$E51,"") ->  | AC51: =IF(L51>0,L51*1000/$E51,"") ->  | AD51: =IF(M51>0,M51*1000/$E51,"") ->  | AE51: =IF(N51>0,N51*1000/$E51,"") ->  | AF51: =IF(O51>0,O51*1000/$E51,"") ->  | AG51: aus Gehaltstabelle HODUFLU
B52: Ntot : Gesamt-Stickstoff (unabhängig von der Form); kaum vermeidbare Verluste in Stall und während Lagerung abgezogen.
B53: Nlös : Wasserlösliche Stickstoffformen (v.a. Ammonium); sofort pflanzenverfügbar, aber auch verlustgefährdet
B54: Nverf : Pflanzenverfügbarer Stickstoff (kurz- und mittelfristig)
B55: TS: Trockensubstanz, OS: organische Substanz
B57: Mittlere Gehalte von Recyclingdüngern (nach GRUD 2017, Modul 4, Tab. 8)
B58: Bei Bezügen gilt der Lieferschein des Abgebers.
E59: TS | F59: OS | G59: Ntot | H59: Nlös | I59: Nverf | L59: P2O5 | M59: K2O | N59: Mg | O59: Ca | P59: Nährstoffverhältnisse | U59: Raumgewicht | V59: %TS | W59: OS | X59: Ntot | Y59: Nlös | Z59: Nverf | AC59: P2O5 | AD59: K2O | AE59: Mg | AF59: Ca | AG59: Bemerkungen
E60: kg / t Frischsubstanz | P60: Ntot | Q60: Nverf | R60: P | S60: K | T60: Mg | U60: kg/m3 | W60: %TS | X60: kg / t TS
B62: Kompost (Grünabfuhr-) | D62: Mittel | E62: 510 | F62: 214 | G62: 7 | H62: 0.3 | I62: 0.4 | J62: - | K62: 0.7 | L62: 3 | M62: 5 | N62: 3 | O62: 25 | P62: =G62/$L62 -> 2.333333333 | Q62: =(I62+K62)/2/L62 -> 0.1833333333 | R62: =L62/$L62 -> 1 | S62: =M62/$L62 -> 1.666666667 | T62: =N62/$L62 -> 1 | U62: 500-800 | V62: =IF(E62>0,E62/1000,"") -> 0.51 | W62: =IF(F62>0,F62/E62,"") -> 0.4196078431 | X62: =IF(G62>0,G62*1000/$E62,"") -> 13.7254902 | Y62: =IF(H62>0,H62*1000/$E62,"") -> 0.5882352941 | Z62: =IF(I62>0,I62*1000/$E62,"") -> 0.7843137255 | AA62: =IF(AB62="","","-") -> - | AB62: =IF(K62>0,K62*1000/$E62,"") -> 1.37254902 | AC62: =IF(L62>0,L62*1000/$E62,"") -> 5.882352941 | AD62: =IF(M62>0,M62*1000/$E62,"") -> 9.803921569 | AE62: =IF(N62>0,N62*1000/$E62,"") -> 5.882352941 | AF62: =IF(O62>0,O62*1000/$E62,"") -> 49.01960784 | AG62: GRUD 2017, Modul 4/ Eigenschaften und Anwendung von Düngern, Tab. 8
I63: 5-10% von Ntot
D64: Bereich | G64: 2-15 | H64: 0.01-3 | I64: =0.05*2 -> 0.1 | J64: - | K64: 1.5 | L64: 1-15 | M64: 2-17 | N64: 0.5-10 | O64: 7-28
B66: aus gewerblich-industriellen Vergärungsanlagen | I66: kg / t Frischsubstanz
B67: Gärreste fest | E67: 490 | F67: 235 | G67: 6 | H67: 0.3 | I67: =0.2*G67 -> 1.2 | J67: - | K67: =0.4*G67 -> 2.4 | L67: 3 | M67: 5 | N67: 3 | O67: 25 | P67: =G67/$L67 -> 2 | Q67: =(I67+K67)/2/L67 -> 0.6 | R67: =L67/$L67 -> 1 | S67: 1.666666667 | T67: 1 | V67: =IF(E67>0,E67/1000,"") -> 0.49 | W67: =IF(F67>0,F67/E67,"") -> 0.4795918367 | X67: =IF(G67>0,G67*1000/$E67,"") -> 12.24489796 | Y67: 0.612244898 | Z67: 2.448979592 | AA67: =IF(AB67="","","-") -> - | AB67: =IF(K67>0,K67*1000/$E67,"") -> 4.897959184 | AC67: 6.12244898 | AD67: 10.20408163 | AE67: 6.12244898 | AF67: 51.02040816 | AG67: GRUD 2017, Modul 4/ Eigenschaften und Anwendung von Düngern, Tab. 8
B68: Gärreste flüssig | E68: 130 | F68: 61 | G68: 4 | H68: 2 | I68: =0.5*G68 -> 2 | J68: - | K68: =0.65*G68 -> 2.6 | L68: 2 | M68: 4 | N68: 1 | O68: 5 | P68: =G68/$L68 -> 2 | Q68: =(I68+K68)/2/L68 -> 1.15 | R68: 1 | S68: 2 | T68: 0.5 | V68: =IF(E68>0,E68/1000,"") -> 0.13 | W68: =IF(F68>0,F68/E68,"") -> 0.4692307692 | X68: 30.76923077 | Y68: 15.38461538 | Z68: 15.38461538 | AA68: =IF(AB68="","","-") -> - | AB68: 20 | AC68: 15.38461538 | AD68: 30.76923077 | AE68: 7.692307692 | AF68: 38.46153846 | AG68: GRUD 2017, Modul 4/ Eigenschaften und Anwendung von Düngern, Tab. 8
F70: Anrechnung in der Suisse-Bilanz: | G70: * Nverf = Nges HODUFLU-Lieferschein * 20%
G71: ** Nverf = Nges HODUFLU-Lieferschein * spez. Ausnutzung (50-65%)
B74: Diverse org. Materialien
E75: kg / m3 Frischsubstanz | P75: Ntot | Q75: Nverf | R75: P2O5 | S75: K2O | T75: Mg | U75: kg FS / m3
B76: Gemüse-Rüstabfälle | G76: 0.8 | I76: 0.6 | L76: 0.3 | M76: 1 | N76: 0.05 | P76: =G76/$L76 -> 2.666666667 | Q76: =I76/L76 -> 2 | R76: =L76/$L76 -> 1 | S76: =M76/$L76 -> 3.333333333 | T76: =N76/$L76 -> 0.1666666667 | U76: 300-400 | AG76: aus Wegleitung Suisse-Bilanz 1.16, Seite 15, Formular D
B78: Ernterückstände von Gemüse- | E78: kg / t Frischsubstanz
B79: kulturen - Mittelwerte | G79: 3.3 | I79: 0.7 | L79: 0.9 | M79: 4 | N79: 0.6 | Q79: =I79/L79 -> 0.7777777778 | R79: =L79/$L79 -> 1 | S79: =M79/$L79 -> 4.444444444 | T79: =N79/$L79 -> 0.6666666667 | AG79: aus Wegleitung Suisse-Bilanz 1.16, Seite 15, Formular D
B81: Schnittgut von Streueflächen
